Publisher Label,Publisher URI,"Directorate code","Directorate","Service code","Service","Revenue or capital code","Revenue capital","Cost centre","Cost centre description","Bvsub Category","Bvsub description","Bvsum code","Bvsum description","Account code","Account description","Transaction No","Period","Transaction Date","Amount","Classification code","Classification description","Supplier ID","Supplier description","Company registration number","Company registration number Uri","VAT registration number"
"London Borough of Redbridge","http://opendatacommunities.org/doc/london-borough-council/redbridge","9BNONBVO","Outside the BVACOP Objective Structure","9CNONBVO","Outside the BVACOP Objective Structure","BAL","Balance Sheet","B0133","LBR Teachers Pension","99-NONBV","Capital, Balance Sheet and Control","50Q","Other Balances & Reserves","9910","Personal Account - Debtor","70054871","201404",01/07/2013 00:00:00,1763076.66,"56860","Pensions","REDACTED DATA","TEACHERS PENSION AGENCY","",,""
"London Borough of Redbridge","http://opendatacommunities.org/doc/london-borough-council/redbridge","9BNONBVO","Outside the BVACOP Objective Structure","9CNONBVO","Outside the BVACOP Objective Structure","BAL","Balance Sheet","B0187","TP Opted out Schools","99-NONBV","Capital, Balance Sheet and Control","50Q","Other Balances & Reserves","9910","Personal Account - Debtor","70054871","201404",01/07/2013 00:00:00,143125.82,"56860","Pensions","REDACTED DATA","TEACHERS PENSION AGENCY","",,""
"London Borough of Redbridge","http://opendatacommunities.org/doc/london-borough-council/redbridge","9BNONBVO","Outside the BVACOP Objective Structure","9CNONBVO","Outside the BVACOP Objective Structure","BAL","Balance Sheet","B0214","Little Heath P.A.Y.E","99-NONBV","Capital, Balance Sheet and Control","50Q","Other Balances & Reserves","9910","Personal Account - Debtor","70054871","201404",01/07/2013 00:00:00,27522.1,"56860","Pensions","REDACTED DATA","TEACHERS PENSION AGENCY","",,""
"London Borough of Redbridge","http://opendatacommunities.org/doc/london-borough-council/redbridge","9BNONBVO","Outside the BVACOP Objective Structure","9CNONBVO","Outside the BVACOP Objective Structure","BAL","Balance Sheet","B0187","TP Opted out Schools","99-NONBV","Capital, Balance Sheet and Control","50Q","Other Balances & Reserves","9910","Personal Account - Debtor","70054871","201404",01/07/2013 00:00:00,5115.35,"56860","Pensions","REDACTED DATA","TEACHERS PENSION AGENCY","",,""
"London Borough of Redbridge","http://opendatacommunities.org/doc/london-borough-council/redbridge","9BNONBVO","Outside the BVACOP Objective Structure","9CNONBVO","Outside the BVACOP Objective Structure","BAL","Balance Sheet","B0133","LBR Teachers Pension","99-NONBV","Capital, Balance Sheet and Control","50Q","Other Balances & Reserves","9910","Personal Account - Debtor","70054871","201404",01/07/2013 00:00:00,-23305.5,"56860","Pensions","REDACTED DATA","TEACHERS PENSION AGENCY","",,""
"London Borough of Redbridge","http://opendatacommunities.org/doc/london-borough-council/redbridge","9BNONBVO","Outside the BVACOP Objective Structure","9CNONBVO","Outside the BVACOP Objective Structure","REV","Revenue","R0026","Council Tax Collection Fund","05-THIRD","Third Party Payments","05I","Other agencies","6958","Business Rate Retention payable to GLA","60209812","201404",16/04/2013 00:00:00,1089474,"48583","Local Government","REDACTED DATA","GREATER LONDON AUTHORITY","",,""
"London Borough of Redbridge","http://opendatacommunities.org/doc/london-borough-council/redbridge","9BNONBVO","Outside the BVACOP Objective Structure","9CNONBVO","Outside the BVACOP Objective Structure","CAP","Capital","C4090","Beal High - Add Sec Sch Places","99-NONBV","Capital, Balance Sheet and Control","50E","Capital - Contract Payments","9150","Main Contract","60209436","201404",28/06/2013 00:00:00,641780.01,"21555","Construction Contractors - General","REDACTED DATA","MORGAN SINDALL (CONSTRUCTION) PLC","4273754","http://opencorporates.com/companies/gb/4273754","765365306"
"London Borough of Redbridge","http://opendatacommunities.org/doc/london-borough-council/redbridge","3BINDSCHFUND","Individual School Funds","3CDELSECOND","Delegated Individual Secondary School Budgets","REV","Revenue","R3627","Wanstead High School","99-NONBV","Capital, Balance Sheet and Control","99B","Accounting & Control","7451","LMS Bank Accounts Pilot","70055328","201404",18/07/2013 00:00:00,649588,"67981","Schools - Local Authority","REDACTED DATA","WANSTEAD HIGH SCHOOL A/C","",,""
"London Borough of Redbridge","http://opendatacommunities.org/doc/london-borough-council/redbridge","9BNONBVO","Outside the BVACOP Objective Structure","9CNONBVO","Outside the BVACOP Objective Structure","REV","Revenue","R5131","Repairs and Maintenance - MFS","02-PREMISES","Premises","02A","Repairs, alteration and maintenance of buildings","3027","Miscellaneous Maintenance","70054970","201404",03/07/2013 00:00:00,501135.82,"61961","Property Maintenance & Repairs","REDACTED DATA","MORRISONS FACILITIES SERVICES LTD","120550","http://opencorporates.com/companies/gb/120550","297280913"
"London Borough of Redbridge","http://opendatacommunities.org/doc/london-borough-council/redbridge","9BNONBVO","Outside the BVACOP Objective Structure","9CNONBVO","Outside the BVACOP Objective Structure","CAP","Capital","C4111","Ilford Jewish Add Primary School Place","99-NONBV","Capital, Balance Sheet and Control","50E","Capital - Contract Payments","9150","Main Contract","60210240","201404",05/07/2013 00:00:00,582025.08,"67981","Schools - Local Authority","REDACTED DATA","KING SOLOMON HIGH SCHOOL REDBRIDGE LTD","",,""
"London Borough of Redbridge","http://opendatacommunities.org/doc/london-borough-council/redbridge","9BNONBVO","Outside the BVACOP Objective Structure","9CNONBVO","Outside the BVACOP Objective Structure","CAP","Capital","C2104","Decent Homes","99-NONBV","Capital, Balance Sheet and Control","50E","Capital - Contract Payments","9150","Main Contract","70054857","201404",27/06/2013 00:00:00,395167.4,"65470","Roofing Services","REDACTED DATA","BREYER GROUP","782931","http://opencorporates.com/companies/gb/782931","248504555"
"London Borough of Redbridge","http://opendatacommunities.org/doc/london-borough-council/redbridge","2BENVIRONMEN","Environmental Services","2CWASTECOLLN","Waste Collection","REV","Revenue","R6151","MRS - Household Waste","05-THIRD","Third Party Payments","05H","Private contractors","6915","Contractor Payments","60210268","201404",30/06/2013 00:00:00,201431.13,"83380","Waste Disposal Services","REDACTED DATA","MRS ENVIRONMENTAL SERVICES LTD","2175295","http://opencorporates.com/companies/gb/2175295","524394641"
"London Borough of Redbridge","http://opendatacommunities.org/doc/london-borough-council/redbridge","2BENVIRONMEN","Environmental Services","2CWASTECOLLN","Waste Collection","REV","Revenue","R6211","Kerbside Collection","05-THIRD","Third Party Payments","05H","Private contractors","6915","Contractor Payments","60210268","201404",30/06/2013 00:00:00,127553.46,"83380","Waste Disposal Services","REDACTED DATA","MRS ENVIRONMENTAL SERVICES LTD","2175295","http://opencorporates.com/companies/gb/2175295","524394641"
"London Borough of Redbridge","http://opendatacommunities.org/doc/london-borough-council/redbridge","2BENVIRONMEN","Environmental Services","2CWASTECOLLN","Waste Collection","REV","Revenue","R6152","MRS - Commercial Waste","05-THIRD","Third Party Payments","05H","Private contractors","6915","Contractor Payments","60210268","201404",30/06/2013 00:00:00,32168.03,"83380","Waste Disposal Services","REDACTED DATA","MRS ENVIRONMENTAL SERVICES LTD","2175295","http://opencorporates.com/companies/gb/2175295","524394641"
"London Borough of Redbridge","http://opendatacommunities.org/doc/london-borough-council/redbridge","2BENVIRONMEN","Environmental Services","2CWASTECOLLN","Waste Collection","REV","Revenue","R6206","Recycling - Flats","05-THIRD","Third Party Payments","05H","Private contractors","6915","Contractor Payments","60210268","201404",30/06/2013 00:00:00,14244.94,"83380","Waste Disposal Services","REDACTED DATA","MRS ENVIRONMENTAL SERVICES LTD","2175295","http://opencorporates.com/companies/gb/2175295","524394641"
"London Borough of Redbridge","http://opendatacommunities.org/doc/london-borough-council/redbridge","2BENVIRONMEN","Environmental Services","2CWASTECOLLN","Waste Collection","REV","Revenue","R6215","Garden Waste Collection Service","05-THIRD","Third Party Payments","05H","Private contractors","6915","Contractor Payments","60210268","201404",30/06/2013 00:00:00,7437.65,"83380","Waste Disposal Services","REDACTED DATA","MRS ENVIRONMENTAL SERVICES LTD","2175295","http://opencorporates.com/companies/gb/2175295","524394641"
"London Borough of Redbridge","http://opendatacommunities.org/doc/london-borough-council/redbridge","6BADULTSOCIA","Adult Social Care","6COLDINCMENT","Older People (65 or over) incl. Older Mentally Ill","REV","Revenue","R4435","Sanctuary Care Residential Contracts","05-THIRD","Third Party Payments","05F","Voluntary associations","6802","Residential Homes","70055356","201404",01/07/2013 00:00:00,85663.77,"53350","Nursing Homes","REDACTED DATA","SANCTUARY CARE (ENTERPRISE HOUSE)","4231521","http://opencorporates.com/companies/gb/4231521","732012487"
"London Borough of Redbridge","http://opendatacommunities.org/doc/london-borough-council/redbridge","6BADULTSOCIA","Adult Social Care","6COLDINCMENT","Older People (65 or over) incl. Older Mentally Ill","REV","Revenue","R4435","Sanctuary Care Residential Contracts","05-THIRD","Third Party Payments","05F","Voluntary associations","6802","Residential Homes","70055356","201404",01/07/2013 00:00:00,72277.07,"53350","Nursing Homes","REDACTED DATA","SANCTUARY CARE (ENTERPRISE HOUSE)","4231521","http://opencorporates.com/companies/gb/4231521","732012487"
"London Borough of Redbridge","http://opendatacommunities.org/doc/london-borough-council/redbridge","6BADULTSOCIA","Adult Social Care","6COLDINCMENT","Older People (65 or over) incl. Older Mentally Ill","REV","Revenue","R4435","Sanctuary Care Residential Contracts","05-THIRD","Third Party Payments","05F","Voluntary associations","6802","Residential Homes","70055356","201404",01/07/2013 00:00:00,71948.91,"53350","Nursing Homes","REDACTED DATA","SANCTUARY CARE (ENTERPRISE HOUSE)","4231521","http://opencorporates.com/companies/gb/4231521","732012487"
"London Borough of Redbridge","http://opendatacommunities.org/doc/london-borough-council/redbridge","6BADULTSOCIA","Adult Social Care","6COLDINCMENT","Older People (65 or over) incl. Older Mentally Ill","REV","Revenue","R4435","Sanctuary Care Residential Contracts","05-THIRD","Third Party Payments","05F","Voluntary associations","6802","Residential Homes","70055356","201404",01/07/2013 00:00:00,63835.2,"53350","Nursing Homes","REDACTED DATA","SANCTUARY CARE (ENTERPRISE HOUSE)","4231521","http://opencorporates.com/companies/gb/4231521","732012487"
"London Borough of Redbridge","http://opendatacommunities.org/doc/london-borough-council/redbridge","6BADULTSOCIA","Adult Social Care","6COLDINCMENT","Older People (65 or over) incl. Older Mentally Ill","REV","Revenue","R4435","Sanctuary Care Residential Contracts","05-THIRD","Third Party Payments","05F","Voluntary associations","6802","Residential Homes","70055356","201404",01/07/2013 00:00:00,56443.58,"53350","Nursing Homes","REDACTED DATA","SANCTUARY CARE (ENTERPRISE HOUSE)","4231521","http://opencorporates.com/companies/gb/4231521","732012487"
"London Borough of Redbridge","http://opendatacommunities.org/doc/london-borough-council/redbridge","9BNONBVO","Outside the BVACOP Objective Structure","9CNONBVO","Outside the BVACOP Objective Structure","REV","Revenue","R5131","Repairs and Maintenance - MFS","02-PREMISES","Premises","02A","Repairs, alteration and maintenance of buildings","3027","Miscellaneous Maintenance","70054678","201404",20/06/2013 00:00:00,278238.88,"61961","Property Maintenance & Repairs","REDACTED DATA","MORRISONS FACILITIES SERVICES LTD","120550","http://opencorporates.com/companies/gb/120550","297280913"
"London Borough of Redbridge","http://opendatacommunities.org/doc/london-borough-council/redbridge","9BNONBVO","Outside the BVACOP Objective Structure","9CNONBVO","Outside the BVACOP Objective Structure","REV","Revenue","R5131","Repairs and Maintenance - MFS","99-NONBV","Capital, Balance Sheet and Control","99B","Accounting & Control","7453","Insurance Claims - General","70054678","201404",20/06/2013 00:00:00,4843.52,"61961","Property Maintenance & Repairs","REDACTED DATA","MORRISONS FACILITIES SERVICES LTD","120550","http://opencorporates.com/companies/gb/120550","297280913"
"London Borough of Redbridge","http://opendatacommunities.org/doc/london-borough-council/redbridge","3BINDSCHFUND","Individual School Funds","3CNONSCH","Non Schools","REV","Revenue","R3324","Newbridge School","99-NONBV","Capital, Balance Sheet and Control","99B","Accounting & Control","7451","LMS Bank Accounts Pilot","70055307","201404",17/07/2013 00:00:00,326103,"67981","Schools - Local Authority","REDACTED DATA","NEWBRIDGE SCHOOL  (BARLEY LANE CAMPUS)","",,""
"London Borough of Redbridge","http://opendatacommunities.org/doc/london-borough-council/redbridge","5BGFHOUSING","General Fund Housing","5CHOMELESS","Homelessness","REV","Revenue","R5630","HAC Temporary Accomodation","05-THIRD","Third Party Payments","05H","Private contractors","6916","Leasing Payments To Landlords","70054942","201404",30/06/2013 00:00:00,253830.62,"47846","Letting Agents","REDACTED DATA","FINEFAIR CONSULTANCY  LTD(NIGHTLY LETS)","4661895","http://opencorporates.com/companies/gb/4661895","809945391"
"London Borough of Redbridge","http://opendatacommunities.org/doc/london-borough-council/redbridge","5BGFHOUSING","General Fund Housing","5CHOMELESS","Homelessness","REV","Revenue","R5630","HAC Temporary Accomodation","05-THIRD","Third Party Payments","05H","Private contractors","6916","Leasing Payments To Landlords","70054942","201404",30/06/2013 00:00:00,32240.68,"47846","Letting Agents","REDACTED DATA","FINEFAIR CONSULTANCY  LTD(NIGHTLY LETS)","4661895","http://opencorporates.com/companies/gb/4661895","809945391"
"London Borough of Redbridge","http://opendatacommunities.org/doc/london-borough-council/redbridge","3BLEACENTFND","LEA Centrally Held School Funds","3CNONSCH","Non Schools","REV","Revenue","R3321","Hatton School","99-NONBV","Capital, Balance Sheet and Control","99B","Accounting & Control","7451","LMS Bank Accounts Pilot","70055298","201404",16/07/2013 00:00:00,284604,"67981","Schools - Local Authority","REDACTED DATA","HATTON SCHOOL A/C","",,""
"London Borough of Redbridge","http://opendatacommunities.org/doc/london-borough-council/redbridge","5BGFHOUSING","General Fund Housing","5CHOMELESS","Homelessness","REV","Revenue","R5630","HAC Temporary Accomodation","05-THIRD","Third Party Payments","05H","Private contractors","6916","Leasing Payments To Landlords","70055420","201404",01/07/2013 00:00:00,244020.78,"47846","Letting Agents","REDACTED DATA","THEORI INVESTMENTS LIMITED","4048450","http://opencorporates.com/companies/gb/4048450","773898950"
"London Borough of Redbridge","http://opendatacommunities.org/doc/london-borough-council/redbridge","5BGFHOUSING","General Fund Housing","5CHOMELESS","Homelessness","REV","Revenue","R5630","HAC Temporary Accomodation","05-THIRD","Third Party Payments","05H","Private contractors","6916","Leasing Payments To Landlords","70055420","201404",01/07/2013 00:00:00,31890.69,"47846","Letting Agents","REDACTED DATA","THEORI INVESTMENTS LIMITED","4048450","http://opencorporates.com/companies/gb/4048450","773898950"
"London Borough of Redbridge","http://opendatacommunities.org/doc/london-borough-council/redbridge","3BINDSCHFUND","Individual School Funds","3CNONSCH","Non Schools","REV","Revenue","R3324","Newbridge School","99-NONBV","Capital, Balance Sheet and Control","99B","Accounting & Control","7451","LMS Bank Accounts Pilot","70055329","201404",18/07/2013 00:00:00,273050,"67981","Schools - Local Authority","REDACTED DATA","NEWBRIDGE SCHOOL  (BARLEY LANE CAMPUS)","",,""
"London Borough of Redbridge","http://opendatacommunities.org/doc/london-borough-council/redbridge","3BLEACENTFND","LEA Centrally Held School Funds","3CNONSCH","Non Schools","REV","Revenue","R3327","The New Rush Hall School","99-NONBV","Capital, Balance Sheet and Control","99B","Accounting & Control","7451","LMS Bank Accounts Pilot","70055306","201404",17/07/2013 00:00:00,265195,"67981","Schools - Local Authority","REDACTED DATA","NEW RUSH HALL SCHOOL A/C","",,"246546447"
"London Borough of Redbridge","http://opendatacommunities.org/doc/london-borough-council/redbridge","3BLEACENTFND","LEA Centrally Held School Funds","3CNONSCH","Non Schools","REV","Revenue","R3321","Hatton School","99-NONBV","Capital, Balance Sheet and Control","99B","Accounting & Control","7451","LMS Bank Accounts Pilot","70055330","201404",18/07/2013 00:00:00,239626,"67981","Schools - Local Authority","REDACTED DATA","HATTON SCHOOL A/C","",,""
"London Borough of Redbridge","http://opendatacommunities.org/doc/london-borough-council/redbridge","9BNONBVO","Outside the BVACOP Objective Structure","9CNONBVO","Outside the BVACOP Objective Structure","REV","Revenue","R0027","General Fund Corporate Items","05-THIRD","Third Party Payments","05B","Joint authorities","6601","ELWA - Commercial Waste","70055694","201404",22/07/2013 00:00:00,194198.94,"79500","Trade Assoc & Regulatory Bodies","REDACTED DATA","ELWA LTD.","",,"805224756"
"London Borough of Redbridge","http://opendatacommunities.org/doc/london-borough-council/redbridge","3BLEACENTFND","LEA Centrally Held School Funds","3CASSURACCES","Assuring Access to Schools","REV","Revenue","R3859","PFI Sch Local Authority Liability","04-SUPPLIES","Supplies And Services","04I","PFI and Public Private Partnership Schemes","6000","PFI - Unitary Payment","60209129","201404",01/07/2013 00:00:00,193895.64,"21557","Construction Management","REDACTED DATA","NU SCHOOLS FOR REDBRIDGE LTD","",,"858914279"
"London Borough of Redbridge","http://opendatacommunities.org/doc/london-borough-council/redbridge","9BNONBVO","Outside the BVACOP Objective Structure","9CNONBVO","Outside the BVACOP Objective Structure","CAP","Capital","C4158","Mayespark Primary Expansion for 2012","99-NONBV","Capital, Balance Sheet and Control","50E","Capital - Contract Payments","9150","Main Contract","60209434","201404",01/07/2013 00:00:00,193502.23,"11560","Buildings - Sectional and Portable","REDACTED DATA","BUILT OFFSITE LTD","5395228","http://opencorporates.com/companies/gb/5395228","907075331"
"London Borough of Redbridge","http://opendatacommunities.org/doc/london-borough-council/redbridge","5BGFHOUSING","General Fund Housing","5CHOMELESS","Homelessness","REV","Revenue","R5630","HAC Temporary Accomodation","05-THIRD","Third Party Payments","05H","Private contractors","6916","Leasing Payments To Landlords","70055396","201404",30/06/2013 00:00:00,198207.13,"47846","Letting Agents","REDACTED DATA","OMEGA LETTINGS LTD","3662604","http://opencorporates.com/companies/gb/3662604","735892103"
"London Borough of Redbridge","http://opendatacommunities.org/doc/london-borough-council/redbridge","5BGFHOUSING","General Fund Housing","5CHOMELESS","Homelessness","REV","Revenue","R5630","HAC Temporary Accomodation","05-THIRD","Third Party Payments","05H","Private contractors","6916","Leasing Payments To Landlords","70055396","201404",30/06/2013 00:00:00,28227.7,"47846","Letting Agents","REDACTED DATA","OMEGA LETTINGS LTD","3662604","http://opencorporates.com/companies/gb/3662604","735892103"
"London Borough of Redbridge","http://opendatacommunities.org/doc/london-borough-council/redbridge","9BNONBVO","Outside the BVACOP Objective Structure","9CNONBVO","Outside the BVACOP Objective Structure","CAP","Capital","C4091","Mayfield - Add Sec Sch Places","99-NONBV","Capital, Balance Sheet and Control","50E","Capital - Contract Payments","9150","Main Contract","70055815","201404",18/07/2013 00:00:00,193086.45,"21555","Construction Contractors - General","REDACTED DATA","BOUYGUES (UK) LTD","3460378","http://opencorporates.com/companies/gb/3460378","704662446"
"London Borough of Redbridge","http://opendatacommunities.org/doc/london-borough-council/redbridge","3BLEACENTFND","LEA Centrally Held School Funds","3CNONSCH","Non Schools","REV","Revenue","R3323","Little Heath Foundation School","99-NONBV","Capital, Balance Sheet and Control","99B","Accounting & Control","7451","LMS Bank Accounts Pilot","70055155","201404",11/07/2013 00:00:00,212751,"67981","Schools - Local Authority","REDACTED DATA","LITTLE HEATH SCHOOL A/C","",,""
"London Borough of Redbridge","http://opendatacommunities.org/doc/london-borough-council/redbridge","5BGFHOUSING","General Fund Housing","5CHOMELESS","Homelessness","REV","Revenue","R5630","HAC Temporary Accomodation","05-THIRD","Third Party Payments","05H","Private contractors","6916","Leasing Payments To Landlords","70055418","201404",30/06/2013 00:00:00,185989.17,"47846","Letting Agents","REDACTED DATA","DABORA CONWAY LTD","2623262","http://opencorporates.com/companies/gb/2623262",""
"London Borough of Redbridge","http://opendatacommunities.org/doc/london-borough-council/redbridge","5BGFHOUSING","General Fund Housing","5CHOMELESS","Homelessness","REV","Revenue","R5630","HAC Temporary Accomodation","05-THIRD","Third Party Payments","05H","Private contractors","6916","Leasing Payments To Landlords","70055418","201404",30/06/2013 00:00:00,24448.98,"47846","Letting Agents","REDACTED DATA","DABORA CONWAY LTD","2623262","http://opencorporates.com/companies/gb/2623262",""
"London Borough of Redbridge","http://opendatacommunities.org/doc/london-borough-council/redbridge","6BADULTSOCIA","Adult Social Care","6CSERVSTRAT","Service Strategy","REV","Revenue","R4815","Drug Misuse - Adults","05-THIRD","Third Party Payments","05D","Health authorities","6704","NELFT","90431209","201404",19/06/2013 00:00:00,201590.8,"42200","Health Authorities","REDACTED DATA","NORTH EAST LONDON NHS FOUNDATION TRUST","",,"GB-654-4044-47"
"London Borough of Redbridge","http://opendatacommunities.org/doc/london-borough-council/redbridge","9BNONBVO","Outside the BVACOP Objective Structure","9CNONBVO","Outside the BVACOP Objective Structure","CAP","Capital","C4172","Chadwell Primary Expansion","99-NONBV","Capital, Balance Sheet and Control","50E","Capital - Contract Payments","9150","Main Contract","60209009","201404",24/06/2013 00:00:00,164604.84,"11371","Building Refurbishment and Restoration Contractors","REDACTED DATA","ISG CONSTRUCTION LTD","450103","http://opencorporates.com/companies/gb/450103","653587309"
"London Borough of Redbridge","http://opendatacommunities.org/doc/london-borough-council/redbridge","9BNONBVO","Outside the BVACOP Objective Structure","9CNONBVO","Outside the BVACOP Objective Structure","CAP","Capital","C4088","Loxford - Add Primary Sch Places","99-NONBV","Capital, Balance Sheet and Control","50B","Capital - Contracted Works","9092","Furniture Fixtures & Equipment","60209462","201404",04/07/2013 00:00:00,158762.11,"20623","Computer Consumables & Stationery","REDACTED DATA","XMA LIMITED","2051703","http://opencorporates.com/companies/gb/2051703",""
"London Borough of Redbridge","http://opendatacommunities.org/doc/london-borough-council/redbridge","9BNONBVO","Outside the BVACOP Objective Structure","9CNONBVO","Outside the BVACOP Objective Structure","CAP","Capital","C2104","Decent Homes","99-NONBV","Capital, Balance Sheet and Control","50E","Capital - Contract Payments","9150","Main Contract","70055214","201404",24/06/2013 00:00:00,140457.94,"61896","Property & Estate Management","REDACTED DATA","LOVELL PARTNERSHIPS LTD","2387333","http://opencorporates.com/companies/gb/2387333","705352557"
"London Borough of Redbridge","http://opendatacommunities.org/doc/london-borough-council/redbridge","3BLEACENTFND","LEA Centrally Held School Funds","3CNONSCH","Non Schools","REV","Revenue","R3323","Little Heath Foundation School","99-NONBV","Capital, Balance Sheet and Control","99B","Accounting & Control","7451","LMS Bank Accounts Pilot","70055297","201404",16/07/2013 00:00:00,160722,"67981","Schools - Local Authority","REDACTED DATA","LITTLE HEATH SCHOOL A/C","",,""
"London Borough of Redbridge","http://opendatacommunities.org/doc/london-borough-council/redbridge","3BLEACENTFND","LEA Centrally Held School Funds","3CFACILIMPRO","Facilitating School Improvement","REV","Revenue","R3362","Young People's Substance Misuse","05-THIRD","Third Party Payments","05A","Independent units within the council","6513","Agency & Contracted Services","60207696","201404",13/06/2013 00:00:00,143290,"42200","Health Authorities","REDACTED DATA","NORTH EAST LONDON NHS FOUNDATION TRUST","",,"GB-654-4044-47"
"London Borough of Redbridge","http://opendatacommunities.org/doc/london-borough-council/redbridge","9BNONBVO","Outside the BVACOP Objective Structure","9CNONBVO","Outside the BVACOP Objective Structure","CAP","Capital","C2106","External","99-NONBV","Capital, Balance Sheet and Control","50E","Capital - Contract Payments","9150","Main Contract","60208867","201404",28/06/2013 00:00:00,112936,"14789","Heating Services - Industrial and Commercial","REDACTED DATA","KENT HEATING SERVICES LTD","2980525","http://opencorporates.com/companies/gb/2980525","653112176"
"London Borough of Redbridge","http://opendatacommunities.org/doc/london-borough-council/redbridge","3BNONSCHFUND","Non-School Funding","3CYOUTH","Youth Service","REV","Revenue","R3478","Connexions","05-THIRD","Third Party Payments","05H","Private contractors","6915","Contractor Payments","60210152","201404",10/07/2013 00:00:00,110000,"14850","Career Guidance Services","REDACTED DATA","BABCOCK CAREERS GUIDANCE LTD","2961588","http://opencorporates.com/companies/gb/2961588","698815563"
"London Borough of Redbridge","http://opendatacommunities.org/doc/london-borough-council/redbridge","6BADULTSOCIA","Adult Social Care","6CSERVSTRAT","Service Strategy","REV","Revenue","R4815","Drug Misuse - Adults","05-THIRD","Third Party Payments","05D","Health authorities","6704","NELFT","90431210","201404",19/06/2013 00:00:00,125994.25,"42200","Health Authorities","REDACTED DATA","NORTH EAST LONDON NHS FOUNDATION TRUST","",,"GB-654-4044-47"
"London Borough of Redbridge","http://opendatacommunities.org/doc/london-borough-council/redbridge","6BADULTSOCIA","Adult Social Care","6CADPHYSDIS","Adults Under 65 with Phys Disab or Sensory Impair","REV","Revenue","R4138","Integrated Community Equipment Services (ICES)","04-SUPPLIES","Supplies And Services","04K","Miscellaneous expenses","6239","Occupational Therapy Equip","60210108","201404",30/06/2013 00:00:00,104281.65,"51520","Mobility Equipment","REDACTED DATA","MILLBROOK HEALTHCARE LTD","833987","http://opencorporates.com/companies/gb/833987","675991080"
"London Borough of Redbridge","http://opendatacommunities.org/doc/london-borough-council/redbridge","9BNONBVO","Outside the BVACOP Objective Structure","9CNONBVO","Outside the BVACOP Objective Structure","CAP","Capital","C2254","Radial Corridor 1 TFL","99-NONBV","Capital, Balance Sheet and Control","50E","Capital - Contract Payments","9150","Main Contract","3290454","201404",18/07/2013 00:00:00,102616.42,"18632","Civil Engineers","REDACTED DATA","KENSON CONTRACTORS BENINGTON LTD","1314691","http://opencorporates.com/companies/gb/1314691","301629589"
"London Borough of Redbridge","http://opendatacommunities.org/doc/london-borough-council/redbridge","3BINDSCHFUND","Individual School Funds","3CDELSECOND","Delegated Individual Secondary School Budgets","REV","Revenue","R3632","King Solomon High School","99-NONBV","Capital, Balance Sheet and Control","99B","Accounting & Control","7451","LMS Bank Accounts Pilot","70055332","201404",18/07/2013 00:00:00,120000,"67981","Schools - Local Authority","REDACTED DATA","KING SOLOMON HIGH SCHOOL A/C","",,""
"London Borough of Redbridge","http://opendatacommunities.org/doc/london-borough-council/redbridge","9BNONBVO","Outside the BVACOP Objective Structure","9CNONBVO","Outside the BVACOP Objective Structure","CAP","Capital","C2246","Major Schemes Manford Way TFL","99-NONBV","Capital, Balance Sheet and Control","50E","Capital - Contract Payments","9150","Main Contract","3288722","201404",01/07/2013 00:00:00,100000,"18632","Civil Engineers","REDACTED DATA","KENSON CONTRACTORS BENINGTON LTD","1314691","http://opencorporates.com/companies/gb/1314691","301629589"
"London Borough of Redbridge","http://opendatacommunities.org/doc/london-borough-council/redbridge","9BNONBVO","Outside the BVACOP Objective Structure","9CNONBVO","Outside the BVACOP Objective Structure","BAL","Balance Sheet","B2001","Insurance Fund","99-NONBV","Capital, Balance Sheet and Control","50K","Current Assets","9314","Advance To MMI","70055265","201404",01/07/2013 00:00:00,119947.52,"45415","Insurance - Other","REDACTED DATA","ZURICH MUNICIPAL","",,""
"London Borough of Redbridge","http://opendatacommunities.org/doc/london-borough-council/redbridge","9BNONBVO","Outside the BVACOP Objective Structure","9CNONBVO","Outside the BVACOP Objective Structure","CAP","Capital","C4195","Wanstead High School Science Laboratories","99-NONBV","Capital, Balance Sheet and Control","50E","Capital - Contract Payments","9150","Main Contract","70055296","201404",15/07/2013 00:00:00,96902.87,"11040","Builders","REDACTED DATA","CHIGWELL CONSTRUCTION PLC","3222384","http://opencorporates.com/companies/gb/3222384","696535386"
"London Borough of Redbridge","http://opendatacommunities.org/doc/london-borough-council/redbridge","3BLEACENTFND","LEA Centrally Held School Funds","3CNONSCH","Non Schools","REV","Revenue","R2235","Special Schools Budget","99-NONBV","Capital, Balance Sheet and Control","99B","Accounting & Control","7480","Payments To Schools","60210647","201404",10/07/2013 00:00:00,113000,"67981","Schools - Local Authority","REDACTED DATA","JOSEPH CLARKE SERVICE (LBWF)","",,""
"London Borough of Redbridge","http://opendatacommunities.org/doc/london-borough-council/redbridge","9BNONBVO","Outside the BVACOP Objective Structure","9CNONBVO","Outside the BVACOP Objective Structure","CAP","Capital","C4171","Downshall Primary Expansion","99-NONBV","Capital, Balance Sheet and Control","50E","Capital - Contract Payments","9150","Main Contract","60209011","201404",27/06/2013 00:00:00,92590.97,"11371","Building Refurbishment and Restoration Contractors","REDACTED DATA","ISG CONSTRUCTION LTD","450103","http://opencorporates.com/companies/gb/450103","653587309"
"London Borough of Redbridge","http://opendatacommunities.org/doc/london-borough-council/redbridge","9BNONBVO","Outside the BVACOP Objective Structure","9CNONBVO","Outside the BVACOP Objective Structure","CAP","Capital","C2106","External","99-NONBV","Capital, Balance Sheet and Control","50E","Capital - Contract Payments","9150","Main Contract","60208866","201404",28/06/2013 00:00:00,90196.8,"14789","Heating Services - Industrial and Commercial","REDACTED DATA","KENT HEATING SERVICES LTD","2980525","http://opencorporates.com/companies/gb/2980525","653112176"
"London Borough of Redbridge","http://opendatacommunities.org/doc/london-borough-council/redbridge","4BMANGT&SUPP","Management & Support Services","4CHIGHRDROUT","Highways/Roads (Routine)","REV","Revenue","R7064","Markings and Traffic Lights","05-THIRD","Third Party Payments","05E","Government departments","6751","Services Of Government Departments","60209198","201404",04/07/2013 00:00:00,105506.66,"48583","Local Government","REDACTED DATA","TFL SURFACE TRANSPORT","",,"756276990"
"London Borough of Redbridge","http://opendatacommunities.org/doc/london-borough-council/redbridge","3BLEACENTFND","LEA Centrally Held School Funds","3CNONSCH","Non Schools","REV","Revenue","R3327","The New Rush Hall School","99-NONBV","Capital, Balance Sheet and Control","99B","Accounting & Control","7451","LMS Bank Accounts Pilot","70055331","201404",18/07/2013 00:00:00,105184,"67981","Schools - Local Authority","REDACTED DATA","NEW RUSH HALL SCHOOL A/C","",,"246546447"
"London Borough of Redbridge","http://opendatacommunities.org/doc/london-borough-council/redbridge","9BNONBVO","Outside the BVACOP Objective Structure","9CNONBVO","Outside the BVACOP Objective Structure","CAP","Capital","C4174","Barley Lane Primary Expansion","99-NONBV","Capital, Balance Sheet and Control","50E","Capital - Contract Payments","9150","Main Contract","60209010","201404",27/06/2013 00:00:00,85970.12,"11371","Building Refurbishment and Restoration Contractors","REDACTED DATA","ISG CONSTRUCTION LTD","450103","http://opencorporates.com/companies/gb/450103","653587309"
"London Borough of Redbridge","http://opendatacommunities.org/doc/london-borough-council/redbridge","9BNONBVO","Outside the BVACOP Objective Structure","9CNONBVO","Outside the BVACOP Objective Structure","REV","Revenue","R0025","Business Rate Supplement - NNDR","05-THIRD","Third Party Payments","05E","Government departments","6283","Business Rate Supplement","60209814","201404",16/04/2013 00:00:00,102328,"48583","Local Government","REDACTED DATA","GREATER LONDON AUTHORITY","",,""
"London Borough of Redbridge","http://opendatacommunities.org/doc/london-borough-council/redbridge","9BNONBVO","Outside the BVACOP Objective Structure","9CNONBVO","Outside the BVACOP Objective Structure","CAP","Capital","C2113","CESP","99-NONBV","Capital, Balance Sheet and Control","50E","Capital - Contract Payments","9150","Main Contract","60210913","201404",11/07/2013 00:00:00,83222,"11371","Building Refurbishment and Restoration Contractors","REDACTED DATA","CARILLION ENERGY SERVICES LTD","3858865","http://opencorporates.com/companies/gb/3858865","734312950"
"London Borough of Redbridge","http://opendatacommunities.org/doc/london-borough-council/redbridge","4BPUBLICTRAN","Public Transport","4CPARKING","Parking Services","REV","Revenue","R7037","Parking Enforcements Non CCTV","05-THIRD","Third Party Payments","05H","Private contractors","6911","Parking Enforcement Contract","60209442","201404",24/06/2013 00:00:00,81972.1,"13750","Car Parking and Garaging","REDACTED DATA","APCOA PARKING (UK) LTD","2572947","http://opencorporates.com/companies/gb/2572947","674177607"
"London Borough of Redbridge","http://opendatacommunities.org/doc/london-borough-council/redbridge","5BGFHOUSING","General Fund Housing","5CHOMELESS","Homelessness","REV","Revenue","R5630","HAC Temporary Accomodation","05-THIRD","Third Party Payments","05H","Private contractors","6913","Nightly Let Charges","70055354","201404",01/07/2013 00:00:00,97230,"47846","Letting Agents","REDACTED DATA","LETTING INTERNATIONAL LTD","3425414","http://opencorporates.com/companies/gb/3425414","710849440"
"London Borough of Redbridge","http://opendatacommunities.org/doc/london-borough-council/redbridge","9BNONBVO","Outside the BVACOP Objective Structure","9CNONBVO","Outside the BVACOP Objective Structure","CAP","Capital","C2104","Decent Homes","99-NONBV","Capital, Balance Sheet and Control","50E","Capital - Contract Payments","9150","Main Contract","70054856","201404",24/06/2013 00:00:00,80661.08,"61896","Property & Estate Management","REDACTED DATA","MITIE PROPERTY SERVICES(UK) LTD SOUTHERN","2935593","http://opencorporates.com/companies/gb/2935593","633466535"
"London Borough of Redbridge","http://opendatacommunities.org/doc/london-borough-council/redbridge","9BNONBVO","Outside the BVACOP Objective Structure","9CNONBVO","Outside the BVACOP Objective Structure","CAP","Capital","C2113","CESP","99-NONBV","Capital, Balance Sheet and Control","50E","Capital - Contract Payments","9150","Main Contract","60208841","201404",13/06/2013 00:00:00,75968,"11371","Building Refurbishment and Restoration Contractors","REDACTED DATA","CARILLION ENERGY SERVICES LTD","3858865","http://opencorporates.com/companies/gb/3858865","734312950"
"London Borough of Redbridge","http://opendatacommunities.org/doc/london-borough-council/redbridge","9BNONBVO","Outside the BVACOP Objective Structure","9CNONBVO","Outside the BVACOP Objective Structure","BAL","Balance Sheet","B0228","MAYOR'S C.I.L","99-NONBV","Capital, Balance Sheet and Control","50Q","Other Balances & Reserves","9912","Personal Account - Creditor","70055097","201404",09/07/2013 00:00:00,90327.58,"48583","Local Government","REDACTED DATA","TRANSPORT FOR LONDON (COMMUNITY INFRASTRUCTURE LEVY)","",,""
"London Borough of Redbridge","http://opendatacommunities.org/doc/london-borough-council/redbridge","2BCULTUR&REL","Cultural & Related Services","2COPENSPACES","Open Spaces","REV","Revenue","R6761","Community Police Teams","01-EMPLOYEES","Employees","01A","Direct employee expenses","21","General Staff - Pay","60210607","201404",17/07/2013 00:00:00,86125,"60064","Police","REDACTED DATA","MAYOR'S OFFICE FOR POLICING & CRIME (MOPC)","",,"239015084"
"London Borough of Redbridge","http://opendatacommunities.org/doc/london-borough-council/redbridge","3BNONSCHFUND","Non-School Funding","3CNONSCH","Non Schools","REV","Revenue","R2090","SEN Recoupment DSG","05-THIRD","Third Party Payments","05C","Other local authorities","6650","Other Local Authorities","60211020","201404",18/07/2013 00:00:00,77193,"48583","Local Government","REDACTED DATA","LONDON BOROUGH OF WANDSWORTH","",,"216259470"
"London Borough of Redbridge","http://opendatacommunities.org/doc/london-borough-council/redbridge","2BPLAN&DEVEL","Planning & Development Services","2CCOMMDEVT","Community Development","REV","Revenue","R9854","Voluntary Sector Support","05-THIRD","Third Party Payments","05C","Other local authorities","6651","London Council Grants Scheme","60209291","201404",01/07/2013 00:00:00,77174.75,"48583","Local Government","REDACTED DATA","CITY OF LONDON(LONDON COUNCILS)","",,"766069205"
"London Borough of Redbridge","http://opendatacommunities.org/doc/london-borough-council/redbridge","1BOTHEROPI&E","Other Operating Income & Expenditure","1CTRADSURDEF","Trading Account Surpluses & Deficits","REV","Revenue","R9609","Queen Victoria House","02-PREMISES","Premises","02A","Repairs, alteration and maintenance of buildings","3001","Major Works Programme","70055536","201404",22/07/2013 00:00:00,63573.25,"11040","Builders","REDACTED DATA","M & G CONSTRUCTION LTD.","1918880","http://opencorporates.com/companies/gb/1918880","406392853"
"London Borough of Redbridge","http://opendatacommunities.org/doc/london-borough-council/redbridge","4BMANGT&SUPP","Management & Support Services","4CHIGHRDROUT","Highways/Roads (Routine)","REV","Revenue","R7061","Lighting Energy","05-THIRD","Third Party Payments","05H","Private contractors","6915","Contractor Payments","80004048","201404",21/05/2013 00:00:00,61489.78,"39564","Gas Companies","REDACTED DATA","KENT COUNTY COUNCIL (GAS & ELECTRIC)","",,"204269191"
"London Borough of Redbridge","http://opendatacommunities.org/doc/london-borough-council/redbridge","5BGFHOUSING","General Fund Housing","5CHOMELESS","Homelessness","REV","Revenue","R5630","HAC Temporary Accomodation","05-THIRD","Third Party Payments","05H","Private contractors","6900","Nightly Let Plus Charges","70055672","201404",22/07/2013 00:00:00,59096.61,"47846","Letting Agents","REDACTED DATA","FINEFAIR CONSULTANCY  LTD(NIGHTLY LETS)","4661895","http://opencorporates.com/companies/gb/4661895","809945391"
"London Borough of Redbridge","http://opendatacommunities.org/doc/london-borough-council/redbridge","6BADULTSOCIA","Adult Social Care","6CADLEARNDIS","Adults Under 65 with Learning Disabilities","REV","Revenue","R4185","LD - Supported Living","06-TRANSFER","Transfer Payments","06B","Social Services Clients","7066","Supportive Lodgings (Transfer Payments)","90430872","201404",18/07/2013 00:00:00,70757.86,"64710","Residential Care Homes","REDACTED DATA","CMG HOMES LIMITED (THE POINTE)","2992839","http://opencorporates.com/companies/gb/2992839",""
"London Borough of Redbridge","http://opendatacommunities.org/doc/london-borough-council/redbridge","5BGFHOUSING","General Fund Housing","5CHOMELESS","Homelessness","REV","Revenue","R5630","HAC Temporary Accomodation","05-THIRD","Third Party Payments","05H","Private contractors","6900","Nightly Let Plus Charges","70055661","201404",30/06/2013 00:00:00,58362.72,"32695","Estate Agents and Property Buyers","REDACTED DATA","WENTWORTH HOUSING LTD T/A WENTWORTH ESTATES","44388822","http://opencorporates.com/companies/gb/44388822",""
"London Borough of Redbridge","http://opendatacommunities.org/doc/london-borough-council/redbridge","5BGFHOUSING","General Fund Housing","5CHOMELESS","Homelessness","REV","Revenue","R5630","HAC Temporary Accomodation","05-THIRD","Third Party Payments","05H","Private contractors","6900","Nightly Let Plus Charges","70055084","201404",31/05/2013 00:00:00,57418.01,"32695","Estate Agents and Property Buyers","REDACTED DATA","WENTWORTH HOUSING LTD T/A WENTWORTH ESTATES","44388822","http://opencorporates.com/companies/gb/44388822",""
"London Borough of Redbridge","http://opendatacommunities.org/doc/london-borough-council/redbridge","3BLEACENTFND","LEA Centrally Held School Funds","3CNONSCH","Non Schools","REV","Revenue","R3258","ISS Paid School Meals","05-THIRD","Third Party Payments","05A","Independent units within the council","6513","Agency & Contracted Services","70055696","201404",26/07/2013 00:00:00,67747.94,"16270","Catering Schools","REDACTED DATA","ISS CATERHOUSE - ISS MEDICLEAN LTD(EDUCATION CATERING CASH COLLECTIONS)","1659837","http://opencorporates.com/companies/gb/1659837",""
"London Borough of Redbridge","http://opendatacommunities.org/doc/london-borough-council/redbridge","3BINDSCHFUND","Individual School Funds","3CDELPRIMARY","Delegated Individual Primary School Budgets","REV","Revenue","R3588","Avanti Court Primary School","99-NONBV","Capital, Balance Sheet and Control","99B","Accounting & Control","7451","LMS Bank Accounts Pilot","70055156","201404",11/07/2013 00:00:00,65361,"67981","Schools - Local Authority","REDACTED DATA","AVANTI COURT PRIMARY SCHOOL","",,"246546447"
"London Borough of Redbridge","http://opendatacommunities.org/doc/london-borough-council/redbridge","5BGFHOUSING","General Fund Housing","5CHOMELESS","Homelessness","REV","Revenue","R5630","HAC Temporary Accomodation","05-THIRD","Third Party Payments","05H","Private contractors","6916","Leasing Payments To Landlords","70054944","201404",28/06/2013 00:00:00,55674.67,"47846","Letting Agents","REDACTED DATA","LETTING INTERNATIONAL LTD","3425414","http://opencorporates.com/companies/gb/3425414","710849440"
"London Borough of Redbridge","http://opendatacommunities.org/doc/london-borough-council/redbridge","5BGFHOUSING","General Fund Housing","5CHOMELESS","Homelessness","REV","Revenue","R5630","HAC Temporary Accomodation","05-THIRD","Third Party Payments","05H","Private contractors","6916","Leasing Payments To Landlords","70054944","201404",28/06/2013 00:00:00,6969.33,"47846","Letting Agents","REDACTED DATA","LETTING INTERNATIONAL LTD","3425414","http://opencorporates.com/companies/gb/3425414","710849440"
"London Borough of Redbridge","http://opendatacommunities.org/doc/london-borough-council/redbridge","6BADULTSOCIA","Adult Social Care","6COLDINCMENT","Older People (65 or over) incl. Older Mentally Ill","REV","Revenue","R4381","Advocacy Contract","05-THIRD","Third Party Payments","05F","Voluntary associations","6800","Voluntary Organisations","90434021","201404",07/06/2013 00:00:00,24936.99,"22570","Counselling & Advice Services","REDACTED DATA","VOICEABILITY ADVOCACY","3798884","http://opencorporates.com/companies/gb/3798884","834575703"
"London Borough of Redbridge","http://opendatacommunities.org/doc/london-borough-council/redbridge","6BADULTSOCIA","Adult Social Care","6COLDINCMENT","Older People (65 or over) incl. Older Mentally Ill","REV","Revenue","R4381","Advocacy Contract","05-THIRD","Third Party Payments","05F","Voluntary associations","6800","Voluntary Organisations","90434021","201404",07/06/2013 00:00:00,22438.93,"22570","Counselling & Advice Services","REDACTED DATA","VOICEABILITY ADVOCACY","3798884","http://opencorporates.com/companies/gb/3798884","834575703"
"London Borough of Redbridge","http://opendatacommunities.org/doc/london-borough-council/redbridge","6BADULTSOCIA","Adult Social Care","6COLDINCMENT","Older People (65 or over) incl. Older Mentally Ill","REV","Revenue","R4381","Advocacy Contract","05-THIRD","Third Party Payments","05F","Voluntary associations","6800","Voluntary Organisations","90434021","201404",07/06/2013 00:00:00,15623.18,"22570","Counselling & Advice Services","REDACTED DATA","VOICEABILITY ADVOCACY","3798884","http://opencorporates.com/companies/gb/3798884","834575703"
"London Borough of Redbridge","http://opendatacommunities.org/doc/london-borough-council/redbridge","4BMANGT&SUPP","Management & Support Services","4CHIGHRDROUT","Highways/Roads (Routine)","REV","Revenue","R7061","Lighting Energy","05-THIRD","Third Party Payments","05H","Private contractors","6915","Contractor Payments","80004105","201404",13/06/2013 00:00:00,52379.87,"39564","Gas Companies","REDACTED DATA","KENT COUNTY COUNCIL (GAS & ELECTRIC)","",,"204269191"
"London Borough of Redbridge","http://opendatacommunities.org/doc/london-borough-council/redbridge","3BLEACENTFND","LEA Centrally Held School Funds","3CNONSCH","Non Schools","REV","Revenue","R3258","ISS Paid School Meals","05-THIRD","Third Party Payments","05A","Independent units within the council","6513","Agency & Contracted Services","70054985","201404",05/07/2013 00:00:00,62554.12,"16270","Catering Schools","REDACTED DATA","ISS CATERHOUSE - ISS MEDICLEAN LTD(EDUCATION CATERING CASH COLLECTIONS)","1659837","http://opencorporates.com/companies/gb/1659837",""
"London Borough of Redbridge","http://opendatacommunities.org/doc/london-borough-council/redbridge","6BADULTSOCIA","Adult Social Care","6CADPHYSDIS","Adults Under 65 with Phys Disab or Sensory Impair","REV","Revenue","R4406","PD Voluntary Contracts","05-THIRD","Third Party Payments","05F","Voluntary associations","6800","Voluntary Organisations","90426536","201404",07/06/2013 00:00:00,50410.87,"17020","Charities and Voluntary Organisations","REDACTED DATA","RNID T/AS ACTION ON HEARING LOSS","454169","http://opencorporates.com/companies/gb/454169","564524337"
"London Borough of Redbridge","http://opendatacommunities.org/doc/london-borough-council/redbridge","6BADULTSOCIA","Adult Social Care","6CADPHYSDIS","Adults Under 65 with Phys Disab or Sensory Impair","REV","Revenue","R4406","PD Voluntary Contracts","05-THIRD","Third Party Payments","05F","Voluntary associations","6800","Voluntary Organisations","90426536","201404",07/06/2013 00:00:00,-410.87,"17020","Charities and Voluntary Organisations","REDACTED DATA","RNID T/AS ACTION ON HEARING LOSS","454169","http://opencorporates.com/companies/gb/454169","564524337"
"London Borough of Redbridge","http://opendatacommunities.org/doc/london-borough-council/redbridge","9BNONBVO","Outside the BVACOP Objective Structure","9CNONBVO","Outside the BVACOP Objective Structure","CAP","Capital","C4195","Wanstead High School Science Laboratories","99-NONBV","Capital, Balance Sheet and Control","50E","Capital - Contract Payments","9150","Main Contract","70054858","201404",27/06/2013 00:00:00,49347.13,"11040","Builders","REDACTED DATA","CHIGWELL CONSTRUCTION PLC","3222384","http://opencorporates.com/companies/gb/3222384","696535386"
"London Borough of Redbridge","http://opendatacommunities.org/doc/london-borough-council/redbridge","3BLEACENTFND","LEA Centrally Held School Funds","3CNONSCH","Non Schools","REV","Revenue","R3258","ISS Paid School Meals","05-THIRD","Third Party Payments","05A","Independent units within the council","6513","Agency & Contracted Services","70055188","201404",12/07/2013 00:00:00,58983.62,"16270","Catering Schools","REDACTED DATA","ISS CATERHOUSE - ISS MEDICLEAN LTD(EDUCATION CATERING CASH COLLECTIONS)","1659837","http://opencorporates.com/companies/gb/1659837",""
"London Borough of Redbridge","http://opendatacommunities.org/doc/london-borough-council/redbridge","5BGFHOUSING","General Fund Housing","5CHOMELESS","Homelessness","REV","Revenue","R5630","HAC Temporary Accomodation","05-THIRD","Third Party Payments","05H","Private contractors","6916","Leasing Payments To Landlords","70055053","201404",30/06/2013 00:00:00,49164.67,"47846","Letting Agents","REDACTED DATA","BRIAN THOMAS ESTATE AGENTS LTD","8140245","http://opencorporates.com/companies/gb/8140245","164151625"
"London Borough of Redbridge","http://opendatacommunities.org/doc/london-borough-council/redbridge","5BGFHOUSING","General Fund Housing","5CHOMELESS","Homelessness","REV","Revenue","R5630","HAC Temporary Accomodation","05-THIRD","Third Party Payments","05H","Private contractors","6916","Leasing Payments To Landlords","70055053","201404",30/06/2013 00:00:00,6266.4,"47846","Letting Agents","REDACTED DATA","BRIAN THOMAS ESTATE AGENTS LTD","8140245","http://opencorporates.com/companies/gb/8140245","164151625"
"London Borough of Redbridge","http://opendatacommunities.org/doc/london-borough-council/redbridge","3BLEACENTFND","LEA Centrally Held School Funds","3CNONSCH","Non Schools","REV","Revenue","R3258","ISS Paid School Meals","05-THIRD","Third Party Payments","05A","Independent units within the council","6513","Agency & Contracted Services","70055374","201404",19/07/2013 00:00:00,56634.57,"16270","Catering Schools","REDACTED DATA","ISS CATERHOUSE - ISS MEDICLEAN LTD(EDUCATION CATERING CASH COLLECTIONS)","1659837","http://opencorporates.com/companies/gb/1659837",""
"London Borough of Redbridge","http://opendatacommunities.org/doc/london-borough-council/redbridge","5BGFHOUSING","General Fund Housing","5CHOMELESS","Homelessness","REV","Revenue","R5630","HAC Temporary Accomodation","05-THIRD","Third Party Payments","05H","Private contractors","6900","Nightly Let Plus Charges","70055355","201404",01/07/2013 00:00:00,56095.2,"47846","Letting Agents","REDACTED DATA","LETTING INTERNATIONAL LTD","3425414","http://opencorporates.com/companies/gb/3425414","710849440"
"London Borough of Redbridge","http://opendatacommunities.org/doc/london-borough-council/redbridge","5BGFHOUSING","General Fund Housing","5CHOMELESS","Homelessness","REV","Revenue","R5629","HAC Assessment","04-SUPPLIES","Supplies And Services","04K","Miscellaneous expenses","6282","Prevention & Procurement","70054927","201404",01/04/2013 00:00:00,55800,"47846","Letting Agents","REDACTED DATA","THEORI INVESTMENTS LIMITED","4048450","http://opencorporates.com/companies/gb/4048450","773898950"
"London Borough of Redbridge","http://opendatacommunities.org/doc/london-borough-council/redbridge","3BLEACENTFND","LEA Centrally Held School Funds","3CNONSCH","Non Schools","REV","Revenue","R2234","Colleges and ISP Top up fees","99-NONBV","Capital, Balance Sheet and Control","99B","Accounting & Control","7433","OOB Post 16 Top Up","60211021","201404",18/07/2013 00:00:00,44000,"14850","Career Guidance Services","REDACTED DATA","BABCOCK CAREERS GUIDANCE LTD","2961588","http://opencorporates.com/companies/gb/2961588","698815563"
"London Borough of Redbridge","http://opendatacommunities.org/doc/london-borough-council/redbridge","9BNONBVO","Outside the BVACOP Objective Structure","9CNONBVO","Outside the BVACOP Objective Structure","CAP","Capital","C4195","Wanstead High School Science Laboratories","99-NONBV","Capital, Balance Sheet and Control","50E","Capital - Contract Payments","9150","Main Contract","70055624","201404",16/07/2013 00:00:00,43750,"11040","Builders","REDACTED DATA","CHIGWELL CONSTRUCTION PLC","3222384","http://opencorporates.com/companies/gb/3222384","696535386"
"London Borough of Redbridge","http://opendatacommunities.org/doc/london-borough-council/redbridge","6BADULTSOCIA","Adult Social Care","6CSERVSTRAT","Service Strategy","REV","Revenue","R4815","Drug Misuse - Adults","05-THIRD","Third Party Payments","05F","Voluntary associations","6800","Voluntary Organisations","90423819","201404",19/06/2013 00:00:00,52279.04,"17020","Charities and Voluntary Organisations","REDACTED DATA","ARP CHARITABLE SERVICES","",,""
"London Borough of Redbridge","http://opendatacommunities.org/doc/london-borough-council/redbridge","9BNONBVO","Outside the BVACOP Objective Structure","9CNONBVO","Outside the BVACOP Objective Structure","CAP","Capital","C4216","Barley Lane Replacement Classwroom","99-NONBV","Capital, Balance Sheet and Control","50E","Capital - Contract Payments","9150","Main Contract","60208984","201404",26/06/2013 00:00:00,43416.71,"11560","Buildings - Sectional and Portable","REDACTED DATA","INTEGRA BUILDINGS LTD","3386037","http://opencorporates.com/companies/gb/3386037","687036704"
"London Borough of Redbridge","http://opendatacommunities.org/doc/london-borough-council/redbridge","9BNONBVO","Outside the BVACOP Objective Structure","9CNONBVO","Outside the BVACOP Objective Structure","REV","Revenue","R5011","Housing General Management","05-THIRD","Third Party Payments","05A","Independent units within the council","6508","Ray Lodge TMO Allowance","70054925","201404",02/07/2013 00:00:00,42500,"61961","Property Maintenance & Repairs","REDACTED DATA","RAY LODGE TENANT MANAGEMENT","28710R","http://opencorporates.com/companies/gb/28710R","743721634"
"London Borough of Redbridge","http://opendatacommunities.org/doc/london-borough-council/redbridge","9BNONBVO","Outside the BVACOP Objective Structure","9CNONBVO","Outside the BVACOP Objective Structure","CAP","Capital","C2104","Decent Homes","99-NONBV","Capital, Balance Sheet and Control","50E","Capital - Contract Payments","9150","Main Contract","70054854","201404",24/06/2013 00:00:00,42042.53,"61896","Property & Estate Management","REDACTED DATA","MITIE PROPERTY SERVICES(UK) LTD SOUTHERN","2935593","http://opencorporates.com/companies/gb/2935593","633466535"
"London Borough of Redbridge","http://opendatacommunities.org/doc/london-borough-council/redbridge","6BADULTSOCIA","Adult Social Care","6CADLEARNDIS","Adults Under 65 with Learning Disabilities","REV","Revenue","R4185","LD - Supported Living","06-TRANSFER","Transfer Payments","06B","Social Services Clients","7066","Supportive Lodgings (Transfer Payments)","90434315","201404",17/07/2013 00:00:00,72671.24,"17020","Charities and Voluntary Organisations","REDACTED DATA","MENCAP","550457","http://opencorporates.com/companies/gb/550457","233010136"
"London Borough of Redbridge","http://opendatacommunities.org/doc/london-borough-council/redbridge","6BADULTSOCIA","Adult Social Care","6CADLEARNDIS","Adults Under 65 with Learning Disabilities","REV","Revenue","R4185","LD - Supported Living","06-TRANSFER","Transfer Payments","06B","Social Services Clients","7066","Supportive Lodgings (Transfer Payments)","90434315","201404",17/07/2013 00:00:00,-22241.46,"17020","Charities and Voluntary Organisations","REDACTED DATA","MENCAP","550457","http://opencorporates.com/companies/gb/550457","233010136"
"London Borough of Redbridge","http://opendatacommunities.org/doc/london-borough-council/redbridge","9BNONBVO","Outside the BVACOP Objective Structure","9CNONBVO","Outside the BVACOP Objective Structure","CAP","Capital","C1199","Central Library Lift Replacement","99-NONBV","Capital, Balance Sheet and Control","50E","Capital - Contract Payments","9150","Main Contract","70055185","201404",11/07/2013 00:00:00,38791,"47960","Lifts - Servicing & Repairs","REDACTED DATA","PRECISION LIFT SERVICES LTD","3213600","http://opencorporates.com/companies/gb/3213600","672553619"
"London Borough of Redbridge","http://opendatacommunities.org/doc/london-borough-council/redbridge","6BADULTSOCIA","Adult Social Care","6CSERVSTRAT","Service Strategy","REV","Revenue","R4806","SH Advice, Prevention & Promotion","05-THIRD","Third Party Payments","05F","Voluntary associations","6800","Voluntary Organisations","90423804","201404",29/04/2013 00:00:00,46471.2,"17020","Charities and Voluntary Organisations","REDACTED DATA","TERRENCE HIGGINS TRUST","1778149","http://opencorporates.com/companies/gb/1778149","564614042"
"London Borough of Redbridge","http://opendatacommunities.org/doc/london-borough-council/redbridge","5BGFHOUSING","General Fund Housing","5CHOMELESS","Homelessness","REV","Revenue","R5630","HAC Temporary Accomodation","05-THIRD","Third Party Payments","05H","Private contractors","6916","Leasing Payments To Landlords","70054895","201404",31/05/2013 00:00:00,39239.62,"47846","Letting Agents","REDACTED DATA","LOCATIONS CEK LTD (IDEAL LOCATIONS UK LTD)","6621620","http://opencorporates.com/companies/gb/6621620","837942391"
"London Borough of Redbridge","http://opendatacommunities.org/doc/london-borough-council/redbridge","5BGFHOUSING","General Fund Housing","5CHOMELESS","Homelessness","REV","Revenue","R5630","HAC Temporary Accomodation","05-THIRD","Third Party Payments","05H","Private contractors","6916","Leasing Payments To Landlords","70054895","201404",31/05/2013 00:00:00,5433.12,"47846","Letting Agents","REDACTED DATA","LOCATIONS CEK LTD (IDEAL LOCATIONS UK LTD)","6621620","http://opencorporates.com/companies/gb/6621620","837942391"
"London Borough of Redbridge","http://opendatacommunities.org/doc/london-borough-council/redbridge","3BNONSCHFUND","Non-School Funding","3CNONSCH","Non Schools","REV","Revenue","R2090","SEN Recoupment DSG","05-THIRD","Third Party Payments","05C","Other local authorities","6650","Other Local Authorities","60211366","201404",22/07/2013 00:00:00,44612.21,"48583","Local Government","REDACTED DATA","HERTFORDSHIRE COUNTY COUNCIL","",,"214527877"
"London Borough of Redbridge","http://opendatacommunities.org/doc/london-borough-council/redbridge","9BNONBVO","Outside the BVACOP Objective Structure","9CNONBVO","Outside the BVACOP Objective Structure","CAP","Capital","C2203","Accident Remediation Local Safety TFL","99-NONBV","Capital, Balance Sheet and Control","50E","Capital - Contract Payments","9150","Main Contract","3288489","201404",03/07/2013 00:00:00,37000,"18632","Civil Engineers","REDACTED DATA","KENSON CONTRACTORS BENINGTON LTD","1314691","http://opencorporates.com/companies/gb/1314691","301629589"
"London Borough of Redbridge","http://opendatacommunities.org/doc/london-borough-council/redbridge","6BADULTSOCIA","Adult Social Care","6CSERVSTRAT","Service Strategy","REV","Revenue","R4818","Stop Smoking Service & Interventions","05-THIRD","Third Party Payments","05D","Health authorities","6704","NELFT","90423815","201404",19/06/2013 00:00:00,44000,"42200","Health Authorities","REDACTED DATA","NORTH EAST LONDON NHS FOUNDATION TRUST","",,"GB-654-4044-47"
"London Borough of Redbridge","http://opendatacommunities.org/doc/london-borough-council/redbridge","5BGFHOUSING","General Fund Housing","5CHOMELESS","Homelessness","REV","Revenue","R5630","HAC Temporary Accomodation","05-THIRD","Third Party Payments","05H","Private contractors","6916","Leasing Payments To Landlords","70055423","201404",30/06/2013 00:00:00,37343.22,"47846","Letting Agents","REDACTED DATA","LOCATIONS CEK LTD (IDEAL LOCATIONS UK LTD)","6621620","http://opencorporates.com/companies/gb/6621620","837942391"
"London Borough of Redbridge","http://opendatacommunities.org/doc/london-borough-council/redbridge","5BGFHOUSING","General Fund Housing","5CHOMELESS","Homelessness","REV","Revenue","R5630","HAC Temporary Accomodation","05-THIRD","Third Party Payments","05H","Private contractors","6916","Leasing Payments To Landlords","70055423","201404",30/06/2013 00:00:00,5210.55,"47846","Letting Agents","REDACTED DATA","LOCATIONS CEK LTD (IDEAL LOCATIONS UK LTD)","6621620","http://opencorporates.com/companies/gb/6621620","837942391"
"London Borough of Redbridge","http://opendatacommunities.org/doc/london-borough-council/redbridge","5BGFHOUSING","General Fund Housing","5CHOMELESS","Homelessness","REV","Revenue","R5630","HAC Temporary Accomodation","05-THIRD","Third Party Payments","05H","Private contractors","6900","Nightly Let Plus Charges","70055094","201404",01/06/2013 00:00:00,42409.38,"47846","Letting Agents","REDACTED DATA","THEORI INVESTMENTS LIMITED","4048450","http://opencorporates.com/companies/gb/4048450","773898950"
"London Borough of Redbridge","http://opendatacommunities.org/doc/london-borough-council/redbridge","6BADULTSOCIA","Adult Social Care","6CADLEARNDIS","Adults Under 65 with Learning Disabilities","REV","Revenue","R4188","LD - Residential Care","05-THIRD","Third Party Payments","05H","Private contractors","6902","Respite Care","90426566","201404",19/06/2013 00:00:00,30399.75,"98758","Statutory Payments to Individuals","REDACTED DATA","REDACTED DATA","",,""
"London Borough of Redbridge","http://opendatacommunities.org/doc/london-borough-council/redbridge","6BADULTSOCIA","Adult Social Care","6CADLEARNDIS","Adults Under 65 with Learning Disabilities","REV","Revenue","R4188","LD - Residential Care","05-THIRD","Third Party Payments","05H","Private contractors","6902","Respite Care","90426566","201404",19/06/2013 00:00:00,9618,"98758","Statutory Payments to Individuals","REDACTED DATA","REDACTED DATA","",,""
"London Borough of Redbridge","http://opendatacommunities.org/doc/london-borough-council/redbridge","6BADULTSOCIA","Adult Social Care","6CADLEARNDIS","Adults Under 65 with Learning Disabilities","REV","Revenue","R4188","LD - Residential Care","05-THIRD","Third Party Payments","05H","Private contractors","6902","Respite Care","90426566","201404",19/06/2013 00:00:00,171.75,"98758","Statutory Payments to Individuals","REDACTED DATA","REDACTED DATA","",,""
"London Borough of Redbridge","http://opendatacommunities.org/doc/london-borough-council/redbridge","1BOTHEROPI&E","Other Operating Income & Expenditure","1CTRADSURDEF","Trading Account Surpluses & Deficits","REV","Revenue","R9607","Ley Street Depot","02-PREMISES","Premises","02A","Repairs, alteration and maintenance of buildings","3001","Major Works Programme","793205","201404",21/06/2013 00:00:00,33437.5,"30580","Electricians & Electrical Contractors","REDACTED DATA","HARDING BROS ELECTRICAL LTD","1237890","http://opencorporates.com/companies/gb/1237890","247960333"
"London Borough of Redbridge","http://opendatacommunities.org/doc/london-borough-council/redbridge","5BGFHOUSING","General Fund Housing","5CHOMELESS","Homelessness","REV","Revenue","R5630","HAC Temporary Accomodation","05-THIRD","Third Party Payments","05H","Private contractors","6916","Leasing Payments To Landlords","70054945","201404",30/06/2013 00:00:00,31108.99,"47846","Letting Agents","REDACTED DATA","ATLANTIC LODGE(HOUSING) LTD","5373917","http://opencorporates.com/companies/gb/5373917",""
"London Borough of Redbridge","http://opendatacommunities.org/doc/london-borough-council/redbridge","5BGFHOUSING","General Fund Housing","5CHOMELESS","Homelessness","REV","Revenue","R5630","HAC Temporary Accomodation","05-THIRD","Third Party Payments","05H","Private contractors","6916","Leasing Payments To Landlords","70054945","201404",30/06/2013 00:00:00,5968.92,"47846","Letting Agents","REDACTED DATA","ATLANTIC LODGE(HOUSING) LTD","5373917","http://opencorporates.com/companies/gb/5373917",""
"London Borough of Redbridge","http://opendatacommunities.org/doc/london-borough-council/redbridge","9BNONBVO","Outside the BVACOP Objective Structure","9CNONBVO","Outside the BVACOP Objective Structure","CAP","Capital","C2105","Communal","99-NONBV","Capital, Balance Sheet and Control","50E","Capital - Contract Payments","9150","Main Contract","60211419","201404",22/07/2013 00:00:00,31428.86,"30580","Electricians & Electrical Contractors","REDACTED DATA","EVANS & SHEA LTD","1505197","http://opencorporates.com/companies/gb/1505197","246224574"
"London Borough of Redbridge","http://opendatacommunities.org/doc/london-borough-council/redbridge","9BNONBVO","Outside the BVACOP Objective Structure","9CNONBVO","Outside the BVACOP Objective Structure","CAP","Capital","C2203","Accident Remediation Local Safety TFL","99-NONBV","Capital, Balance Sheet and Control","50E","Capital - Contract Payments","9150","Main Contract","3288736","201404",03/07/2013 00:00:00,30863.78,"21555","Construction Contractors - General","REDACTED DATA","MAY GURNEY LIMITED","873179","http://opencorporates.com/companies/gb/873179","105540018"
"London Borough of Redbridge","http://opendatacommunities.org/doc/london-borough-council/redbridge","9BNONBVO","Outside the BVACOP Objective Structure","9CNONBVO","Outside the BVACOP Objective Structure","CAP","Capital","C2223","Highways Preventative Maintenance LBR","99-NONBV","Capital, Balance Sheet and Control","50E","Capital - Contract Payments","9150","Main Contract","3289512","201404",11/07/2013 00:00:00,30000,"18632","Civil Engineers","REDACTED DATA","KENSON CONTRACTORS BENINGTON LTD","1314691","http://opencorporates.com/companies/gb/1314691","301629589"
"London Borough of Redbridge","http://opendatacommunities.org/doc/london-borough-council/redbridge","3BLEACENTFND","LEA Centrally Held School Funds","3CFACILIMPRO","Facilitating School Improvement","REV","Revenue","R3362","Young People's Substance Misuse","05-THIRD","Third Party Payments","05A","Independent units within the council","6513","Agency & Contracted Services","60208201","201404",20/06/2013 00:00:00,35822.5,"42200","Health Authorities","REDACTED DATA","NORTH EAST LONDON NHS FOUNDATION TRUST","",,"GB-654-4044-47"
"London Borough of Redbridge","http://opendatacommunities.org/doc/london-borough-council/redbridge","6BADULTSOCIA","Adult Social Care","6CADLEARNDIS","Adults Under 65 with Learning Disabilities","REV","Revenue","R4185","LD - Supported Living","06-TRANSFER","Transfer Payments","06B","Social Services Clients","7066","Supportive Lodgings (Transfer Payments)","90426834","201404",19/06/2013 00:00:00,33440,"17020","Charities and Voluntary Organisations","REDACTED DATA","MENCAP","550457","http://opencorporates.com/companies/gb/550457","233010136"
"London Borough of Redbridge","http://opendatacommunities.org/doc/london-borough-council/redbridge","1BOTHEROPI&E","Other Operating Income & Expenditure","1CTRADSURDEF","Trading Account Surpluses & Deficits","REV","Revenue","R9149","Building Cleaning (Holding)","04-SUPPLIES","Supplies And Services","04B","Catering","5600","Catering Contract Payments","60209203","201404",30/06/2013 00:00:00,27420.38,"37370","Food Products - Mnfrs","REDACTED DATA","APETITO LTD","233851","http://opencorporates.com/companies/gb/233851","138176066"
"London Borough of Redbridge","http://opendatacommunities.org/doc/london-borough-council/redbridge","6BADULTSOCIA","Adult Social Care","6CSERVSTRAT","Service Strategy","REV","Revenue","R4815","Drug Misuse - Adults","05-THIRD","Third Party Payments","05F","Voluntary associations","6800","Voluntary Organisations","90424886","201404",19/06/2013 00:00:00,32674.4,"17020","Charities and Voluntary Organisations","REDACTED DATA","ARP CHARITABLE SERVICES","",,""
"London Borough of Redbridge","http://opendatacommunities.org/doc/london-borough-council/redbridge","3BLEACENTFND","LEA Centrally Held School Funds","3CNONSCH","Non Schools","REV","Revenue","R2008","Speech and Language LEA","05-THIRD","Third Party Payments","05A","Independent units within the council","6513","Agency & Contracted Services","60208963","201404",27/06/2013 00:00:00,32269.7,"42200","Health Authorities","REDACTED DATA","NORTH EAST LONDON NHS FOUNDATION TRUST","",,"GB-654-4044-47"
"London Borough of Redbridge","http://opendatacommunities.org/doc/london-borough-council/redbridge","6BADULTSOCIA","Adult Social Care","6CADLEARNDIS","Adults Under 65 with Learning Disabilities","REV","Revenue","R4185","LD - Supported Living","06-TRANSFER","Transfer Payments","06B","Social Services Clients","7066","Supportive Lodgings (Transfer Payments)","90426842","201404",19/06/2013 00:00:00,30720,"17020","Charities and Voluntary Organisations","REDACTED DATA","MENCAP","550457","http://opencorporates.com/companies/gb/550457","233010136"
"London Borough of Redbridge","http://opendatacommunities.org/doc/london-borough-council/redbridge","5BGFHOUSING","General Fund Housing","5CHOMELESS","Homelessness","REV","Revenue","R5630","HAC Temporary Accomodation","04-SUPPLIES","Supplies And Services","04K","Miscellaneous expenses","6227","Furniture Removal & Storage","60209224","201404",30/06/2013 00:00:00,25387.92,"64620","Removals & Storage - Household","REDACTED DATA","CROWN PROMOTIONS & REMOVALS LIMITED","4002589","http://opencorporates.com/companies/gb/4002589","506837339"
"London Borough of Redbridge","http://opendatacommunities.org/doc/london-borough-council/redbridge","6BADULTSOCIA","Adult Social Care","6CSERVSTRAT","Service Strategy","REV","Revenue","R4815","Drug Misuse - Adults","05-THIRD","Third Party Payments","05F","Voluntary associations","6800","Voluntary Organisations","90423817","201404",19/06/2013 00:00:00,30430.8,"79980","Training Services","REDACTED DATA","WESTMINSTER DRUG PROJECT LTD","2807934","http://opencorporates.com/companies/gb/2807934",""
"London Borough of Redbridge","http://opendatacommunities.org/doc/london-borough-council/redbridge","6BADULTSOCIA","Adult Social Care","6CSERVSTRAT","Service Strategy","REV","Revenue","R4806","SH Advice, Prevention & Promotion","05-THIRD","Third Party Payments","05F","Voluntary associations","6800","Voluntary Organisations","90424867","201404",29/04/2013 00:00:00,29044.5,"17020","Charities and Voluntary Organisations","REDACTED DATA","TERRENCE HIGGINS TRUST","1778149","http://opencorporates.com/companies/gb/1778149","564614042"
"London Borough of Redbridge","http://opendatacommunities.org/doc/london-borough-council/redbridge","9BNONBVO","Outside the BVACOP Objective Structure","9CNONBVO","Outside the BVACOP Objective Structure","BAL","Balance Sheet","B0350","Office Depot Barclaycard","99-NONBV","Capital, Balance Sheet and Control","50Q","Other Balances & Reserves","9912","Personal Account - Creditor","70055304","201404",10/07/2013 00:00:00,28478.18,"22910","Credit Cards & Discount Cards","REDACTED DATA","COMPANY BARCLAYCARD","1026167","http://opencorporates.com/companies/gb/1026167","673478594"
"London Borough of Redbridge","http://opendatacommunities.org/doc/london-borough-council/redbridge","9BNONBVO","Outside the BVACOP Objective Structure","9CNONBVO","Outside the BVACOP Objective Structure","CAP","Capital","C2248","Ilford Town Centre TFL","99-NONBV","Capital, Balance Sheet and Control","50E","Capital - Contract Payments","9150","Main Contract","3288492","201404",01/07/2013 00:00:00,23000,"18632","Civil Engineers","REDACTED DATA","KENSON CONTRACTORS BENINGTON LTD","1314691","http://opencorporates.com/companies/gb/1314691","301629589"
"London Borough of Redbridge","http://opendatacommunities.org/doc/london-borough-council/redbridge","6BADULTSOCIA","Adult Social Care","6CSERVSTRAT","Service Strategy","REV","Revenue","R4818","Stop Smoking Service & Interventions","05-THIRD","Third Party Payments","05D","Health authorities","6704","NELFT","90424882","201404",19/06/2013 00:00:00,27500,"42200","Health Authorities","REDACTED DATA","NORTH EAST LONDON NHS FOUNDATION TRUST","",,"GB-654-4044-47"
"London Borough of Redbridge","http://opendatacommunities.org/doc/london-borough-council/redbridge","9BNONBVO","Outside the BVACOP Objective Structure","9CNONBVO","Outside the BVACOP Objective Structure","CAP","Capital","C2108","Aids and Adaptations","99-NONBV","Capital, Balance Sheet and Control","50E","Capital - Contract Payments","9150","Main Contract","60210465","201404",01/07/2013 00:00:00,22800,"11040","Builders","REDACTED DATA","BOLT & HEEKS LTD","789858","http://opencorporates.com/companies/gb/789858","830446153"
"London Borough of Redbridge","http://opendatacommunities.org/doc/london-borough-council/redbridge","9BNONBVO","Outside the BVACOP Objective Structure","9CNONBVO","Outside the BVACOP Objective Structure","CAP","Capital","C2247","Gants Hill TFL","99-NONBV","Capital, Balance Sheet and Control","50E","Capital - Contract Payments","9150","Main Contract","3290365","201404",11/07/2013 00:00:00,22739.62,"18632","Civil Engineers","REDACTED DATA","KENSON CONTRACTORS BENINGTON LTD","1314691","http://opencorporates.com/companies/gb/1314691","301629589"
"London Borough of Redbridge","http://opendatacommunities.org/doc/london-borough-council/redbridge","6BADULTSOCIA","Adult Social Care","6CADLEARNDIS","Adults Under 65 with Learning Disabilities","REV","Revenue","R4215","LD Direct Payments","06-TRANSFER","Transfer Payments","06B","Social Services Clients","7053","Direct Payments","3291586","201404",29/07/2013 00:00:00,23715,"56800","Payroll Services","REDACTED DATA","HUMAN MANAGEMENT ASSISTANCE-CLIENT ACCOUNT","4752026","http://opencorporates.com/companies/gb/4752026","815230071"
"London Borough of Redbridge","http://opendatacommunities.org/doc/london-borough-council/redbridge","6BADULTSOCIA","Adult Social Care","6CADLEARNDIS","Adults Under 65 with Learning Disabilities","REV","Revenue","R4215","LD Direct Payments","06-TRANSFER","Transfer Payments","06B","Social Services Clients","7053","Direct Payments","3291586","201404",29/07/2013 00:00:00,3252,"56800","Payroll Services","REDACTED DATA","HUMAN MANAGEMENT ASSISTANCE-CLIENT ACCOUNT","4752026","http://opencorporates.com/companies/gb/4752026","815230071"
"London Borough of Redbridge","http://opendatacommunities.org/doc/london-borough-council/redbridge","9BNONBVO","Outside the BVACOP Objective Structure","9CNONBVO","Outside the BVACOP Objective Structure","BAL","Balance Sheet","B0185","Avc-Prudential-Tch","99-NONBV","Capital, Balance Sheet and Control","50Q","Other Balances & Reserves","9910","Personal Account - Debtor","70054834","201404",01/07/2013 00:00:00,24643.65,"35240","Financial Services","REDACTED DATA","PRUDENTIAL TAVC","",,""
"London Borough of Redbridge","http://opendatacommunities.org/doc/london-borough-council/redbridge","9BNONBVO","Outside the BVACOP Objective Structure","9CNONBVO","Outside the BVACOP Objective Structure","BAL","Balance Sheet","B0188","AVC Opted out schools","99-NONBV","Capital, Balance Sheet and Control","50Q","Other Balances & Reserves","9910","Personal Account - Debtor","70054834","201404",01/07/2013 00:00:00,912.42,"35240","Financial Services","REDACTED DATA","PRUDENTIAL TAVC","",,""
"London Borough of Redbridge","http://opendatacommunities.org/doc/london-borough-council/redbridge","9BNONBVO","Outside the BVACOP Objective Structure","9CNONBVO","Outside the BVACOP Objective Structure","BAL","Balance Sheet","B0214","Little Heath P.A.Y.E","99-NONBV","Capital, Balance Sheet and Control","50Q","Other Balances & Reserves","9910","Personal Account - Debtor","70054834","201404",01/07/2013 00:00:00,20,"35240","Financial Services","REDACTED DATA","PRUDENTIAL TAVC","",,""
"London Borough of Redbridge","http://opendatacommunities.org/doc/london-borough-council/redbridge","6BADULTSOCIA","Adult Social Care","6CSERVSTRAT","Service Strategy","REV","Revenue","R4815","Drug Misuse - Adults","05-THIRD","Third Party Payments","05F","Voluntary associations","6800","Voluntary Organisations","90424887","201404",19/06/2013 00:00:00,25060.64,"24200","Day Centres","REDACTED DATA","THE QALB DAY CARE SERVICES LTD","6154843","http://opencorporates.com/companies/gb/6154843",""
"London Borough of Redbridge","http://opendatacommunities.org/doc/london-borough-council/redbridge","9BNONBVO","Outside the BVACOP Objective Structure","9CNONBVO","Outside the BVACOP Objective Structure","CAP","Capital","C4091","Mayfield - Add Sec Sch Places","99-NONBV","Capital, Balance Sheet and Control","50E","Capital - Contract Payments","9152","Mobiles Contractor","60211282","201404",16/07/2013 00:00:00,20501,"11560","Buildings - Sectional and Portable","REDACTED DATA","PORTAKABIN LTD.","685303","http://opencorporates.com/companies/gb/685303","551855234"
"London Borough of Redbridge","http://opendatacommunities.org/doc/london-borough-council/redbridge","2BENVIRONMEN","Environmental Services","2CWASTECOLLN","Waste Collection","REV","Revenue","R6211","Kerbside Collection","04-SUPPLIES","Supplies And Services","04K","Miscellaneous expenses","6263","Supportive Activities","60208094","201404",18/06/2013 00:00:00,20395.2,"21760","Container Mnfrs","REDACTED DATA","STRAIGHT PLC","2923140","http://opencorporates.com/companies/gb/2923140","664757787"
"London Borough of Redbridge","http://opendatacommunities.org/doc/london-borough-council/redbridge","4BMANGT&SUPP","Management & Support Services","4CHIGHRDROUT","Highways/Roads (Routine)","REV","Revenue","R7075","Drainage","05-THIRD","Third Party Payments","05H","Private contractors","6915","Contractor Payments","3288493","201404",01/07/2013 00:00:00,20000,"18632","Civil Engineers","REDACTED DATA","KENSON CONTRACTORS BENINGTON LTD","1314691","http://opencorporates.com/companies/gb/1314691","301629589"
"London Borough of Redbridge","http://opendatacommunities.org/doc/london-borough-council/redbridge","5BGFHOUSING","General Fund Housing","5CHOMELESS","Homelessness","REV","Revenue","R5630","HAC Temporary Accomodation","05-THIRD","Third Party Payments","05H","Private contractors","6913","Nightly Let Charges","70055350","201404",30/06/2013 00:00:00,23880,"47846","Letting Agents","REDACTED DATA","SMART HOTELS LTD","3408484","http://opencorporates.com/companies/gb/3408484","722747138"
"London Borough of Redbridge","http://opendatacommunities.org/doc/london-borough-council/redbridge","6BADULTSOCIA","Adult Social Care","6CADLEARNDIS","Adults Under 65 with Learning Disabilities","REV","Revenue","R4388","LD Nursing","05-THIRD","Third Party Payments","05H","Private contractors","6909","Nursing Homes","90434059","201404",17/07/2013 00:00:00,74071.23,"17020","Charities and Voluntary Organisations","REDACTED DATA","VIBRANCE","1152186","http://opencorporates.com/companies/gb/1152186",""
"London Borough of Redbridge","http://opendatacommunities.org/doc/london-borough-council/redbridge","6BADULTSOCIA","Adult Social Care","6CADLEARNDIS","Adults Under 65 with Learning Disabilities","REV","Revenue","R4388","LD Nursing","05-THIRD","Third Party Payments","05H","Private contractors","6909","Nursing Homes","90434059","201404",17/07/2013 00:00:00,72811.44,"17020","Charities and Voluntary Organisations","REDACTED DATA","VIBRANCE","1152186","http://opencorporates.com/companies/gb/1152186",""
"London Borough of Redbridge","http://opendatacommunities.org/doc/london-borough-council/redbridge","6BADULTSOCIA","Adult Social Care","6CADLEARNDIS","Adults Under 65 with Learning Disabilities","REV","Revenue","R4388","LD Nursing","05-THIRD","Third Party Payments","05H","Private contractors","6909","Nursing Homes","90434059","201404",17/07/2013 00:00:00,26604.18,"17020","Charities and Voluntary Organisations","REDACTED DATA","VIBRANCE","1152186","http://opencorporates.com/companies/gb/1152186",""
"London Borough of Redbridge","http://opendatacommunities.org/doc/london-borough-council/redbridge","6BADULTSOCIA","Adult Social Care","6CADLEARNDIS","Adults Under 65 with Learning Disabilities","REV","Revenue","R4388","LD Nursing","09-INCOME","Income","09C","Customer & Client Receipts","8557","Nursing Home Charges","90434059","201404",17/07/2013 00:00:00,3750.71,"17020","Charities and Voluntary Organisations","REDACTED DATA","VIBRANCE","1152186","http://opencorporates.com/companies/gb/1152186",""
"London Borough of Redbridge","http://opendatacommunities.org/doc/london-borough-council/redbridge","6BADULTSOCIA","Adult Social Care","6CADLEARNDIS","Adults Under 65 with Learning Disabilities","REV","Revenue","R4388","LD Nursing","09-INCOME","Income","09C","Customer & Client Receipts","8557","Nursing Home Charges","90434059","201404",17/07/2013 00:00:00,3562.35,"17020","Charities and Voluntary Organisations","REDACTED DATA","VIBRANCE","1152186","http://opencorporates.com/companies/gb/1152186",""
"London Borough of Redbridge","http://opendatacommunities.org/doc/london-borough-council/redbridge","6BADULTSOCIA","Adult Social Care","6CADLEARNDIS","Adults Under 65 with Learning Disabilities","REV","Revenue","R4388","LD Nursing","09-INCOME","Income","09C","Customer & Client Receipts","8557","Nursing Home Charges","90434059","201404",17/07/2013 00:00:00,855.8,"17020","Charities and Voluntary Organisations","REDACTED DATA","VIBRANCE","1152186","http://opencorporates.com/companies/gb/1152186",""
"London Borough of Redbridge","http://opendatacommunities.org/doc/london-borough-council/redbridge","6BADULTSOCIA","Adult Social Care","6CADLEARNDIS","Adults Under 65 with Learning Disabilities","REV","Revenue","R4388","LD Nursing","09-INCOME","Income","09C","Customer & Client Receipts","8557","Nursing Home Charges","90434059","201404",17/07/2013 00:00:00,101.64,"17020","Charities and Voluntary Organisations","REDACTED DATA","VIBRANCE","1152186","http://opencorporates.com/companies/gb/1152186",""
"London Borough of Redbridge","http://opendatacommunities.org/doc/london-borough-council/redbridge","6BADULTSOCIA","Adult Social Care","6CADLEARNDIS","Adults Under 65 with Learning Disabilities","REV","Revenue","R4388","LD Nursing","09-INCOME","Income","09C","Customer & Client Receipts","8557","Nursing Home Charges","90434059","201404",17/07/2013 00:00:00,84.29,"17020","Charities and Voluntary Organisations","REDACTED DATA","VIBRANCE","1152186","http://opencorporates.com/companies/gb/1152186",""
"London Borough of Redbridge","http://opendatacommunities.org/doc/london-borough-council/redbridge","6BADULTSOCIA","Adult Social Care","6CADLEARNDIS","Adults Under 65 with Learning Disabilities","REV","Revenue","R4388","LD Nursing","09-INCOME","Income","09C","Customer & Client Receipts","8557","Nursing Home Charges","90434059","201404",17/07/2013 00:00:00,69.85,"17020","Charities and Voluntary Organisations","REDACTED DATA","VIBRANCE","1152186","http://opencorporates.com/companies/gb/1152186",""
"London Borough of Redbridge","http://opendatacommunities.org/doc/london-borough-council/redbridge","6BADULTSOCIA","Adult Social Care","6CADLEARNDIS","Adults Under 65 with Learning Disabilities","REV","Revenue","R4388","LD Nursing","05-THIRD","Third Party Payments","05H","Private contractors","6909","Nursing Homes","90434059","201404",17/07/2013 00:00:00,-1290.43,"17020","Charities and Voluntary Organisations","REDACTED DATA","VIBRANCE","1152186","http://opencorporates.com/companies/gb/1152186",""
"London Borough of Redbridge","http://opendatacommunities.org/doc/london-borough-council/redbridge","6BADULTSOCIA","Adult Social Care","6CADLEARNDIS","Adults Under 65 with Learning Disabilities","REV","Revenue","R4388","LD Nursing","05-THIRD","Third Party Payments","05H","Private contractors","6909","Nursing Homes","90434059","201404",17/07/2013 00:00:00,-1460.19,"17020","Charities and Voluntary Organisations","REDACTED DATA","VIBRANCE","1152186","http://opencorporates.com/companies/gb/1152186",""
"London Borough of Redbridge","http://opendatacommunities.org/doc/london-borough-council/redbridge","6BADULTSOCIA","Adult Social Care","6CADLEARNDIS","Adults Under 65 with Learning Disabilities","REV","Revenue","R4388","LD Nursing","09-INCOME","Income","09C","Customer & Client Receipts","8557","Nursing Home Charges","90434059","201404",17/07/2013 00:00:00,-1478.2,"17020","Charities and Voluntary Organisations","REDACTED DATA","VIBRANCE","1152186","http://opencorporates.com/companies/gb/1152186",""
"London Borough of Redbridge","http://opendatacommunities.org/doc/london-borough-council/redbridge","6BADULTSOCIA","Adult Social Care","6CADLEARNDIS","Adults Under 65 with Learning Disabilities","REV","Revenue","R4388","LD Nursing","05-THIRD","Third Party Payments","05H","Private contractors","6909","Nursing Homes","90434059","201404",17/07/2013 00:00:00,-1825.23,"17020","Charities and Voluntary Organisations","REDACTED DATA","VIBRANCE","1152186","http://opencorporates.com/companies/gb/1152186",""
"London Borough of Redbridge","http://opendatacommunities.org/doc/london-borough-council/redbridge","6BADULTSOCIA","Adult Social Care","6CADLEARNDIS","Adults Under 65 with Learning Disabilities","REV","Revenue","R4388","LD Nursing","09-INCOME","Income","09C","Customer & Client Receipts","8557","Nursing Home Charges","90434059","201404",17/07/2013 00:00:00,-3632.2,"17020","Charities and Voluntary Organisations","REDACTED DATA","VIBRANCE","1152186","http://opencorporates.com/companies/gb/1152186",""
"London Borough of Redbridge","http://opendatacommunities.org/doc/london-borough-council/redbridge","6BADULTSOCIA","Adult Social Care","6CADLEARNDIS","Adults Under 65 with Learning Disabilities","REV","Revenue","R4388","LD Nursing","09-INCOME","Income","09C","Customer & Client Receipts","8557","Nursing Home Charges","90434059","201404",17/07/2013 00:00:00,-3801.44,"17020","Charities and Voluntary Organisations","REDACTED DATA","VIBRANCE","1152186","http://opencorporates.com/companies/gb/1152186",""
"London Borough of Redbridge","http://opendatacommunities.org/doc/london-borough-council/redbridge","6BADULTSOCIA","Adult Social Care","6CADLEARNDIS","Adults Under 65 with Learning Disabilities","REV","Revenue","R4388","LD Nursing","05-THIRD","Third Party Payments","05H","Private contractors","6909","Nursing Homes","90434059","201404",17/07/2013 00:00:00,-14194.73,"17020","Charities and Voluntary Organisations","REDACTED DATA","VIBRANCE","1152186","http://opencorporates.com/companies/gb/1152186",""
"London Borough of Redbridge","http://opendatacommunities.org/doc/london-borough-council/redbridge","6BADULTSOCIA","Adult Social Care","6CADLEARNDIS","Adults Under 65 with Learning Disabilities","REV","Revenue","R4388","LD Nursing","05-THIRD","Third Party Payments","05H","Private contractors","6909","Nursing Homes","90434059","201404",17/07/2013 00:00:00,-64978.13,"17020","Charities and Voluntary Organisations","REDACTED DATA","VIBRANCE","1152186","http://opencorporates.com/companies/gb/1152186",""
"London Borough of Redbridge","http://opendatacommunities.org/doc/london-borough-council/redbridge","6BADULTSOCIA","Adult Social Care","6CADLEARNDIS","Adults Under 65 with Learning Disabilities","REV","Revenue","R4388","LD Nursing","05-THIRD","Third Party Payments","05H","Private contractors","6909","Nursing Homes","90434059","201404",17/07/2013 00:00:00,-65867.52,"17020","Charities and Voluntary Organisations","REDACTED DATA","VIBRANCE","1152186","http://opencorporates.com/companies/gb/1152186",""
"London Borough of Redbridge","http://opendatacommunities.org/doc/london-borough-council/redbridge","3BNONSCHFUND","Non-School Funding","3CNONSCH","Non Schools","REV","Revenue","R3945","Childrens Centre Central","04-SUPPLIES","Supplies And Services","04H","Grants and subscriptions","5950","Grants","60210046","201404",08/07/2013 00:00:00,14321.75,"17020","Charities and Voluntary Organisations","REDACTED DATA","PRE-SCHOOL LEARNING ALLIANCE( RED SUB COM)","4539003","http://opencorporates.com/companies/gb/4539003","830472251"
"London Borough of Redbridge","http://opendatacommunities.org/doc/london-borough-council/redbridge","6BSOCIALSERV","Social Services","6CCHILLOOKED","Children Looked After","REV","Revenue","R2148","CQ and F - Children's Fund","05-THIRD","Third Party Payments","05A","Independent units within the council","6513","Agency & Contracted Services","60210046","201404",08/07/2013 00:00:00,8070.25,"17020","Charities and Voluntary Organisations","REDACTED DATA","PRE-SCHOOL LEARNING ALLIANCE( RED SUB COM)","4539003","http://opencorporates.com/companies/gb/4539003","830472251"
"London Borough of Redbridge","http://opendatacommunities.org/doc/london-borough-council/redbridge","3BINDSCHFUND","Individual School Funds","3CNONSCH","Non Schools","REV","Revenue","R2209","SEN Individual Commissioning DSG","05-THIRD","Third Party Payments","05A","Independent units within the council","6513","Agency & Contracted Services","60208962","201404",27/06/2013 00:00:00,21513,"42200","Health Authorities","REDACTED DATA","NORTH EAST LONDON NHS FOUNDATION TRUST","",,"GB-654-4044-47"
"London Borough of Redbridge","http://opendatacommunities.org/doc/london-borough-council/redbridge","9BNONBVO","Outside the BVACOP Objective Structure","9CNONBVO","Outside the BVACOP Objective Structure","CAP","Capital","C2251","Orbital Corridor 1 TFL","99-NONBV","Capital, Balance Sheet and Control","50E","Capital - Contract Payments","9150","Main Contract","60207999","201404",20/06/2013 00:00:00,17925,"12100","Business and Management Consultants","REDACTED DATA","SUSTRANS LIMITED","1797726","http://opencorporates.com/companies/gb/1797726","416740656"
"London Borough of Redbridge","http://opendatacommunities.org/doc/london-borough-council/redbridge","9BNONBVO","Outside the BVACOP Objective Structure","9CNONBVO","Outside the BVACOP Objective Structure","REV","Revenue","R0027","General Fund Corporate Items","05-THIRD","Third Party Payments","05I","Other agencies","6951","Lea Valley Regional Park - Precept","60209813","201404",12/02/2013 00:00:00,21227.62,"79500","Trade Assoc & Regulatory Bodies","REDACTED DATA","LEE VALLEY REGIONAL PARK AUTHORITY","",,""
"London Borough of Redbridge","http://opendatacommunities.org/doc/london-borough-council/redbridge","5BGFHOUSING","General Fund Housing","5CHOUMGTSUPP","Housing Management & Support Services","REV","Revenue","R5511","Homelessness Grants","04-SUPPLIES","Supplies And Services","04H","Grants and subscriptions","5950","Grants","60208854","201404",25/03/2013 00:00:00,20833,"17020","Charities and Voluntary Organisations","REDACTED DATA","SINGLE HOMELESS PROJECT","1741926","http://opencorporates.com/companies/gb/1741926",""
"London Borough of Redbridge","http://opendatacommunities.org/doc/london-borough-council/redbridge","5BGFHOUSING","General Fund Housing","5CHOUMGTSUPP","Housing Management & Support Services","REV","Revenue","R5511","Homelessness Grants","04-SUPPLIES","Supplies And Services","04H","Grants and subscriptions","5950","Grants","60209104","201404",25/03/2013 00:00:00,20833,"17020","Charities and Voluntary Organisations","REDACTED DATA","SINGLE HOMELESS PROJECT","1741926","http://opencorporates.com/companies/gb/1741926",""
"London Borough of Redbridge","http://opendatacommunities.org/doc/london-borough-council/redbridge","6BADULTSOCIA","Adult Social Care","6CADLEARNDIS","Adults Under 65 with Learning Disabilities","REV","Revenue","R4188","LD - Residential Care","05-THIRD","Third Party Payments","05F","Voluntary associations","6802","Residential Homes","90426426","201404",19/06/2013 00:00:00,14454.15,"53350","Nursing Homes","REDACTED DATA","OUTLOOK CARE","",,""
"London Borough of Redbridge","http://opendatacommunities.org/doc/london-borough-council/redbridge","6BADULTSOCIA","Adult Social Care","6CADLEARNDIS","Adults Under 65 with Learning Disabilities","REV","Revenue","R4188","LD - Residential Care","05-THIRD","Third Party Payments","05F","Voluntary associations","6802","Residential Homes","90426426","201404",19/06/2013 00:00:00,7708.88,"53350","Nursing Homes","REDACTED DATA","OUTLOOK CARE","",,""
"London Borough of Redbridge","http://opendatacommunities.org/doc/london-borough-council/redbridge","6BADULTSOCIA","Adult Social Care","6CADLEARNDIS","Adults Under 65 with Learning Disabilities","REV","Revenue","R4188","LD - Residential Care","05-THIRD","Third Party Payments","05F","Voluntary associations","6802","Residential Homes","90426426","201404",19/06/2013 00:00:00,963.61,"53350","Nursing Homes","REDACTED DATA","OUTLOOK CARE","",,""
"London Borough of Redbridge","http://opendatacommunities.org/doc/london-borough-council/redbridge","6BADULTSOCIA","Adult Social Care","6CADLEARNDIS","Adults Under 65 with Learning Disabilities","REV","Revenue","R4188","LD - Residential Care","09-INCOME","Income","09C","Customer & Client Receipts","8555","Accommodation Charges","90426426","201404",19/06/2013 00:00:00,-119.2,"53350","Nursing Homes","REDACTED DATA","OUTLOOK CARE","",,""
"London Borough of Redbridge","http://opendatacommunities.org/doc/london-borough-council/redbridge","6BADULTSOCIA","Adult Social Care","6CADLEARNDIS","Adults Under 65 with Learning Disabilities","REV","Revenue","R4188","LD - Residential Care","09-INCOME","Income","09C","Customer & Client Receipts","8555","Accommodation Charges","90426426","201404",19/06/2013 00:00:00,-953.6,"53350","Nursing Homes","REDACTED DATA","OUTLOOK CARE","",,""
"London Borough of Redbridge","http://opendatacommunities.org/doc/london-borough-council/redbridge","6BADULTSOCIA","Adult Social Care","6CADLEARNDIS","Adults Under 65 with Learning Disabilities","REV","Revenue","R4188","LD - Residential Care","09-INCOME","Income","09C","Customer & Client Receipts","8555","Accommodation Charges","90426426","201404",19/06/2013 00:00:00,-1822.5,"53350","Nursing Homes","REDACTED DATA","OUTLOOK CARE","",,""
"London Borough of Redbridge","http://opendatacommunities.org/doc/london-borough-council/redbridge","5BGFHOUSING","General Fund Housing","5CHOMELESS","Homelessness","REV","Revenue","R5630","HAC Temporary Accomodation","05-THIRD","Third Party Payments","05H","Private contractors","6900","Nightly Let Plus Charges","70055051","201404",30/06/2013 00:00:00,16806.18,"32695","Estate Agents and Property Buyers","REDACTED DATA","LODGE GROUP LTD","6419462","http://opencorporates.com/companies/gb/6419462",""
"London Borough of Redbridge","http://opendatacommunities.org/doc/london-borough-council/redbridge","6BADULTSOCIA","Adult Social Care","6CSERVSTRAT","Service Strategy","REV","Revenue","R4820","Children 5 - 19 Public Health Programmes","05-THIRD","Third Party Payments","05D","Health authorities","6704","NELFT","60208960","201404",26/06/2013 00:00:00,10000,"42200","Health Authorities","REDACTED DATA","NORTH EAST LONDON NHS FOUNDATION TRUST","",,"GB-654-4044-47"
"London Borough of Redbridge","http://opendatacommunities.org/doc/london-borough-council/redbridge","6BADULTSOCIA","Adult Social Care","6CSERVSTRAT","Service Strategy","REV","Revenue","R4822","Nurtition Initiatives","05-THIRD","Third Party Payments","05D","Health authorities","6704","NELFT","60208960","201404",26/06/2013 00:00:00,10000,"42200","Health Authorities","REDACTED DATA","NORTH EAST LONDON NHS FOUNDATION TRUST","",,"GB-654-4044-47"
"London Borough of Redbridge","http://opendatacommunities.org/doc/london-borough-council/redbridge","2BENVIRONMEN","Environmental Services","2CCOMSAFCRIM","Community Safety (Crime Reduction)","REV","Revenue","R6753","Ilford Town Cntre Cctv","05-THIRD","Third Party Payments","05H","Private contractors","6915","Contractor Payments","793248","201404",31/05/2013 00:00:00,16390.5,"11700","Burglar and Intruder Alarm Systems","REDACTED DATA","OPENVIEW SECURITY SOLUTIONS LTD","3376202","http://opencorporates.com/companies/gb/3376202","696815967"
"London Borough of Redbridge","http://opendatacommunities.org/doc/london-borough-council/redbridge","5BGFHOUSING","General Fund Housing","5CHOMELESS","Homelessness","REV","Revenue","R5630","HAC Temporary Accomodation","05-THIRD","Third Party Payments","05H","Private contractors","6913","Nightly Let Charges","70055664","201404",30/06/2013 00:00:00,19646,"47846","Letting Agents","REDACTED DATA","L.C.MITSIOU &SON LIMITED T/A MITSIOU ESTATES GROUP","2871055","http://opencorporates.com/companies/gb/2871055","553920244"
"London Borough of Redbridge","http://opendatacommunities.org/doc/london-borough-council/redbridge","6BADULTSOCIA","Adult Social Care","6CSERVSTRAT","Service Strategy","REV","Revenue","R4815","Drug Misuse - Adults","05-THIRD","Third Party Payments","05F","Voluntary associations","6800","Voluntary Organisations","90424884","201404",19/06/2013 00:00:00,19019.25,"79980","Training Services","REDACTED DATA","WESTMINSTER DRUG PROJECT LTD","2807934","http://opencorporates.com/companies/gb/2807934",""
"London Borough of Redbridge","http://opendatacommunities.org/doc/london-borough-council/redbridge","6BADULTSOCIA","Adult Social Care","6CSUPPSERMGT","Support Service & Management Costs","REV","Revenue","R4010","TSIF and Practice Teaching","05-THIRD","Third Party Payments","05F","Voluntary associations","6800","Voluntary Organisations","60209393","201404",02/07/2013 00:00:00,8895,"53350","Nursing Homes","REDACTED DATA","CAMBRIDGE NURSING HOME","",,""
"London Borough of Redbridge","http://opendatacommunities.org/doc/london-borough-council/redbridge","6BADULTSOCIA","Adult Social Care","6CSUPPSERMGT","Support Service & Management Costs","REV","Revenue","R4010","TSIF and Practice Teaching","05-THIRD","Third Party Payments","05F","Voluntary associations","6800","Voluntary Organisations","60209393","201404",02/07/2013 00:00:00,5520,"53350","Nursing Homes","REDACTED DATA","CAMBRIDGE NURSING HOME","",,""
"London Borough of Redbridge","http://opendatacommunities.org/doc/london-borough-council/redbridge","6BADULTSOCIA","Adult Social Care","6CSUPPSERMGT","Support Service & Management Costs","REV","Revenue","R4010","TSIF and Practice Teaching","05-THIRD","Third Party Payments","05F","Voluntary associations","6800","Voluntary Organisations","60209393","201404",02/07/2013 00:00:00,4515,"53350","Nursing Homes","REDACTED DATA","CAMBRIDGE NURSING HOME","",,""
"London Borough of Redbridge","http://opendatacommunities.org/doc/london-borough-council/redbridge","5BGFHOUSING","General Fund Housing","5CHOMELESS","Homelessness","REV","Revenue","R5630","HAC Temporary Accomodation","05-THIRD","Third Party Payments","05H","Private contractors","6913","Nightly Let Charges","70055662","201404",22/07/2013 00:00:00,15720,"47846","Letting Agents","REDACTED DATA","OMEGA LETTINGS LTD","3662604","http://opencorporates.com/companies/gb/3662604","735892103"
"London Borough of Redbridge","http://opendatacommunities.org/doc/london-borough-council/redbridge","6BADULTSOCIA","Adult Social Care","6CADLEARNDIS","Adults Under 65 with Learning Disabilities","REV","Revenue","R4188","LD - Residential Care","05-THIRD","Third Party Payments","05F","Voluntary associations","6802","Residential Homes","90426439","201404",19/06/2013 00:00:00,19496,"64710","Residential Care Homes","REDACTED DATA","CMG HOMES LTD (CLEVELAND HOUSE)","2992839","http://opencorporates.com/companies/gb/2992839",""
"London Borough of Redbridge","http://opendatacommunities.org/doc/london-borough-council/redbridge","6BADULTSOCIA","Adult Social Care","6CADLEARNDIS","Adults Under 65 with Learning Disabilities","REV","Revenue","R4188","LD - Residential Care","09-INCOME","Income","09C","Customer & Client Receipts","8555","Accommodation Charges","90426439","201404",19/06/2013 00:00:00,-9.8,"64710","Residential Care Homes","REDACTED DATA","CMG HOMES LTD (CLEVELAND HOUSE)","2992839","http://opencorporates.com/companies/gb/2992839",""
"London Borough of Redbridge","http://opendatacommunities.org/doc/london-borough-council/redbridge","6BADULTSOCIA","Adult Social Care","6CADLEARNDIS","Adults Under 65 with Learning Disabilities","REV","Revenue","R4188","LD - Residential Care","09-INCOME","Income","09C","Customer & Client Receipts","8555","Accommodation Charges","90426439","201404",19/06/2013 00:00:00,-782,"64710","Residential Care Homes","REDACTED DATA","CMG HOMES LTD (CLEVELAND HOUSE)","2992839","http://opencorporates.com/companies/gb/2992839",""
"London Borough of Redbridge","http://opendatacommunities.org/doc/london-borough-council/redbridge","4BMANGT&SUPP","Management & Support Services","4CHIGHRDROUT","Highways/Roads (Routine)","REV","Revenue","R7100","Highways Rechargeable","04-SUPPLIES","Supplies And Services","04K","Miscellaneous expenses","6280","Miscellaneous Expenditure","3289511","201404",11/07/2013 00:00:00,15533.91,"18632","Civil Engineers","REDACTED DATA","KENSON CONTRACTORS BENINGTON LTD","1314691","http://opencorporates.com/companies/gb/1314691","301629589"
"London Borough of Redbridge","http://opendatacommunities.org/doc/london-borough-council/redbridge","1BOTHEROPI&E","Other Operating Income & Expenditure","1CTRADSURDEF","Trading Account Surpluses & Deficits","REV","Revenue","R9252","IT Services","04-SUPPLIES","Supplies And Services","04F","Communications and computing","5857","Maint Controls","60210243","201404",30/04/2013 00:00:00,15419.42,"76510","Telecommunication Services","REDACTED DATA","NTL/VIRGIN MEDIA PAYMENTS LTD(MAIN ACCT)","1785381","http://opencorporates.com/companies/gb/1785381","591819014"
"London Borough of Redbridge","http://opendatacommunities.org/doc/london-borough-council/redbridge","1BOTHEROPI&E","Other Operating Income & Expenditure","1CTRADSURDEF","Trading Account Surpluses & Deficits","REV","Revenue","R9601","Lynton House","02-PREMISES","Premises","02A","Repairs, alteration and maintenance of buildings","3001","Major Works Programme","70055186","201404",11/07/2013 00:00:00,15199.9,"30580","Electricians & Electrical Contractors","REDACTED DATA","CBT ELECTRICAL LTD","3346394","http://opencorporates.com/companies/gb/3346394","710532970"
"London Borough of Redbridge","http://opendatacommunities.org/doc/london-borough-council/redbridge","6BADULTSOCIA","Adult Social Care","6CSERVSTRAT","Service Strategy","REV","Revenue","R4813","Physical Activity - Adults","05-THIRD","Third Party Payments","05F","Voluntary associations","6800","Voluntary Organisations","90423814","201404",19/06/2013 00:00:00,18182,"48583","Local Government","REDACTED DATA","VISION REDBRIDGE CULTURE AND LEISURE","6032714","http://opencorporates.com/companies/gb/6032714","906429031"
"London Borough of Redbridge","http://opendatacommunities.org/doc/london-borough-council/redbridge","9BNONBVO","Outside the BVACOP Objective Structure","9CNONBVO","Outside the BVACOP Objective Structure","CAP","Capital","C2203","Accident Remediation Local Safety TFL","99-NONBV","Capital, Balance Sheet and Control","50E","Capital - Contract Payments","9150","Main Contract","3288709","201404",03/07/2013 00:00:00,15000,"18632","Civil Engineers","REDACTED DATA","KENSON CONTRACTORS BENINGTON LTD","1314691","http://opencorporates.com/companies/gb/1314691","301629589"
"London Borough of Redbridge","http://opendatacommunities.org/doc/london-borough-council/redbridge","4BMANGT&SUPP","Management & Support Services","4CHIGHRDROUT","Highways/Roads (Routine)","REV","Revenue","R7074","DEFRA Flood Grant","05-THIRD","Third Party Payments","05H","Private contractors","6915","Contractor Payments","60211601","201404",22/07/2013 00:00:00,14845.4,"24980","Design Consultants","REDACTED DATA","WSP UK LTD","1383511","http://opencorporates.com/companies/gb/1383511","905054942"
"London Borough of Redbridge","http://opendatacommunities.org/doc/london-borough-council/redbridge","2BPLAN&DEVEL","Planning & Development Services","2CCOMMDEVT","Community Development","REV","Revenue","R9854","Voluntary Sector Support","04-SUPPLIES","Supplies And Services","04H","Grants and subscriptions","5950","Grants","90424836","201404",19/06/2013 00:00:00,17538.4,"17020","Charities and Voluntary Organisations","REDACTED DATA","REDBRIDGE DISABILITY CONSORTIUM","3115971","http://opencorporates.com/companies/gb/3115971",""
"London Borough of Redbridge","http://opendatacommunities.org/doc/london-borough-council/redbridge","4BTRANSPORT","Transport Planning, Policy & Strategy","4CMANGT&SUPP","Management & Support Services","REV","Revenue","R7000","Highways Executive","01-EMPLOYEES","Employees","01A","Direct employee expenses","4","Agency Staff - Pay","60208379","201404",25/06/2013 00:00:00,14270.85,"24980","Design Consultants","REDACTED DATA","WSP UK LTD","1383511","http://opencorporates.com/companies/gb/1383511","905054942"
"London Borough of Redbridge","http://opendatacommunities.org/doc/london-borough-council/redbridge","5BGFHOUSING","General Fund Housing","5CHOMELESS","Homelessness","REV","Revenue","R5630","HAC Temporary Accomodation","05-THIRD","Third Party Payments","05H","Private contractors","6912","Bed & Breakfast Charges","70055138","201404",01/06/2013 00:00:00,17066,"47846","Letting Agents","REDACTED DATA","THEORI INVESTMENTS LIMITED","4048450","http://opencorporates.com/companies/gb/4048450","773898950"
"London Borough of Redbridge","http://opendatacommunities.org/doc/london-borough-council/redbridge","4BPUBLICTRAN","Public Transport","4CPARKING","Parking Services","REV","Revenue","R7037","Parking Enforcements Non CCTV","05-THIRD","Third Party Payments","05H","Private contractors","6911","Parking Enforcement Contract","60209444","201404",24/06/2013 00:00:00,14164.9,"13750","Car Parking and Garaging","REDACTED DATA","APCOA PARKING (UK) LTD","2572947","http://opencorporates.com/companies/gb/2572947","674177607"
"London Borough of Redbridge","http://opendatacommunities.org/doc/london-borough-council/redbridge","9BNONBVO","Outside the BVACOP Objective Structure","9CNONBVO","Outside the BVACOP Objective Structure","CAP","Capital","C2203","Accident Remediation Local Safety TFL","99-NONBV","Capital, Balance Sheet and Control","50E","Capital - Contract Payments","9150","Main Contract","3289270","201404",08/07/2013 00:00:00,14000,"18632","Civil Engineers","REDACTED DATA","KENSON CONTRACTORS BENINGTON LTD","1314691","http://opencorporates.com/companies/gb/1314691","301629589"
"London Borough of Redbridge","http://opendatacommunities.org/doc/london-borough-council/redbridge","4BPUBLICTRAN","Public Transport","4CPARKING","Parking Services","REV","Revenue","R7037","Parking Enforcements Non CCTV","05-THIRD","Third Party Payments","05E","Government departments","6751","Services Of Government Departments","60208953","201404",24/06/2013 00:00:00,16597,"48583","Local Government","REDACTED DATA","CITY OF LONDON(LONDON COUNCILS)","",,"766069205"
"London Borough of Redbridge","http://opendatacommunities.org/doc/london-borough-council/redbridge","5BGFHOUSING","General Fund Housing","5CHOMELESS","Homelessness","REV","Revenue","R5630","HAC Temporary Accomodation","05-THIRD","Third Party Payments","05H","Private contractors","6913","Nightly Let Charges","70055673","201404",22/07/2013 00:00:00,13605,"47846","Letting Agents","REDACTED DATA","FINEFAIR CONSULTANCY  LTD(NIGHTLY LETS)","4661895","http://opencorporates.com/companies/gb/4661895","809945391"
"London Borough of Redbridge","http://opendatacommunities.org/doc/london-borough-council/redbridge","4BMANGT&SUPP","Management & Support Services","4CHIGHRDROUT","Highways/Roads (Routine)","REV","Revenue","R7049","Grounds Maint Contingency","05-THIRD","Third Party Payments","05H","Private contractors","6915","Contractor Payments","3289279","201404",10/07/2013 00:00:00,13548.41,"18632","Civil Engineers","REDACTED DATA","KENSON CONTRACTORS BENINGTON LTD","1314691","http://opencorporates.com/companies/gb/1314691","301629589"
"London Borough of Redbridge","http://opendatacommunities.org/doc/london-borough-council/redbridge","6BADULTSOCIA","Adult Social Care","6CADMENHLTH","Adults Under 65 with Mental Health Needs","REV","Revenue","R4190","MH - Residential Care","05-THIRD","Third Party Payments","05F","Voluntary associations","6802","Residential Homes","90434584","201404",17/07/2013 00:00:00,16008,"17020","Charities and Voluntary Organisations","REDACTED DATA","VIBRANCE","1152186","http://opencorporates.com/companies/gb/1152186",""
"London Borough of Redbridge","http://opendatacommunities.org/doc/london-borough-council/redbridge","5BGFHOUSING","General Fund Housing","5CHOMELESS","Homelessness","REV","Revenue","R5630","HAC Temporary Accomodation","05-THIRD","Third Party Payments","05H","Private contractors","6912","Bed & Breakfast Charges","70055663","201404",01/07/2013 00:00:00,15870,"47846","Letting Agents","REDACTED DATA","THEORI INVESTMENTS LIMITED","4048450","http://opencorporates.com/companies/gb/4048450","773898950"
"London Borough of Redbridge","http://opendatacommunities.org/doc/london-borough-council/redbridge","4BMANGT&SUPP","Management & Support Services","4CHIGHRDROUT","Highways/Roads (Routine)","REV","Revenue","R7076","Gulley Cleansing","05-THIRD","Third Party Payments","05H","Private contractors","6915","Contractor Payments","3289520","201404",10/07/2013 00:00:00,13207.11,"18632","Civil Engineers","REDACTED DATA","KENSON CONTRACTORS BENINGTON LTD","1314691","http://opencorporates.com/companies/gb/1314691","301629589"
"London Borough of Redbridge","http://opendatacommunities.org/doc/london-borough-council/redbridge","6BADULTSOCIA","Adult Social Care","6CADPHYSDIS","Adults Under 65 with Phys Disab or Sensory Impair","REV","Revenue","R4054","Dis - Section 5 and 6 Residential","05-THIRD","Third Party Payments","05F","Voluntary associations","6802","Residential Homes","90426428","201404",19/06/2013 00:00:00,15999.75,"25820","Disability & Special Needs - Services","REDACTED DATA","DISABILITIES TRUST(SHINEWATER COURT)","",,""
"London Borough of Redbridge","http://opendatacommunities.org/doc/london-borough-council/redbridge","6BADULTSOCIA","Adult Social Care","6CADPHYSDIS","Adults Under 65 with Phys Disab or Sensory Impair","REV","Revenue","R4054","Dis - Section 5 and 6 Residential","05-THIRD","Third Party Payments","05F","Voluntary associations","6802","Residential Homes","90426428","201404",19/06/2013 00:00:00,1066.65,"25820","Disability & Special Needs - Services","REDACTED DATA","DISABILITIES TRUST(SHINEWATER COURT)","",,""
"London Borough of Redbridge","http://opendatacommunities.org/doc/london-borough-council/redbridge","6BADULTSOCIA","Adult Social Care","6CADPHYSDIS","Adults Under 65 with Phys Disab or Sensory Impair","REV","Revenue","R4054","Dis - Section 5 and 6 Residential","09-INCOME","Income","09C","Customer & Client Receipts","8555","Accommodation Charges","90426428","201404",19/06/2013 00:00:00,-77.85,"25820","Disability & Special Needs - Services","REDACTED DATA","DISABILITIES TRUST(SHINEWATER COURT)","",,""
"London Borough of Redbridge","http://opendatacommunities.org/doc/london-borough-council/redbridge","6BADULTSOCIA","Adult Social Care","6CADPHYSDIS","Adults Under 65 with Phys Disab or Sensory Impair","REV","Revenue","R4054","Dis - Section 5 and 6 Residential","09-INCOME","Income","09C","Customer & Client Receipts","8555","Accommodation Charges","90426428","201404",19/06/2013 00:00:00,-1182,"25820","Disability & Special Needs - Services","REDACTED DATA","DISABILITIES TRUST(SHINEWATER COURT)","",,""
"London Borough of Redbridge","http://opendatacommunities.org/doc/london-borough-council/redbridge","4BTRANSPORT","Transport Planning, Policy & Strategy","4CTRANSPP&S","Transport Planning, Policy & Strategy","REV","Revenue","R7009","Highways Asset Management","04-SUPPLIES","Supplies And Services","04E","Services","5754","Consultancy","60209456","201404",17/05/2013 00:00:00,13150,"20703","Computer Systems and Software","REDACTED DATA","BUILDING SOFTWARE LTD","",,""
"London Borough of Redbridge","http://opendatacommunities.org/doc/london-borough-council/redbridge","6BADULTSOCIA","Adult Social Care","6CSERVSTRAT","Service Strategy","REV","Revenue","R4815","Drug Misuse - Adults","05-THIRD","Third Party Payments","05F","Voluntary associations","6800","Voluntary Organisations","90424888","201404",19/06/2013 00:00:00,15662.9,"24200","Day Centres","REDACTED DATA","THE QALB DAY CARE SERVICES LTD","6154843","http://opencorporates.com/companies/gb/6154843",""
"London Borough of Redbridge","http://opendatacommunities.org/doc/london-borough-council/redbridge","9BNONBVO","Outside the BVACOP Objective Structure","9CNONBVO","Outside the BVACOP Objective Structure","CAP","Capital","C2203","Accident Remediation Local Safety TFL","99-NONBV","Capital, Balance Sheet and Control","50E","Capital - Contract Payments","9150","Main Contract","3288491","201404",03/07/2013 00:00:00,13000,"18632","Civil Engineers","REDACTED DATA","KENSON CONTRACTORS BENINGTON LTD","1314691","http://opencorporates.com/companies/gb/1314691","301629589"
"London Borough of Redbridge","http://opendatacommunities.org/doc/london-borough-council/redbridge","9BNONBVO","Outside the BVACOP Objective Structure","9CNONBVO","Outside the BVACOP Objective Structure","CAP","Capital","C2229","Barkingside (Mayor for London Fund)","99-NONBV","Capital, Balance Sheet and Control","50B","Capital - Contracted Works","9055","External - Consultants Fees","60210062","201404",08/07/2013 00:00:00,12795,"31590","Engineers - Consulting","REDACTED DATA","JMP CONSULTANTS LIMITED","8158942","http://opencorporates.com/companies/gb/8158942","162129527"
"London Borough of Redbridge","http://opendatacommunities.org/doc/london-borough-council/redbridge","1BCENTRALPUB","Central Services to the Public","1CLOCALTAXCO","Local Tax Collection","REV","Revenue","R5760","Council Tax Collection","04-SUPPLIES","Supplies And Services","04H","Grants and subscriptions","5954","Professional Fees","60211477","201404",06/06/2013 00:00:00,12600,"22930","Credit Reference Agencies","REDACTED DATA","EXPERIAN LIMITED","653331","http://opencorporates.com/companies/gb/653331","887133593"
"London Borough of Redbridge","http://opendatacommunities.org/doc/london-borough-council/redbridge","9BNONBVO","Outside the BVACOP Objective Structure","9CNONBVO","Outside the BVACOP Objective Structure","BAL","Balance Sheet","B0356","Property Services Franking Machines","99-NONBV","Capital, Balance Sheet and Control","50Q","Other Balances & Reserves","9912","Personal Account - Creditor","70055181","201404",09/07/2013 00:00:00,15000,"60230","Post Office Services","REDACTED DATA","CREDIFON A/C NEOPOST LTD","",,""
"London Borough of Redbridge","http://opendatacommunities.org/doc/london-borough-council/redbridge","9BNONBVO","Outside the BVACOP Objective Structure","9CNONBVO","Outside the BVACOP Objective Structure","CAP","Capital","C2206","Transport and Traffic Management LBR","99-NONBV","Capital, Balance Sheet and Control","50E","Capital - Contract Payments","9150","Main Contract","3288490","201404",03/07/2013 00:00:00,12500,"18632","Civil Engineers","REDACTED DATA","KENSON CONTRACTORS BENINGTON LTD","1314691","http://opencorporates.com/companies/gb/1314691","301629589"
"London Borough of Redbridge","http://opendatacommunities.org/doc/london-borough-council/redbridge","5BGFHOUSING","General Fund Housing","5CHOMELESS","Homelessness","REV","Revenue","R5630","HAC Temporary Accomodation","05-THIRD","Third Party Payments","05H","Private contractors","6900","Nightly Let Plus Charges","70055421","201404",10/07/2013 00:00:00,12391.3,"61896","Property & Estate Management","REDACTED DATA","MANORS SALES & LETTINGS LTD","5098599","http://opencorporates.com/companies/gb/5098599",""
"London Borough of Redbridge","http://opendatacommunities.org/doc/london-borough-council/redbridge","6BSOCIALSERV","Social Services","6CCHILLOOKED","Children Looked After","REV","Revenue","R2135","SEN and CD - Aiming High For Disabled Children","05-THIRD","Third Party Payments","05H","Private contractors","6903","Respite Care Block Contracts","60211191","201404",21/07/2013 00:00:00,14737,"17020","Charities and Voluntary Organisations","REDACTED DATA","CATHOLIC HANDICAP FELLOWSHIP","CHARITY263075","http://opencorporates.com/companies/gb/CHARITY263075",""
"London Borough of Redbridge","http://opendatacommunities.org/doc/london-borough-council/redbridge","5BGFHOUSING","General Fund Housing","5CHOMELESS","Homelessness","REV","Revenue","R5630","HAC Temporary Accomodation","05-THIRD","Third Party Payments","05H","Private contractors","6913","Nightly Let Charges","70055088","201404",01/06/2013 00:00:00,14725,"47846","Letting Agents","REDACTED DATA","THEORI INVESTMENTS LIMITED","4048450","http://opencorporates.com/companies/gb/4048450","773898950"
"London Borough of Redbridge","http://opendatacommunities.org/doc/london-borough-council/redbridge","3BINDSCHFUND","Individual School Funds","3CDELSECOND","Delegated Individual Secondary School Budgets","REV","Revenue","S3076","MAYFIELD -  IT Development","04-SUPPLIES","Supplies And Services","04A","Equipment, furniture and materials","5502","Equipment Purchase","60210761","201404",10/07/2013 00:00:00,12225,"20703","Computer Systems and Software","REDACTED DATA","COMPUTER TALK LTD","2455861","http://opencorporates.com/companies/gb/2455861","731149259"
"London Borough of Redbridge","http://opendatacommunities.org/doc/london-borough-council/redbridge","6BSOCIALSERV","Social Services","6CCHILLOOKED","Children Looked After","REV","Revenue","R2120","CLAFH - Care Purchasing","05-THIRD","Third Party Payments","05H","Private contractors","6907","Private Homes","60211328","201404",31/05/2013 00:00:00,14457.08,"64710","Residential Care Homes","REDACTED DATA","ACTIVE & CARE LTD","5107898","http://opencorporates.com/companies/gb/5107898",""
"London Borough of Redbridge","http://opendatacommunities.org/doc/london-borough-council/redbridge","5BGFHOUSING","General Fund Housing","5CHOMELESS","Homelessness","REV","Revenue","R5630","HAC Temporary Accomodation","05-THIRD","Third Party Payments","05H","Private contractors","6900","Nightly Let Plus Charges","70055422","201404",10/07/2013 00:00:00,12041.4,"61896","Property & Estate Management","REDACTED DATA","MANORS SALES & LETTINGS LTD","5098599","http://opencorporates.com/companies/gb/5098599",""
"London Borough of Redbridge","http://opendatacommunities.org/doc/london-borough-council/redbridge","6BSOCIALSERV","Social Services","6CCHILLOOKED","Children Looked After","REV","Revenue","R2120","CLAFH - Care Purchasing","05-THIRD","Third Party Payments","05H","Private contractors","6907","Private Homes","60207459","201404",13/06/2013 00:00:00,14432.71,"64710","Residential Care Homes","REDACTED DATA","THE RYES COLLEGE LTD","7571638","http://opencorporates.com/companies/gb/7571638",""
"London Borough of Redbridge","http://opendatacommunities.org/doc/london-borough-council/redbridge","5BGFHOUSING","General Fund Housing","5CHOMELESS","Homelessness","REV","Revenue","R5630","HAC Temporary Accomodation","05-THIRD","Third Party Payments","05H","Private contractors","6913","Nightly Let Charges","70055658","201404",01/07/2013 00:00:00,14250,"47846","Letting Agents","REDACTED DATA","THEORI INVESTMENTS LIMITED","4048450","http://opencorporates.com/companies/gb/4048450","773898950"
"London Borough of Redbridge","http://opendatacommunities.org/doc/london-borough-council/redbridge","6BADULTSOCIA","Adult Social Care","6COLDINCMENT","Older People (65 or over) incl. Older Mentally Ill","REV","Revenue","R4378","OP Residential","05-THIRD","Third Party Payments","05F","Voluntary associations","6802","Residential Homes","90434392","201404",25/07/2013 00:00:00,11875,"64710","Residential Care Homes","REDACTED DATA","ALAN & MARINA STACK T/AS ROWALLAN HOUSE","",,""
"London Borough of Redbridge","http://opendatacommunities.org/doc/london-borough-council/redbridge","6BADULTSOCIA","Adult Social Care","6COLDINCMENT","Older People (65 or over) incl. Older Mentally Ill","REV","Revenue","R4378","OP Residential","05-THIRD","Third Party Payments","05F","Voluntary associations","6802","Residential Homes","90434392","201404",25/07/2013 00:00:00,2321.43,"64710","Residential Care Homes","REDACTED DATA","ALAN & MARINA STACK T/AS ROWALLAN HOUSE","",,""
"London Borough of Redbridge","http://opendatacommunities.org/doc/london-borough-council/redbridge","6BSOCIALSERV","Social Services","6CCHILLOOKED","Children Looked After","REV","Revenue","R2120","CLAFH - Care Purchasing","05-THIRD","Third Party Payments","05H","Private contractors","6907","Private Homes","60209044","201404",01/07/2013 00:00:00,14162.66,"64710","Residential Care Homes","REDACTED DATA","LITTLE ACORNS LONDON BEACH FARM LTD","4377528","http://opencorporates.com/companies/gb/4377528",""
"London Borough of Redbridge","http://opendatacommunities.org/doc/london-borough-council/redbridge","6BADULTSOCIA","Adult Social Care","6CSUPPSERMGT","Support Service & Management Costs","REV","Revenue","R4010","TSIF and Practice Teaching","01-EMPLOYEES","Employees","01B","Indirect employee expenses","2408","Other Employee Expenses","60211104","201404",24/06/2013 00:00:00,14000,"48583","Local Government","REDACTED DATA","LONDON BOROUGH OF BARKING & DAGENHAM","",,""
"London Borough of Redbridge","http://opendatacommunities.org/doc/london-borough-council/redbridge","6BSOCIALSERV","Social Services","6CCHILLOOKED","Children Looked After","REV","Revenue","R2120","CLAFH - Care Purchasing","05-THIRD","Third Party Payments","05H","Private contractors","6907","Private Homes","60207458","201404",13/06/2013 00:00:00,13967.14,"64710","Residential Care Homes","REDACTED DATA","THE RYES COLLEGE LTD","7571638","http://opencorporates.com/companies/gb/7571638",""
"London Borough of Redbridge","http://opendatacommunities.org/doc/london-borough-council/redbridge","6BADULTSOCIA","Adult Social Care","6CADLEARNDIS","Adults Under 65 with Learning Disabilities","REV","Revenue","R4241","ONEL � Continuing Care","05-THIRD","Third Party Payments","05F","Voluntary associations","6802","Residential Homes","90434297","201404",17/07/2013 00:00:00,11821.04,"64710","Residential Care Homes","REDACTED DATA","G P & G A SMITH T/AS CHATSWORTH CARE(HOLLYFIELD HOUSE)","",,""
"London Borough of Redbridge","http://opendatacommunities.org/doc/london-borough-council/redbridge","6BADULTSOCIA","Adult Social Care","6CADLEARNDIS","Adults Under 65 with Learning Disabilities","REV","Revenue","R4241","ONEL � Continuing Care","05-THIRD","Third Party Payments","05F","Voluntary associations","6802","Residential Homes","90426815","201404",19/06/2013 00:00:00,11821.04,"64710","Residential Care Homes","REDACTED DATA","G P & G A SMITH T/AS CHATSWORTH CARE(HOLLYFIELD HOUSE)","",,""
"London Borough of Redbridge","http://opendatacommunities.org/doc/london-borough-council/redbridge","6BADULTSOCIA","Adult Social Care","6CADLEARNDIS","Adults Under 65 with Learning Disabilities","REV","Revenue","R4241","ONEL � Continuing Care","05-THIRD","Third Party Payments","05H","Private contractors","6910","Care Packages","90426815","201404",19/06/2013 00:00:00,2074.6,"64710","Residential Care Homes","REDACTED DATA","G P & G A SMITH T/AS CHATSWORTH CARE(HOLLYFIELD HOUSE)","",,""
"London Borough of Redbridge","http://opendatacommunities.org/doc/london-borough-council/redbridge","6BADULTSOCIA","Adult Social Care","6CADLEARNDIS","Adults Under 65 with Learning Disabilities","REV","Revenue","R4241","ONEL � Continuing Care","05-THIRD","Third Party Payments","05H","Private contractors","6910","Care Packages","90434297","201404",17/07/2013 00:00:00,2074.6,"64710","Residential Care Homes","REDACTED DATA","G P & G A SMITH T/AS CHATSWORTH CARE(HOLLYFIELD HOUSE)","",,""
"London Borough of Redbridge","http://opendatacommunities.org/doc/london-borough-council/redbridge","5BGFHOUSING","General Fund Housing","5CHOMELESS","Homelessness","REV","Revenue","R5611","Homelessness Grants","04-SUPPLIES","Supplies And Services","04H","Grants and subscriptions","5950","Grants","60209659","201404",05/07/2013 00:00:00,13750,"17020","Charities and Voluntary Organisations","REDACTED DATA","HEALTHY LIVING PROJECTS LTD","4108124","http://opencorporates.com/companies/gb/4108124",""
"London Borough of Redbridge","http://opendatacommunities.org/doc/london-borough-council/redbridge","5BGFHOUSING","General Fund Housing","5CHOMELESS","Homelessness","REV","Revenue","R5630","HAC Temporary Accomodation","05-THIRD","Third Party Payments","05H","Private contractors","6916","Leasing Payments To Landlords","70055397","201404",12/07/2013 00:00:00,11628.28,"44166","Housing Associations, Societies, Trusts and Co-operatives","REDACTED DATA","EAST THAMES HOUSING GROUP (EAST HOMES)","",,""
"London Borough of Redbridge","http://opendatacommunities.org/doc/london-borough-council/redbridge","5BGFHOUSING","General Fund Housing","5CHOMELESS","Homelessness","REV","Revenue","R5630","HAC Temporary Accomodation","05-THIRD","Third Party Payments","05H","Private contractors","6916","Leasing Payments To Landlords","70054933","201404",26/06/2013 00:00:00,11628.28,"44166","Housing Associations, Societies, Trusts and Co-operatives","REDACTED DATA","EAST THAMES HOUSING GROUP (EAST HOMES)","",,""
"London Borough of Redbridge","http://opendatacommunities.org/doc/london-borough-council/redbridge","5BGFHOUSING","General Fund Housing","5CHOMELESS","Homelessness","REV","Revenue","R5630","HAC Temporary Accomodation","05-THIRD","Third Party Payments","05H","Private contractors","6916","Leasing Payments To Landlords","70055397","201404",12/07/2013 00:00:00,1733.28,"44166","Housing Associations, Societies, Trusts and Co-operatives","REDACTED DATA","EAST THAMES HOUSING GROUP (EAST HOMES)","",,""
"London Borough of Redbridge","http://opendatacommunities.org/doc/london-borough-council/redbridge","5BGFHOUSING","General Fund Housing","5CHOMELESS","Homelessness","REV","Revenue","R5630","HAC Temporary Accomodation","05-THIRD","Third Party Payments","05H","Private contractors","6916","Leasing Payments To Landlords","70054933","201404",26/06/2013 00:00:00,1733.28,"44166","Housing Associations, Societies, Trusts and Co-operatives","REDACTED DATA","EAST THAMES HOUSING GROUP (EAST HOMES)","",,""
"London Borough of Redbridge","http://opendatacommunities.org/doc/london-borough-council/redbridge","6BADULTSOCIA","Adult Social Care","6CADLEARNDIS","Adults Under 65 with Learning Disabilities","REV","Revenue","R4241","ONEL � Continuing Care","05-THIRD","Third Party Payments","05F","Voluntary associations","6802","Residential Homes","90426880","201404",19/06/2013 00:00:00,13617.32,"17020","Charities and Voluntary Organisations","REDACTED DATA","NORWOOD SCHOOLS LTD","516901","http://opencorporates.com/companies/gb/516901","629720917"
"London Borough of Redbridge","http://opendatacommunities.org/doc/london-borough-council/redbridge","3BINDSCHFUND","Individual School Funds","3CDELSECOND","Delegated Individual Secondary School Budgets","REV","Revenue","S2201","TRINITY: CAPITAL: LCVAP","99-NONBV","Capital, Balance Sheet and Control","99B","Accounting & Control","7409","Schools Capital New Construction, Conversion and Renovation","60209618","201404",05/07/2013 00:00:00,13612.5,"11280","Building Consultants","REDACTED DATA","DAVID RACKHAM PARTNERSHIP LTD T/AS DAVID RACKHAM PARNERSHIP","4710318","http://opencorporates.com/companies/gb/4710318","623007975"
"London Borough of Redbridge","http://opendatacommunities.org/doc/london-borough-council/redbridge","2BENVIRONMEN","Environmental Services","2CWASTECOLLN","Waste Collection","REV","Revenue","R6211","Kerbside Collection","04-SUPPLIES","Supplies And Services","04K","Miscellaneous expenses","6263","Supportive Activities","60208701","201404",21/06/2013 00:00:00,11289.6,"21760","Container Mnfrs","REDACTED DATA","STRAIGHT PLC","2923140","http://opencorporates.com/companies/gb/2923140","664757787"
"London Borough of Redbridge","http://opendatacommunities.org/doc/london-borough-council/redbridge","6BADULTSOCIA","Adult Social Care","6CSERVSTRAT","Service Strategy","REV","Revenue","R4816","Alcohol Misuse - Adults","05-THIRD","Third Party Payments","05F","Voluntary associations","6800","Voluntary Organisations","90423818","201404",19/06/2013 00:00:00,13504.64,"17020","Charities and Voluntary Organisations","REDACTED DATA","ONE NORTH EAST LONDON","",,""
"London Borough of Redbridge","http://opendatacommunities.org/doc/london-borough-council/redbridge","9BNONBVO","Outside the BVACOP Objective Structure","9CNONBVO","Outside the BVACOP Objective Structure","CAP","Capital","C2246","Major Schemes Manford Way TFL","99-NONBV","Capital, Balance Sheet and Control","50E","Capital - Contract Payments","9150","Main Contract","60209352","201404",21/06/2013 00:00:00,13369.65,"11780","Bus and Coach Operators and Stations","REDACTED DATA","LONDON BUS SERVICES LIMITED","3914787","http://opencorporates.com/companies/gb/3914787","756277008"
"London Borough of Redbridge","http://opendatacommunities.org/doc/london-borough-council/redbridge","6BADULTSOCIA","Adult Social Care","6CADLEARNDIS","Adults Under 65 with Learning Disabilities","REV","Revenue","R4241","ONEL � Continuing Care","06-TRANSFER","Transfer Payments","06B","Social Services Clients","7066","Supportive Lodgings (Transfer Payments)","90430661","201404",19/06/2013 00:00:00,13276,"43419","Home Care Services","REDACTED DATA","PASHUN OUTREACH TWO LIMITED(RESIDENTIAL SERVICES)","5514016","http://opencorporates.com/companies/gb/5514016",""
"London Borough of Redbridge","http://opendatacommunities.org/doc/london-borough-council/redbridge","5BGFHOUSING","General Fund Housing","5CHOUMGTSUPP","Housing Management & Support Services","REV","Revenue","R5501","Housing Service Admin","04-SUPPLIES","Supplies And Services","04A","Equipment, furniture and materials","5506","Furniture & Fittings - Purchase","793255","201404",27/03/2013 00:00:00,10935,"61961","Property Maintenance & Repairs","REDACTED DATA","ALLIANCE FACILITIES LTD.","4073372","http://opencorporates.com/companies/gb/4073372","761423935"
"London Borough of Redbridge","http://opendatacommunities.org/doc/london-borough-council/redbridge","6BSOCIALSERV","Social Services","6CCHILLOOKED","Children Looked After","REV","Revenue","R2120","CLAFH - Care Purchasing","05-THIRD","Third Party Payments","05H","Private contractors","6907","Private Homes","60210556","201404",03/07/2013 00:00:00,13064.28,"64710","Residential Care Homes","REDACTED DATA","ERA CARE LTD","5921904","http://opencorporates.com/companies/gb/5921904",""
"London Borough of Redbridge","http://opendatacommunities.org/doc/london-borough-council/redbridge","9BNONBVO","Outside the BVACOP Objective Structure","9CNONBVO","Outside the BVACOP Objective Structure","CAP","Capital","C2002","HGC and  R Act96 Dfg`S","99-NONBV","Capital, Balance Sheet and Control","50H","Capital - Deferred Charges","9251","Housing Grants - Mandatory","70055002","201404",12/06/2013 00:00:00,13000,"11040","Builders","REDACTED DATA","H HUNDAL T/AS HATY PROPERTIES (GRANT WORK)","",,"675156906"
"London Borough of Redbridge","http://opendatacommunities.org/doc/london-borough-council/redbridge","5BGFHOUSING","General Fund Housing","5CHOMELESS","Homelessness","REV","Revenue","R5630","HAC Temporary Accomodation","05-THIRD","Third Party Payments","05H","Private contractors","6912","Bed & Breakfast Charges","70055682","201404",22/07/2013 00:00:00,10755,"47846","Letting Agents","REDACTED DATA","FINEFAIR CONSULTANCY  LTD(NIGHTLY LETS)","4661895","http://opencorporates.com/companies/gb/4661895","809945391"
"London Borough of Redbridge","http://opendatacommunities.org/doc/london-borough-council/redbridge","9BNONBVO","Outside the BVACOP Objective Structure","9CNONBVO","Outside the BVACOP Objective Structure","CAP","Capital","C9036","R and R Capital Exp DSO Leases","99-NONBV","Capital, Balance Sheet and Control","50F","Capital - Equipment, Furniture & Fittings","9172","Vehicles","638919","201404",18/07/2013 00:00:00,10497.22,"20370","Commercial Vehicle Dealers","REDACTED DATA","HAYNES BROS LTD- (HAYNES TRUCKS LTD)","48511","http://opencorporates.com/companies/gb/48511","203084901"
"London Borough of Redbridge","http://opendatacommunities.org/doc/london-borough-council/redbridge","9BNONBVO","Outside the BVACOP Objective Structure","9CNONBVO","Outside the BVACOP Objective Structure","CAP","Capital","C9036","R and R Capital Exp DSO Leases","99-NONBV","Capital, Balance Sheet and Control","50F","Capital - Equipment, Furniture & Fittings","9172","Vehicles","638919","201404",18/07/2013 00:00:00,275,"20370","Commercial Vehicle Dealers","REDACTED DATA","HAYNES BROS LTD- (HAYNES TRUCKS LTD)","48511","http://opencorporates.com/companies/gb/48511","203084901"
"London Borough of Redbridge","http://opendatacommunities.org/doc/london-borough-council/redbridge","9BNONBVO","Outside the BVACOP Objective Structure","9CNONBVO","Outside the BVACOP Objective Structure","CAP","Capital","C9036","R and R Capital Exp DSO Leases","99-NONBV","Capital, Balance Sheet and Control","50F","Capital - Equipment, Furniture & Fittings","9172","Vehicles","638920","201404",22/07/2013 00:00:00,10322.61,"20370","Commercial Vehicle Dealers","REDACTED DATA","HAYNES BROS LTD- (HAYNES TRUCKS LTD)","48511","http://opencorporates.com/companies/gb/48511","203084901"
"London Borough of Redbridge","http://opendatacommunities.org/doc/london-borough-council/redbridge","9BNONBVO","Outside the BVACOP Objective Structure","9CNONBVO","Outside the BVACOP Objective Structure","CAP","Capital","C9036","R and R Capital Exp DSO Leases","99-NONBV","Capital, Balance Sheet and Control","50F","Capital - Equipment, Furniture & Fittings","9172","Vehicles","638920","201404",22/07/2013 00:00:00,275,"20370","Commercial Vehicle Dealers","REDACTED DATA","HAYNES BROS LTD- (HAYNES TRUCKS LTD)","48511","http://opencorporates.com/companies/gb/48511","203084901"
"London Borough of Redbridge","http://opendatacommunities.org/doc/london-borough-council/redbridge","6BSOCIALSERV","Social Services","6CCHILLOOKED","Children Looked After","REV","Revenue","R2120","CLAFH - Care Purchasing","05-THIRD","Third Party Payments","05H","Private contractors","6907","Private Homes","60210557","201404",03/07/2013 00:00:00,12642.86,"64710","Residential Care Homes","REDACTED DATA","ERA CARE LTD","5921904","http://opencorporates.com/companies/gb/5921904",""
"London Borough of Redbridge","http://opendatacommunities.org/doc/london-borough-council/redbridge","9BNONBVO","Outside the BVACOP Objective Structure","9CNONBVO","Outside the BVACOP Objective Structure","REV","Revenue","R5048","HRA Consultancy Costs","04-SUPPLIES","Supplies And Services","04E","Services","5754","Consultancy","60209167","201404",30/06/2013 00:00:00,10500,"12100","Business and Management Consultants","REDACTED DATA","ALTAIR CONSULTANCY & ADVISORY SERVICES LTD","7463003","http://opencorporates.com/companies/gb/7463003","105701357"
"London Borough of Redbridge","http://opendatacommunities.org/doc/london-borough-council/redbridge","6BADULTSOCIA","Adult Social Care","6CADLEARNDIS","Adults Under 65 with Learning Disabilities","REV","Revenue","R4185","LD - Supported Living","06-TRANSFER","Transfer Payments","06B","Social Services Clients","7066","Supportive Lodgings (Transfer Payments)","90426841","201404",19/06/2013 00:00:00,4709.32,"17020","Charities and Voluntary Organisations","REDACTED DATA","MENCAP","550457","http://opencorporates.com/companies/gb/550457","233010136"
"London Borough of Redbridge","http://opendatacommunities.org/doc/london-borough-council/redbridge","6BADULTSOCIA","Adult Social Care","6CADLEARNDIS","Adults Under 65 with Learning Disabilities","REV","Revenue","R4185","LD - Supported Living","06-TRANSFER","Transfer Payments","06B","Social Services Clients","7066","Supportive Lodgings (Transfer Payments)","90426841","201404",19/06/2013 00:00:00,4512.76,"17020","Charities and Voluntary Organisations","REDACTED DATA","MENCAP","550457","http://opencorporates.com/companies/gb/550457","233010136"
"London Borough of Redbridge","http://opendatacommunities.org/doc/london-borough-council/redbridge","6BADULTSOCIA","Adult Social Care","6CADLEARNDIS","Adults Under 65 with Learning Disabilities","REV","Revenue","R4185","LD - Supported Living","09-INCOME","Income","09C","Customer & Client Receipts","8553","Care Package Charges","90426841","201404",19/06/2013 00:00:00,3337.6,"17020","Charities and Voluntary Organisations","REDACTED DATA","MENCAP","550457","http://opencorporates.com/companies/gb/550457","233010136"
"London Borough of Redbridge","http://opendatacommunities.org/doc/london-borough-council/redbridge","6BADULTSOCIA","Adult Social Care","6CSERVSTRAT","Service Strategy","REV","Revenue","R4813","Physical Activity - Adults","05-THIRD","Third Party Payments","05F","Voluntary associations","6800","Voluntary Organisations","90424879","201404",19/06/2013 00:00:00,12460,"17020","Charities and Voluntary Organisations","REDACTED DATA","REDBRIDGE COUNCIL FOR VOLUNTARY SERVICES","",,""
"London Borough of Redbridge","http://opendatacommunities.org/doc/london-borough-council/redbridge","1BOTHEROPI&E","Other Operating Income & Expenditure","1CTRADSURDEF","Trading Account Surpluses & Deficits","REV","Revenue","R9460","Human Resources misc","04-SUPPLIES","Supplies And Services","04H","Grants and subscriptions","5954","Professional Fees","60208234","201404",18/06/2013 00:00:00,12100,"53385","Occupational Therapists","REDACTED DATA","DR F M KENNEDY","",,""
"London Borough of Redbridge","http://opendatacommunities.org/doc/london-borough-council/redbridge","3BINDSCHFUND","Individual School Funds","3CDELPRIMARY","Delegated Individual Primary School Budgets","REV","Revenue","S2714","Winston : ICT","04-SUPPLIES","Supplies And Services","04F","Communications and computing","5863","Curriculum Hardware","60209426","201404",01/07/2013 00:00:00,10059,"20623","Computer Consumables & Stationery","REDACTED DATA","TOUCAN COMPUTING LTD","3185327","http://opencorporates.com/companies/gb/3185327","676198387"
"London Borough of Redbridge","http://opendatacommunities.org/doc/london-borough-council/redbridge","4BMANGT&SUPP","Management & Support Services","4CHIGHRDROUT","Highways/Roads (Routine)","REV","Revenue","R7075","Drainage","05-THIRD","Third Party Payments","05H","Private contractors","6915","Contractor Payments","3288723","201404",01/07/2013 00:00:00,10000,"18632","Civil Engineers","REDACTED DATA","KENSON CONTRACTORS BENINGTON LTD","1314691","http://opencorporates.com/companies/gb/1314691","301629589"
"London Borough of Redbridge","http://opendatacommunities.org/doc/london-borough-council/redbridge","9BNONBVO","Outside the BVACOP Objective Structure","9CNONBVO","Outside the BVACOP Objective Structure","CAP","Capital","C2105","Communal","99-NONBV","Capital, Balance Sheet and Control","50E","Capital - Contract Payments","9150","Main Contract","60208973","201404",01/07/2013 00:00:00,10000,"54687","Fire Safety Risk Assessments","REDACTED DATA","LONDON FIRE CONSULTANTS & DESIGN ASSOC LTD","4412441","http://opencorporates.com/companies/gb/4412441","946262900"
"London Borough of Redbridge","http://opendatacommunities.org/doc/london-borough-council/redbridge","9BNONBVO","Outside the BVACOP Objective Structure","9CNONBVO","Outside the BVACOP Objective Structure","CAP","Capital","C2203","Accident Remediation Local Safety TFL","99-NONBV","Capital, Balance Sheet and Control","50E","Capital - Contract Payments","9150","Main Contract","3288733","201404",04/07/2013 00:00:00,10000,"66370","Sand, Gravel & Other Aggregates","REDACTED DATA","LAFARGE AGGREGATES LTD","297905","http://opencorporates.com/companies/gb/297905","210479684"
"London Borough of Redbridge","http://opendatacommunities.org/doc/london-borough-council/redbridge","9BNONBVO","Outside the BVACOP Objective Structure","9CNONBVO","Outside the BVACOP Objective Structure","CAP","Capital","C2254","Radial Corridor 1 TFL","99-NONBV","Capital, Balance Sheet and Control","50E","Capital - Contract Payments","9150","Main Contract","3290364","201404",11/07/2013 00:00:00,10000,"18632","Civil Engineers","REDACTED DATA","KENSON CONTRACTORS BENINGTON LTD","1314691","http://opencorporates.com/companies/gb/1314691","301629589"
"London Borough of Redbridge","http://opendatacommunities.org/doc/london-borough-council/redbridge","1BOTHEROPI&E","Other Operating Income & Expenditure","1CTRADSURDEF","Trading Account Surpluses & Deficits","REV","Revenue","R9252","IT Services","04-SUPPLIES","Supplies And Services","04F","Communications and computing","5854","Exchange Line Rental","3288949","201404",25/06/2013 00:00:00,461.7,"76510","Telecommunication Services","REDACTED DATA","TALKTALK COMMUNICATIONS LTD T/AS TALKTALK BUSINESS","3849133","http://opencorporates.com/companies/gb/3849133","744032068"
"London Borough of Redbridge","http://opendatacommunities.org/doc/london-borough-council/redbridge","1BOTHEROPI&E","Other Operating Income & Expenditure","1CTRADSURDEF","Trading Account Surpluses & Deficits","REV","Revenue","R9252","IT Services","04-SUPPLIES","Supplies And Services","04F","Communications and computing","5854","Exchange Line Rental","3288949","201404",25/06/2013 00:00:00,434.41,"76510","Telecommunication Services","REDACTED DATA","TALKTALK COMMUNICATIONS LTD T/AS TALKTALK BUSINESS","3849133","http://opencorporates.com/companies/gb/3849133","744032068"
"London Borough of Redbridge","http://opendatacommunities.org/doc/london-borough-council/redbridge","1BOTHEROPI&E","Other Operating Income & Expenditure","1CTRADSURDEF","Trading Account Surpluses & Deficits","REV","Revenue","R9252","IT Services","04-SUPPLIES","Supplies And Services","04F","Communications and computing","5854","Exchange Line Rental","3288949","201404",25/06/2013 00:00:00,395.42,"76510","Telecommunication Services","REDACTED DATA","TALKTALK COMMUNICATIONS LTD T/AS TALKTALK BUSINESS","3849133","http://opencorporates.com/companies/gb/3849133","744032068"
"London Borough of Redbridge","http://opendatacommunities.org/doc/london-borough-council/redbridge","1BOTHEROPI&E","Other Operating Income & Expenditure","1CTRADSURDEF","Trading Account Surpluses & Deficits","REV","Revenue","R9252","IT Services","04-SUPPLIES","Supplies And Services","04F","Communications and computing","5854","Exchange Line Rental","3288949","201404",25/06/2013 00:00:00,380,"76510","Telecommunication Services","REDACTED DATA","TALKTALK COMMUNICATIONS LTD T/AS TALKTALK BUSINESS","3849133","http://opencorporates.com/companies/gb/3849133","744032068"
"London Borough of Redbridge","http://opendatacommunities.org/doc/london-borough-council/redbridge","1BOTHEROPI&E","Other Operating Income & Expenditure","1CTRADSURDEF","Trading Account Surpluses & Deficits","REV","Revenue","R9252","IT Services","04-SUPPLIES","Supplies And Services","04F","Communications and computing","5854","Exchange Line Rental","3288949","201404",25/06/2013 00:00:00,360,"76510","Telecommunication Services","REDACTED DATA","TALKTALK COMMUNICATIONS LTD T/AS TALKTALK BUSINESS","3849133","http://opencorporates.com/companies/gb/3849133","744032068"
"London Borough of Redbridge","http://opendatacommunities.org/doc/london-borough-council/redbridge","1BOTHEROPI&E","Other Operating Income & Expenditure","1CTRADSURDEF","Trading Account Surpluses & Deficits","REV","Revenue","R9252","IT Services","04-SUPPLIES","Supplies And Services","04F","Communications and computing","5854","Exchange Line Rental","3288949","201404",25/06/2013 00:00:00,360,"76510","Telecommunication Services","REDACTED DATA","TALKTALK COMMUNICATIONS LTD T/AS TALKTALK BUSINESS","3849133","http://opencorporates.com/companies/gb/3849133","744032068"
"London Borough of Redbridge","http://opendatacommunities.org/doc/london-borough-council/redbridge","1BOTHEROPI&E","Other Operating Income & Expenditure","1CTRADSURDEF","Trading Account Surpluses & Deficits","REV","Revenue","R9252","IT Services","04-SUPPLIES","Supplies And Services","04F","Communications and computing","5854","Exchange Line Rental","3288949","201404",25/06/2013 00:00:00,350.17,"76510","Telecommunication Services","REDACTED DATA","TALKTALK COMMUNICATIONS LTD T/AS TALKTALK BUSINESS","3849133","http://opencorporates.com/companies/gb/3849133","744032068"
"London Borough of Redbridge","http://opendatacommunities.org/doc/london-borough-council/redbridge","1BOTHEROPI&E","Other Operating Income & Expenditure","1CTRADSURDEF","Trading Account Surpluses & Deficits","REV","Revenue","R9252","IT Services","04-SUPPLIES","Supplies And Services","04F","Communications and computing","5854","Exchange Line Rental","3288949","201404",25/06/2013 00:00:00,300,"76510","Telecommunication Services","REDACTED DATA","TALKTALK COMMUNICATIONS LTD T/AS TALKTALK BUSINESS","3849133","http://opencorporates.com/companies/gb/3849133","744032068"
"London Borough of Redbridge","http://opendatacommunities.org/doc/london-borough-council/redbridge","1BOTHEROPI&E","Other Operating Income & Expenditure","1CTRADSURDEF","Trading Account Surpluses & Deficits","REV","Revenue","R9252","IT Services","04-SUPPLIES","Supplies And Services","04F","Communications and computing","5854","Exchange Line Rental","3288949","201404",25/06/2013 00:00:00,265.91,"76510","Telecommunication Services","REDACTED DATA","TALKTALK COMMUNICATIONS LTD T/AS TALKTALK BUSINESS","3849133","http://opencorporates.com/companies/gb/3849133","744032068"
"London Borough of Redbridge","http://opendatacommunities.org/doc/london-borough-council/redbridge","1BOTHEROPI&E","Other Operating Income & Expenditure","1CTRADSURDEF","Trading Account Surpluses & Deficits","REV","Revenue","R9252","IT Services","04-SUPPLIES","Supplies And Services","04F","Communications and computing","5854","Exchange Line Rental","3288949","201404",25/06/2013 00:00:00,257.09,"76510","Telecommunication Services","REDACTED DATA","TALKTALK COMMUNICATIONS LTD T/AS TALKTALK BUSINESS","3849133","http://opencorporates.com/companies/gb/3849133","744032068"
"London Borough of Redbridge","http://opendatacommunities.org/doc/london-borough-council/redbridge","1BOTHEROPI&E","Other Operating Income & Expenditure","1CTRADSURDEF","Trading Account Surpluses & Deficits","REV","Revenue","R9252","IT Services","04-SUPPLIES","Supplies And Services","04F","Communications and computing","5854","Exchange Line Rental","3288949","201404",25/06/2013 00:00:00,217.72,"76510","Telecommunication Services","REDACTED DATA","TALKTALK COMMUNICATIONS LTD T/AS TALKTALK BUSINESS","3849133","http://opencorporates.com/companies/gb/3849133","744032068"
"London Borough of Redbridge","http://opendatacommunities.org/doc/london-borough-council/redbridge","1BOTHEROPI&E","Other Operating Income & Expenditure","1CTRADSURDEF","Trading Account Surpluses & Deficits","REV","Revenue","R9252","IT Services","04-SUPPLIES","Supplies And Services","04F","Communications and computing","5854","Exchange Line Rental","3288949","201404",25/06/2013 00:00:00,207.89,"76510","Telecommunication Services","REDACTED DATA","TALKTALK COMMUNICATIONS LTD T/AS TALKTALK BUSINESS","3849133","http://opencorporates.com/companies/gb/3849133","744032068"
"London Borough of Redbridge","http://opendatacommunities.org/doc/london-borough-council/redbridge","1BOTHEROPI&E","Other Operating Income & Expenditure","1CTRADSURDEF","Trading Account Surpluses & Deficits","REV","Revenue","R9252","IT Services","04-SUPPLIES","Supplies And Services","04F","Communications and computing","5854","Exchange Line Rental","3288949","201404",25/06/2013 00:00:00,206.41,"76510","Telecommunication Services","REDACTED DATA","TALKTALK COMMUNICATIONS LTD T/AS TALKTALK BUSINESS","3849133","http://opencorporates.com/companies/gb/3849133","744032068"
"London Borough of Redbridge","http://opendatacommunities.org/doc/london-borough-council/redbridge","1BOTHEROPI&E","Other Operating Income & Expenditure","1CTRADSURDEF","Trading Account Surpluses & Deficits","REV","Revenue","R9252","IT Services","04-SUPPLIES","Supplies And Services","04F","Communications and computing","5854","Exchange Line Rental","3288949","201404",25/06/2013 00:00:00,197.4,"76510","Telecommunication Services","REDACTED DATA","TALKTALK COMMUNICATIONS LTD T/AS TALKTALK BUSINESS","3849133","http://opencorporates.com/companies/gb/3849133","744032068"
"London Borough of Redbridge","http://opendatacommunities.org/doc/london-borough-council/redbridge","1BOTHEROPI&E","Other Operating Income & Expenditure","1CTRADSURDEF","Trading Account Surpluses & Deficits","REV","Revenue","R9252","IT Services","04-SUPPLIES","Supplies And Services","04F","Communications and computing","5854","Exchange Line Rental","3288949","201404",25/06/2013 00:00:00,192.72,"76510","Telecommunication Services","REDACTED DATA","TALKTALK COMMUNICATIONS LTD T/AS TALKTALK BUSINESS","3849133","http://opencorporates.com/companies/gb/3849133","744032068"
"London Borough of Redbridge","http://opendatacommunities.org/doc/london-borough-council/redbridge","1BOTHEROPI&E","Other Operating Income & Expenditure","1CTRADSURDEF","Trading Account Surpluses & Deficits","REV","Revenue","R9252","IT Services","04-SUPPLIES","Supplies And Services","04F","Communications and computing","5854","Exchange Line Rental","3288949","201404",25/06/2013 00:00:00,166.48,"76510","Telecommunication Services","REDACTED DATA","TALKTALK COMMUNICATIONS LTD T/AS TALKTALK BUSINESS","3849133","http://opencorporates.com/companies/gb/3849133","744032068"
"London Borough of Redbridge","http://opendatacommunities.org/doc/london-borough-council/redbridge","1BOTHEROPI&E","Other Operating Income & Expenditure","1CTRADSURDEF","Trading Account Surpluses & Deficits","REV","Revenue","R9252","IT Services","04-SUPPLIES","Supplies And Services","04F","Communications and computing","5854","Exchange Line Rental","3288949","201404",25/06/2013 00:00:00,165.37,"76510","Telecommunication Services","REDACTED DATA","TALKTALK COMMUNICATIONS LTD T/AS TALKTALK BUSINESS","3849133","http://opencorporates.com/companies/gb/3849133","744032068"
"London Borough of Redbridge","http://opendatacommunities.org/doc/london-borough-council/redbridge","1BOTHEROPI&E","Other Operating Income & Expenditure","1CTRADSURDEF","Trading Account Surpluses & Deficits","REV","Revenue","R9252","IT Services","04-SUPPLIES","Supplies And Services","04F","Communications and computing","5854","Exchange Line Rental","3288949","201404",25/06/2013 00:00:00,159.19,"76510","Telecommunication Services","REDACTED DATA","TALKTALK COMMUNICATIONS LTD T/AS TALKTALK BUSINESS","3849133","http://opencorporates.com/companies/gb/3849133","744032068"
"London Borough of Redbridge","http://opendatacommunities.org/doc/london-borough-council/redbridge","1BOTHEROPI&E","Other Operating Income & Expenditure","1CTRADSURDEF","Trading Account Surpluses & Deficits","REV","Revenue","R9252","IT Services","04-SUPPLIES","Supplies And Services","04F","Communications and computing","5854","Exchange Line Rental","3288949","201404",25/06/2013 00:00:00,154.52,"76510","Telecommunication Services","REDACTED DATA","TALKTALK COMMUNICATIONS LTD T/AS TALKTALK BUSINESS","3849133","http://opencorporates.com/companies/gb/3849133","744032068"
"London Borough of Redbridge","http://opendatacommunities.org/doc/london-borough-council/redbridge","1BOTHEROPI&E","Other Operating Income & Expenditure","1CTRADSURDEF","Trading Account Surpluses & Deficits","REV","Revenue","R9252","IT Services","04-SUPPLIES","Supplies And Services","04F","Communications and computing","5854","Exchange Line Rental","3288949","201404",25/06/2013 00:00:00,148.81,"76510","Telecommunication Services","REDACTED DATA","TALKTALK COMMUNICATIONS LTD T/AS TALKTALK BUSINESS","3849133","http://opencorporates.com/companies/gb/3849133","744032068"
"London Borough of Redbridge","http://opendatacommunities.org/doc/london-borough-council/redbridge","1BOTHEROPI&E","Other Operating Income & Expenditure","1CTRADSURDEF","Trading Account Surpluses & Deficits","REV","Revenue","R9252","IT Services","04-SUPPLIES","Supplies And Services","04F","Communications and computing","5854","Exchange Line Rental","3288949","201404",25/06/2013 00:00:00,146.54,"76510","Telecommunication Services","REDACTED DATA","TALKTALK COMMUNICATIONS LTD T/AS TALKTALK BUSINESS","3849133","http://opencorporates.com/companies/gb/3849133","744032068"
"London Borough of Redbridge","http://opendatacommunities.org/doc/london-borough-council/redbridge","1BOTHEROPI&E","Other Operating Income & Expenditure","1CTRADSURDEF","Trading Account Surpluses & Deficits","REV","Revenue","R9252","IT Services","04-SUPPLIES","Supplies And Services","04F","Communications and computing","5854","Exchange Line Rental","3288949","201404",25/06/2013 00:00:00,146.31,"76510","Telecommunication Services","REDACTED DATA","TALKTALK COMMUNICATIONS LTD T/AS TALKTALK BUSINESS","3849133","http://opencorporates.com/companies/gb/3849133","744032068"
"London Borough of Redbridge","http://opendatacommunities.org/doc/london-borough-council/redbridge","1BOTHEROPI&E","Other Operating Income & Expenditure","1CTRADSURDEF","Trading Account Surpluses & Deficits","REV","Revenue","R9252","IT Services","04-SUPPLIES","Supplies And Services","04F","Communications and computing","5854","Exchange Line Rental","3288949","201404",25/06/2013 00:00:00,138.1,"76510","Telecommunication Services","REDACTED DATA","TALKTALK COMMUNICATIONS LTD T/AS TALKTALK BUSINESS","3849133","http://opencorporates.com/companies/gb/3849133","744032068"
"London Borough of Redbridge","http://opendatacommunities.org/doc/london-borough-council/redbridge","1BOTHEROPI&E","Other Operating Income & Expenditure","1CTRADSURDEF","Trading Account Surpluses & Deficits","REV","Revenue","R9252","IT Services","04-SUPPLIES","Supplies And Services","04F","Communications and computing","5854","Exchange Line Rental","3288949","201404",25/06/2013 00:00:00,133.46,"76510","Telecommunication Services","REDACTED DATA","TALKTALK COMMUNICATIONS LTD T/AS TALKTALK BUSINESS","3849133","http://opencorporates.com/companies/gb/3849133","744032068"
"London Borough of Redbridge","http://opendatacommunities.org/doc/london-borough-council/redbridge","1BOTHEROPI&E","Other Operating Income & Expenditure","1CTRADSURDEF","Trading Account Surpluses & Deficits","REV","Revenue","R9252","IT Services","04-SUPPLIES","Supplies And Services","04F","Communications and computing","5854","Exchange Line Rental","3288949","201404",25/06/2013 00:00:00,117.07,"76510","Telecommunication Services","REDACTED DATA","TALKTALK COMMUNICATIONS LTD T/AS TALKTALK BUSINESS","3849133","http://opencorporates.com/companies/gb/3849133","744032068"
"London Borough of Redbridge","http://opendatacommunities.org/doc/london-borough-council/redbridge","1BOTHEROPI&E","Other Operating Income & Expenditure","1CTRADSURDEF","Trading Account Surpluses & Deficits","REV","Revenue","R9607","Ley Street Depot","04-SUPPLIES","Supplies And Services","04F","Communications and computing","5858","Phones","3288949","201404",25/06/2013 00:00:00,115,"76510","Telecommunication Services","REDACTED DATA","TALKTALK COMMUNICATIONS LTD T/AS TALKTALK BUSINESS","3849133","http://opencorporates.com/companies/gb/3849133","744032068"
"London Borough of Redbridge","http://opendatacommunities.org/doc/london-borough-council/redbridge","1BOTHEROPI&E","Other Operating Income & Expenditure","1CTRADSURDEF","Trading Account Surpluses & Deficits","REV","Revenue","R9252","IT Services","04-SUPPLIES","Supplies And Services","04F","Communications and computing","5854","Exchange Line Rental","3288949","201404",25/06/2013 00:00:00,110.77,"76510","Telecommunication Services","REDACTED DATA","TALKTALK COMMUNICATIONS LTD T/AS TALKTALK BUSINESS","3849133","http://opencorporates.com/companies/gb/3849133","744032068"
"London Borough of Redbridge","http://opendatacommunities.org/doc/london-borough-council/redbridge","6BSOCIALSERV","Social Services","6CCHILLOOKED","Children Looked After","REV","Revenue","R2175","Ray Lodge Building","04-SUPPLIES","Supplies And Services","04F","Communications and computing","5854","Exchange Line Rental","3288949","201404",25/06/2013 00:00:00,108,"76510","Telecommunication Services","REDACTED DATA","TALKTALK COMMUNICATIONS LTD T/AS TALKTALK BUSINESS","3849133","http://opencorporates.com/companies/gb/3849133","744032068"
"London Borough of Redbridge","http://opendatacommunities.org/doc/london-borough-council/redbridge","6BSOCIALSERV","Social Services","6CCHILLOOKED","Children Looked After","REV","Revenue","R2175","Ray Lodge Building","04-SUPPLIES","Supplies And Services","04F","Communications and computing","5854","Exchange Line Rental","3288949","201404",25/06/2013 00:00:00,101.58,"76510","Telecommunication Services","REDACTED DATA","TALKTALK COMMUNICATIONS LTD T/AS TALKTALK BUSINESS","3849133","http://opencorporates.com/companies/gb/3849133","744032068"
"London Borough of Redbridge","http://opendatacommunities.org/doc/london-borough-council/redbridge","1BOTHEROPI&E","Other Operating Income & Expenditure","1CTRADSURDEF","Trading Account Surpluses & Deficits","REV","Revenue","R9252","IT Services","04-SUPPLIES","Supplies And Services","04F","Communications and computing","5854","Exchange Line Rental","3288949","201404",25/06/2013 00:00:00,92.77,"76510","Telecommunication Services","REDACTED DATA","TALKTALK COMMUNICATIONS LTD T/AS TALKTALK BUSINESS","3849133","http://opencorporates.com/companies/gb/3849133","744032068"
"London Borough of Redbridge","http://opendatacommunities.org/doc/london-borough-council/redbridge","1BOTHEROPI&E","Other Operating Income & Expenditure","1CTRADSURDEF","Trading Account Surpluses & Deficits","REV","Revenue","R9252","IT Services","04-SUPPLIES","Supplies And Services","04F","Communications and computing","5854","Exchange Line Rental","3288949","201404",25/06/2013 00:00:00,90.35,"76510","Telecommunication Services","REDACTED DATA","TALKTALK COMMUNICATIONS LTD T/AS TALKTALK BUSINESS","3849133","http://opencorporates.com/companies/gb/3849133","744032068"
"London Borough of Redbridge","http://opendatacommunities.org/doc/london-borough-council/redbridge","3BNONSCHFUND","Non-School Funding","3CNONSCH","Non Schools","REV","Revenue","R3942","Cranbrook CC","04-SUPPLIES","Supplies And Services","04F","Communications and computing","5854","Exchange Line Rental","3288949","201404",25/06/2013 00:00:00,84,"76510","Telecommunication Services","REDACTED DATA","TALKTALK COMMUNICATIONS LTD T/AS TALKTALK BUSINESS","3849133","http://opencorporates.com/companies/gb/3849133","744032068"
"London Borough of Redbridge","http://opendatacommunities.org/doc/london-borough-council/redbridge","3BOPTIONHLDG","Optional Holding Accounts","3CYOUTH","Youth Service","REV","Revenue","R3359","Effective Practice","04-SUPPLIES","Supplies And Services","04F","Communications and computing","5854","Exchange Line Rental","3288949","201404",25/06/2013 00:00:00,83.7,"76510","Telecommunication Services","REDACTED DATA","TALKTALK COMMUNICATIONS LTD T/AS TALKTALK BUSINESS","3849133","http://opencorporates.com/companies/gb/3849133","744032068"
"London Borough of Redbridge","http://opendatacommunities.org/doc/london-borough-council/redbridge","1BOTHEROPI&E","Other Operating Income & Expenditure","1CTRADSURDEF","Trading Account Surpluses & Deficits","REV","Revenue","R9252","IT Services","04-SUPPLIES","Supplies And Services","04F","Communications and computing","5854","Exchange Line Rental","3288949","201404",25/06/2013 00:00:00,81.12,"76510","Telecommunication Services","REDACTED DATA","TALKTALK COMMUNICATIONS LTD T/AS TALKTALK BUSINESS","3849133","http://opencorporates.com/companies/gb/3849133","744032068"
"London Borough of Redbridge","http://opendatacommunities.org/doc/london-borough-council/redbridge","1BOTHEROPI&E","Other Operating Income & Expenditure","1CTRADSURDEF","Trading Account Surpluses & Deficits","REV","Revenue","R9252","IT Services","04-SUPPLIES","Supplies And Services","04F","Communications and computing","5854","Exchange Line Rental","3288949","201404",25/06/2013 00:00:00,76.12,"76510","Telecommunication Services","REDACTED DATA","TALKTALK COMMUNICATIONS LTD T/AS TALKTALK BUSINESS","3849133","http://opencorporates.com/companies/gb/3849133","744032068"
"London Borough of Redbridge","http://opendatacommunities.org/doc/london-borough-council/redbridge","1BOTHEROPI&E","Other Operating Income & Expenditure","1CTRADSURDEF","Trading Account Surpluses & Deficits","REV","Revenue","R9252","IT Services","04-SUPPLIES","Supplies And Services","04F","Communications and computing","5854","Exchange Line Rental","3288949","201404",25/06/2013 00:00:00,75.92,"76510","Telecommunication Services","REDACTED DATA","TALKTALK COMMUNICATIONS LTD T/AS TALKTALK BUSINESS","3849133","http://opencorporates.com/companies/gb/3849133","744032068"
"London Borough of Redbridge","http://opendatacommunities.org/doc/london-borough-council/redbridge","1BOTHEROPI&E","Other Operating Income & Expenditure","1CTRADSURDEF","Trading Account Surpluses & Deficits","REV","Revenue","R9252","IT Services","04-SUPPLIES","Supplies And Services","04F","Communications and computing","5854","Exchange Line Rental","3288949","201404",25/06/2013 00:00:00,72.36,"76510","Telecommunication Services","REDACTED DATA","TALKTALK COMMUNICATIONS LTD T/AS TALKTALK BUSINESS","3849133","http://opencorporates.com/companies/gb/3849133","744032068"
"London Borough of Redbridge","http://opendatacommunities.org/doc/london-borough-council/redbridge","1BOTHEROPI&E","Other Operating Income & Expenditure","1CTRADSURDEF","Trading Account Surpluses & Deficits","REV","Revenue","R9252","IT Services","04-SUPPLIES","Supplies And Services","04F","Communications and computing","5854","Exchange Line Rental","3288949","201404",25/06/2013 00:00:00,69.68,"76510","Telecommunication Services","REDACTED DATA","TALKTALK COMMUNICATIONS LTD T/AS TALKTALK BUSINESS","3849133","http://opencorporates.com/companies/gb/3849133","744032068"
"London Borough of Redbridge","http://opendatacommunities.org/doc/london-borough-council/redbridge","1BOTHEROPI&E","Other Operating Income & Expenditure","1CTRADSURDEF","Trading Account Surpluses & Deficits","REV","Revenue","R9252","IT Services","04-SUPPLIES","Supplies And Services","04F","Communications and computing","5854","Exchange Line Rental","3288949","201404",25/06/2013 00:00:00,67.96,"76510","Telecommunication Services","REDACTED DATA","TALKTALK COMMUNICATIONS LTD T/AS TALKTALK BUSINESS","3849133","http://opencorporates.com/companies/gb/3849133","744032068"
"London Borough of Redbridge","http://opendatacommunities.org/doc/london-borough-council/redbridge","1BOTHEROPI&E","Other Operating Income & Expenditure","1CTRADSURDEF","Trading Account Surpluses & Deficits","REV","Revenue","R9252","IT Services","04-SUPPLIES","Supplies And Services","04F","Communications and computing","5854","Exchange Line Rental","3288949","201404",25/06/2013 00:00:00,66.48,"76510","Telecommunication Services","REDACTED DATA","TALKTALK COMMUNICATIONS LTD T/AS TALKTALK BUSINESS","3849133","http://opencorporates.com/companies/gb/3849133","744032068"
"London Borough of Redbridge","http://opendatacommunities.org/doc/london-borough-council/redbridge","1BOTHEROPI&E","Other Operating Income & Expenditure","1CTRADSURDEF","Trading Account Surpluses & Deficits","REV","Revenue","R9252","IT Services","04-SUPPLIES","Supplies And Services","04F","Communications and computing","5854","Exchange Line Rental","3288949","201404",25/06/2013 00:00:00,65.26,"76510","Telecommunication Services","REDACTED DATA","TALKTALK COMMUNICATIONS LTD T/AS TALKTALK BUSINESS","3849133","http://opencorporates.com/companies/gb/3849133","744032068"
"London Borough of Redbridge","http://opendatacommunities.org/doc/london-borough-council/redbridge","1BOTHEROPI&E","Other Operating Income & Expenditure","1CTRADSURDEF","Trading Account Surpluses & Deficits","REV","Revenue","R9252","IT Services","04-SUPPLIES","Supplies And Services","04F","Communications and computing","5854","Exchange Line Rental","3288949","201404",25/06/2013 00:00:00,60,"76510","Telecommunication Services","REDACTED DATA","TALKTALK COMMUNICATIONS LTD T/AS TALKTALK BUSINESS","3849133","http://opencorporates.com/companies/gb/3849133","744032068"
"London Borough of Redbridge","http://opendatacommunities.org/doc/london-borough-council/redbridge","1BOTHEROPI&E","Other Operating Income & Expenditure","1CTRADSURDEF","Trading Account Surpluses & Deficits","REV","Revenue","R9252","IT Services","04-SUPPLIES","Supplies And Services","04F","Communications and computing","5854","Exchange Line Rental","3288949","201404",25/06/2013 00:00:00,59.97,"76510","Telecommunication Services","REDACTED DATA","TALKTALK COMMUNICATIONS LTD T/AS TALKTALK BUSINESS","3849133","http://opencorporates.com/companies/gb/3849133","744032068"
"London Borough of Redbridge","http://opendatacommunities.org/doc/london-borough-council/redbridge","1BOTHEROPI&E","Other Operating Income & Expenditure","1CTRADSURDEF","Trading Account Surpluses & Deficits","REV","Revenue","R9252","IT Services","04-SUPPLIES","Supplies And Services","04F","Communications and computing","5854","Exchange Line Rental","3288949","201404",25/06/2013 00:00:00,58.83,"76510","Telecommunication Services","REDACTED DATA","TALKTALK COMMUNICATIONS LTD T/AS TALKTALK BUSINESS","3849133","http://opencorporates.com/companies/gb/3849133","744032068"
"London Borough of Redbridge","http://opendatacommunities.org/doc/london-borough-council/redbridge","1BOTHEROPI&E","Other Operating Income & Expenditure","1CTRADSURDEF","Trading Account Surpluses & Deficits","REV","Revenue","R9252","IT Services","04-SUPPLIES","Supplies And Services","04F","Communications and computing","5854","Exchange Line Rental","3288949","201404",25/06/2013 00:00:00,49.9,"76510","Telecommunication Services","REDACTED DATA","TALKTALK COMMUNICATIONS LTD T/AS TALKTALK BUSINESS","3849133","http://opencorporates.com/companies/gb/3849133","744032068"
"London Borough of Redbridge","http://opendatacommunities.org/doc/london-borough-council/redbridge","5BGFHOUSING","General Fund Housing","5CHOUSADVICE","Housing Advice","REV","Revenue","R5533","Hylefords TA Refurbishment Project","04-SUPPLIES","Supplies And Services","04F","Communications and computing","5854","Exchange Line Rental","3288949","201404",25/06/2013 00:00:00,48.92,"76510","Telecommunication Services","REDACTED DATA","TALKTALK COMMUNICATIONS LTD T/AS TALKTALK BUSINESS","3849133","http://opencorporates.com/companies/gb/3849133","744032068"
"London Borough of Redbridge","http://opendatacommunities.org/doc/london-borough-council/redbridge","6BSOCIALSERV","Social Services","6CCHILLOOKED","Children Looked After","REV","Revenue","R2175","Ray Lodge Building","04-SUPPLIES","Supplies And Services","04F","Communications and computing","5854","Exchange Line Rental","3288949","201404",25/06/2013 00:00:00,46.74,"76510","Telecommunication Services","REDACTED DATA","TALKTALK COMMUNICATIONS LTD T/AS TALKTALK BUSINESS","3849133","http://opencorporates.com/companies/gb/3849133","744032068"
"London Borough of Redbridge","http://opendatacommunities.org/doc/london-borough-council/redbridge","1BOTHEROPI&E","Other Operating Income & Expenditure","1CTRADSURDEF","Trading Account Surpluses & Deficits","REV","Revenue","R9252","IT Services","04-SUPPLIES","Supplies And Services","04F","Communications and computing","5854","Exchange Line Rental","3288949","201404",25/06/2013 00:00:00,46.48,"76510","Telecommunication Services","REDACTED DATA","TALKTALK COMMUNICATIONS LTD T/AS TALKTALK BUSINESS","3849133","http://opencorporates.com/companies/gb/3849133","744032068"
"London Borough of Redbridge","http://opendatacommunities.org/doc/london-borough-council/redbridge","1BOTHEROPI&E","Other Operating Income & Expenditure","1CTRADSURDEF","Trading Account Surpluses & Deficits","REV","Revenue","R9252","IT Services","04-SUPPLIES","Supplies And Services","04F","Communications and computing","5854","Exchange Line Rental","3288949","201404",25/06/2013 00:00:00,45.57,"76510","Telecommunication Services","REDACTED DATA","TALKTALK COMMUNICATIONS LTD T/AS TALKTALK BUSINESS","3849133","http://opencorporates.com/companies/gb/3849133","744032068"
"London Borough of Redbridge","http://opendatacommunities.org/doc/london-borough-council/redbridge","6BSOCIALSERV","Social Services","6CCHILLOOKED","Children Looked After","REV","Revenue","R2175","Ray Lodge Building","04-SUPPLIES","Supplies And Services","04F","Communications and computing","5854","Exchange Line Rental","3288949","201404",25/06/2013 00:00:00,43.7,"76510","Telecommunication Services","REDACTED DATA","TALKTALK COMMUNICATIONS LTD T/AS TALKTALK BUSINESS","3849133","http://opencorporates.com/companies/gb/3849133","744032068"
"London Borough of Redbridge","http://opendatacommunities.org/doc/london-borough-council/redbridge","1BOTHEROPI&E","Other Operating Income & Expenditure","1CTRADSURDEF","Trading Account Surpluses & Deficits","REV","Revenue","R9252","IT Services","04-SUPPLIES","Supplies And Services","04F","Communications and computing","5854","Exchange Line Rental","3288949","201404",25/06/2013 00:00:00,43.24,"76510","Telecommunication Services","REDACTED DATA","TALKTALK COMMUNICATIONS LTD T/AS TALKTALK BUSINESS","3849133","http://opencorporates.com/companies/gb/3849133","744032068"
"London Borough of Redbridge","http://opendatacommunities.org/doc/london-borough-council/redbridge","1BOTHEROPI&E","Other Operating Income & Expenditure","1CTRADSURDEF","Trading Account Surpluses & Deficits","REV","Revenue","R9252","IT Services","04-SUPPLIES","Supplies And Services","04F","Communications and computing","5854","Exchange Line Rental","3288949","201404",25/06/2013 00:00:00,43.08,"76510","Telecommunication Services","REDACTED DATA","TALKTALK COMMUNICATIONS LTD T/AS TALKTALK BUSINESS","3849133","http://opencorporates.com/companies/gb/3849133","744032068"
"London Borough of Redbridge","http://opendatacommunities.org/doc/london-borough-council/redbridge","1BOTHEROPI&E","Other Operating Income & Expenditure","1CTRADSURDEF","Trading Account Surpluses & Deficits","REV","Revenue","R9252","IT Services","04-SUPPLIES","Supplies And Services","04F","Communications and computing","5854","Exchange Line Rental","3288949","201404",25/06/2013 00:00:00,40.46,"76510","Telecommunication Services","REDACTED DATA","TALKTALK COMMUNICATIONS LTD T/AS TALKTALK BUSINESS","3849133","http://opencorporates.com/companies/gb/3849133","744032068"
"London Borough of Redbridge","http://opendatacommunities.org/doc/london-borough-council/redbridge","1BOTHEROPI&E","Other Operating Income & Expenditure","1CTRADSURDEF","Trading Account Surpluses & Deficits","REV","Revenue","R9252","IT Services","04-SUPPLIES","Supplies And Services","04F","Communications and computing","5854","Exchange Line Rental","3288949","201404",25/06/2013 00:00:00,39.96,"76510","Telecommunication Services","REDACTED DATA","TALKTALK COMMUNICATIONS LTD T/AS TALKTALK BUSINESS","3849133","http://opencorporates.com/companies/gb/3849133","744032068"
"London Borough of Redbridge","http://opendatacommunities.org/doc/london-borough-council/redbridge","6BSOCIALSERV","Social Services","6CCHILLOOKED","Children Looked After","REV","Revenue","R2175","Ray Lodge Building","04-SUPPLIES","Supplies And Services","04F","Communications and computing","5854","Exchange Line Rental","3288949","201404",25/06/2013 00:00:00,36.9,"76510","Telecommunication Services","REDACTED DATA","TALKTALK COMMUNICATIONS LTD T/AS TALKTALK BUSINESS","3849133","http://opencorporates.com/companies/gb/3849133","744032068"
"London Borough of Redbridge","http://opendatacommunities.org/doc/london-borough-council/redbridge","1BOTHEROPI&E","Other Operating Income & Expenditure","1CTRADSURDEF","Trading Account Surpluses & Deficits","REV","Revenue","R9252","IT Services","04-SUPPLIES","Supplies And Services","04F","Communications and computing","5854","Exchange Line Rental","3288949","201404",25/06/2013 00:00:00,34.11,"76510","Telecommunication Services","REDACTED DATA","TALKTALK COMMUNICATIONS LTD T/AS TALKTALK BUSINESS","3849133","http://opencorporates.com/companies/gb/3849133","744032068"
"London Borough of Redbridge","http://opendatacommunities.org/doc/london-borough-council/redbridge","1BOTHEROPI&E","Other Operating Income & Expenditure","1CTRADSURDEF","Trading Account Surpluses & Deficits","REV","Revenue","R9252","IT Services","04-SUPPLIES","Supplies And Services","04F","Communications and computing","5854","Exchange Line Rental","3288949","201404",25/06/2013 00:00:00,33.34,"76510","Telecommunication Services","REDACTED DATA","TALKTALK COMMUNICATIONS LTD T/AS TALKTALK BUSINESS","3849133","http://opencorporates.com/companies/gb/3849133","744032068"
"London Borough of Redbridge","http://opendatacommunities.org/doc/london-borough-council/redbridge","1BOTHEROPI&E","Other Operating Income & Expenditure","1CTRADSURDEF","Trading Account Surpluses & Deficits","REV","Revenue","R9252","IT Services","04-SUPPLIES","Supplies And Services","04F","Communications and computing","5854","Exchange Line Rental","3288949","201404",25/06/2013 00:00:00,32.03,"76510","Telecommunication Services","REDACTED DATA","TALKTALK COMMUNICATIONS LTD T/AS TALKTALK BUSINESS","3849133","http://opencorporates.com/companies/gb/3849133","744032068"
"London Borough of Redbridge","http://opendatacommunities.org/doc/london-borough-council/redbridge","1BOTHEROPI&E","Other Operating Income & Expenditure","1CTRADSURDEF","Trading Account Surpluses & Deficits","REV","Revenue","R9252","IT Services","04-SUPPLIES","Supplies And Services","04F","Communications and computing","5854","Exchange Line Rental","3288949","201404",25/06/2013 00:00:00,32.03,"76510","Telecommunication Services","REDACTED DATA","TALKTALK COMMUNICATIONS LTD T/AS TALKTALK BUSINESS","3849133","http://opencorporates.com/companies/gb/3849133","744032068"
"London Borough of Redbridge","http://opendatacommunities.org/doc/london-borough-council/redbridge","1BOTHEROPI&E","Other Operating Income & Expenditure","1CTRADSURDEF","Trading Account Surpluses & Deficits","REV","Revenue","R9252","IT Services","04-SUPPLIES","Supplies And Services","04F","Communications and computing","5854","Exchange Line Rental","3288949","201404",25/06/2013 00:00:00,30.34,"76510","Telecommunication Services","REDACTED DATA","TALKTALK COMMUNICATIONS LTD T/AS TALKTALK BUSINESS","3849133","http://opencorporates.com/companies/gb/3849133","744032068"
"London Borough of Redbridge","http://opendatacommunities.org/doc/london-borough-council/redbridge","1BOTHEROPI&E","Other Operating Income & Expenditure","1CTRADSURDEF","Trading Account Surpluses & Deficits","REV","Revenue","R9252","IT Services","04-SUPPLIES","Supplies And Services","04F","Communications and computing","5854","Exchange Line Rental","3288949","201404",25/06/2013 00:00:00,29.97,"76510","Telecommunication Services","REDACTED DATA","TALKTALK COMMUNICATIONS LTD T/AS TALKTALK BUSINESS","3849133","http://opencorporates.com/companies/gb/3849133","744032068"
"London Borough of Redbridge","http://opendatacommunities.org/doc/london-borough-council/redbridge","1BOTHEROPI&E","Other Operating Income & Expenditure","1CTRADSURDEF","Trading Account Surpluses & Deficits","REV","Revenue","R9252","IT Services","04-SUPPLIES","Supplies And Services","04F","Communications and computing","5854","Exchange Line Rental","3288949","201404",25/06/2013 00:00:00,26.51,"76510","Telecommunication Services","REDACTED DATA","TALKTALK COMMUNICATIONS LTD T/AS TALKTALK BUSINESS","3849133","http://opencorporates.com/companies/gb/3849133","744032068"
"London Borough of Redbridge","http://opendatacommunities.org/doc/london-borough-council/redbridge","1BOTHEROPI&E","Other Operating Income & Expenditure","1CTRADSURDEF","Trading Account Surpluses & Deficits","REV","Revenue","R9252","IT Services","04-SUPPLIES","Supplies And Services","04F","Communications and computing","5854","Exchange Line Rental","3288949","201404",25/06/2013 00:00:00,26.3,"76510","Telecommunication Services","REDACTED DATA","TALKTALK COMMUNICATIONS LTD T/AS TALKTALK BUSINESS","3849133","http://opencorporates.com/companies/gb/3849133","744032068"
"London Borough of Redbridge","http://opendatacommunities.org/doc/london-borough-council/redbridge","6BSOCIALSERV","Social Services","6CCHILLOOKED","Children Looked After","REV","Revenue","R2175","Ray Lodge Building","04-SUPPLIES","Supplies And Services","04F","Communications and computing","5854","Exchange Line Rental","3288949","201404",25/06/2013 00:00:00,26.21,"76510","Telecommunication Services","REDACTED DATA","TALKTALK COMMUNICATIONS LTD T/AS TALKTALK BUSINESS","3849133","http://opencorporates.com/companies/gb/3849133","744032068"
"London Borough of Redbridge","http://opendatacommunities.org/doc/london-borough-council/redbridge","1BOTHEROPI&E","Other Operating Income & Expenditure","1CTRADSURDEF","Trading Account Surpluses & Deficits","REV","Revenue","R9252","IT Services","04-SUPPLIES","Supplies And Services","04F","Communications and computing","5854","Exchange Line Rental","3288949","201404",25/06/2013 00:00:00,25.75,"76510","Telecommunication Services","REDACTED DATA","TALKTALK COMMUNICATIONS LTD T/AS TALKTALK BUSINESS","3849133","http://opencorporates.com/companies/gb/3849133","744032068"
"London Borough of Redbridge","http://opendatacommunities.org/doc/london-borough-council/redbridge","1BOTHEROPI&E","Other Operating Income & Expenditure","1CTRADSURDEF","Trading Account Surpluses & Deficits","REV","Revenue","R9252","IT Services","04-SUPPLIES","Supplies And Services","04F","Communications and computing","5854","Exchange Line Rental","3288949","201404",25/06/2013 00:00:00,22.78,"76510","Telecommunication Services","REDACTED DATA","TALKTALK COMMUNICATIONS LTD T/AS TALKTALK BUSINESS","3849133","http://opencorporates.com/companies/gb/3849133","744032068"
"London Borough of Redbridge","http://opendatacommunities.org/doc/london-borough-council/redbridge","1BOTHEROPI&E","Other Operating Income & Expenditure","1CTRADSURDEF","Trading Account Surpluses & Deficits","REV","Revenue","R9252","IT Services","04-SUPPLIES","Supplies And Services","04F","Communications and computing","5854","Exchange Line Rental","3288949","201404",25/06/2013 00:00:00,21,"76510","Telecommunication Services","REDACTED DATA","TALKTALK COMMUNICATIONS LTD T/AS TALKTALK BUSINESS","3849133","http://opencorporates.com/companies/gb/3849133","744032068"
"London Borough of Redbridge","http://opendatacommunities.org/doc/london-borough-council/redbridge","1BOTHEROPI&E","Other Operating Income & Expenditure","1CTRADSURDEF","Trading Account Surpluses & Deficits","REV","Revenue","R9252","IT Services","04-SUPPLIES","Supplies And Services","04F","Communications and computing","5854","Exchange Line Rental","3288949","201404",25/06/2013 00:00:00,21,"76510","Telecommunication Services","REDACTED DATA","TALKTALK COMMUNICATIONS LTD T/AS TALKTALK BUSINESS","3849133","http://opencorporates.com/companies/gb/3849133","744032068"
"London Borough of Redbridge","http://opendatacommunities.org/doc/london-borough-council/redbridge","1BOTHEROPI&E","Other Operating Income & Expenditure","1CTRADSURDEF","Trading Account Surpluses & Deficits","REV","Revenue","R9252","IT Services","04-SUPPLIES","Supplies And Services","04F","Communications and computing","5854","Exchange Line Rental","3288949","201404",25/06/2013 00:00:00,21,"76510","Telecommunication Services","REDACTED DATA","TALKTALK COMMUNICATIONS LTD T/AS TALKTALK BUSINESS","3849133","http://opencorporates.com/companies/gb/3849133","744032068"
"London Borough of Redbridge","http://opendatacommunities.org/doc/london-borough-council/redbridge","1BOTHEROPI&E","Other Operating Income & Expenditure","1CTRADSURDEF","Trading Account Surpluses & Deficits","REV","Revenue","R9252","IT Services","04-SUPPLIES","Supplies And Services","04F","Communications and computing","5854","Exchange Line Rental","3288949","201404",25/06/2013 00:00:00,21,"76510","Telecommunication Services","REDACTED DATA","TALKTALK COMMUNICATIONS LTD T/AS TALKTALK BUSINESS","3849133","http://opencorporates.com/companies/gb/3849133","744032068"
"London Borough of Redbridge","http://opendatacommunities.org/doc/london-borough-council/redbridge","1BOTHEROPI&E","Other Operating Income & Expenditure","1CTRADSURDEF","Trading Account Surpluses & Deficits","REV","Revenue","R9252","IT Services","04-SUPPLIES","Supplies And Services","04F","Communications and computing","5854","Exchange Line Rental","3288949","201404",25/06/2013 00:00:00,19.98,"76510","Telecommunication Services","REDACTED DATA","TALKTALK COMMUNICATIONS LTD T/AS TALKTALK BUSINESS","3849133","http://opencorporates.com/companies/gb/3849133","744032068"
"London Borough of Redbridge","http://opendatacommunities.org/doc/london-borough-council/redbridge","1BOTHEROPI&E","Other Operating Income & Expenditure","1CTRADSURDEF","Trading Account Surpluses & Deficits","REV","Revenue","R9252","IT Services","04-SUPPLIES","Supplies And Services","04F","Communications and computing","5854","Exchange Line Rental","3288949","201404",25/06/2013 00:00:00,19.98,"76510","Telecommunication Services","REDACTED DATA","TALKTALK COMMUNICATIONS LTD T/AS TALKTALK BUSINESS","3849133","http://opencorporates.com/companies/gb/3849133","744032068"
"London Borough of Redbridge","http://opendatacommunities.org/doc/london-borough-council/redbridge","1BOTHEROPI&E","Other Operating Income & Expenditure","1CTRADSURDEF","Trading Account Surpluses & Deficits","REV","Revenue","R9252","IT Services","04-SUPPLIES","Supplies And Services","04F","Communications and computing","5854","Exchange Line Rental","3288949","201404",25/06/2013 00:00:00,19.98,"76510","Telecommunication Services","REDACTED DATA","TALKTALK COMMUNICATIONS LTD T/AS TALKTALK BUSINESS","3849133","http://opencorporates.com/companies/gb/3849133","744032068"
"London Borough of Redbridge","http://opendatacommunities.org/doc/london-borough-council/redbridge","1BOTHEROPI&E","Other Operating Income & Expenditure","1CTRADSURDEF","Trading Account Surpluses & Deficits","REV","Revenue","R9252","IT Services","04-SUPPLIES","Supplies And Services","04F","Communications and computing","5854","Exchange Line Rental","3288949","201404",25/06/2013 00:00:00,19.26,"76510","Telecommunication Services","REDACTED DATA","TALKTALK COMMUNICATIONS LTD T/AS TALKTALK BUSINESS","3849133","http://opencorporates.com/companies/gb/3849133","744032068"
"London Borough of Redbridge","http://opendatacommunities.org/doc/london-borough-council/redbridge","6BSOCIALSERV","Social Services","6CCHILLOOKED","Children Looked After","REV","Revenue","R2175","Ray Lodge Building","04-SUPPLIES","Supplies And Services","04F","Communications and computing","5854","Exchange Line Rental","3288949","201404",25/06/2013 00:00:00,17.32,"76510","Telecommunication Services","REDACTED DATA","TALKTALK COMMUNICATIONS LTD T/AS TALKTALK BUSINESS","3849133","http://opencorporates.com/companies/gb/3849133","744032068"
"London Borough of Redbridge","http://opendatacommunities.org/doc/london-borough-council/redbridge","6BSOCIALSERV","Social Services","6CCHILLOOKED","Children Looked After","REV","Revenue","R2175","Ray Lodge Building","04-SUPPLIES","Supplies And Services","04F","Communications and computing","5854","Exchange Line Rental","3288949","201404",25/06/2013 00:00:00,17.13,"76510","Telecommunication Services","REDACTED DATA","TALKTALK COMMUNICATIONS LTD T/AS TALKTALK BUSINESS","3849133","http://opencorporates.com/companies/gb/3849133","744032068"
"London Borough of Redbridge","http://opendatacommunities.org/doc/london-borough-council/redbridge","6BSOCIALSERV","Social Services","6CCHILLOOKED","Children Looked After","REV","Revenue","R2175","Ray Lodge Building","04-SUPPLIES","Supplies And Services","04F","Communications and computing","5854","Exchange Line Rental","3288949","201404",25/06/2013 00:00:00,14.17,"76510","Telecommunication Services","REDACTED DATA","TALKTALK COMMUNICATIONS LTD T/AS TALKTALK BUSINESS","3849133","http://opencorporates.com/companies/gb/3849133","744032068"
"London Borough of Redbridge","http://opendatacommunities.org/doc/london-borough-council/redbridge","6BSOCIALSERV","Social Services","6CCHILLOOKED","Children Looked After","REV","Revenue","R2175","Ray Lodge Building","04-SUPPLIES","Supplies And Services","04F","Communications and computing","5854","Exchange Line Rental","3288949","201404",25/06/2013 00:00:00,14.15,"76510","Telecommunication Services","REDACTED DATA","TALKTALK COMMUNICATIONS LTD T/AS TALKTALK BUSINESS","3849133","http://opencorporates.com/companies/gb/3849133","744032068"
"London Borough of Redbridge","http://opendatacommunities.org/doc/london-borough-council/redbridge","3BNONSCHFUND","Non-School Funding","3CNONSCH","Non Schools","REV","Revenue","R3942","Cranbrook CC","04-SUPPLIES","Supplies And Services","04F","Communications and computing","5854","Exchange Line Rental","3288949","201404",25/06/2013 00:00:00,13.14,"76510","Telecommunication Services","REDACTED DATA","TALKTALK COMMUNICATIONS LTD T/AS TALKTALK BUSINESS","3849133","http://opencorporates.com/companies/gb/3849133","744032068"
"London Borough of Redbridge","http://opendatacommunities.org/doc/london-borough-council/redbridge","1BOTHEROPI&E","Other Operating Income & Expenditure","1CTRADSURDEF","Trading Account Surpluses & Deficits","REV","Revenue","R9252","IT Services","04-SUPPLIES","Supplies And Services","04F","Communications and computing","5854","Exchange Line Rental","3288949","201404",25/06/2013 00:00:00,13.06,"76510","Telecommunication Services","REDACTED DATA","TALKTALK COMMUNICATIONS LTD T/AS TALKTALK BUSINESS","3849133","http://opencorporates.com/companies/gb/3849133","744032068"
"London Borough of Redbridge","http://opendatacommunities.org/doc/london-borough-council/redbridge","1BOTHEROPI&E","Other Operating Income & Expenditure","1CTRADSURDEF","Trading Account Surpluses & Deficits","REV","Revenue","R9252","IT Services","04-SUPPLIES","Supplies And Services","04F","Communications and computing","5854","Exchange Line Rental","3288949","201404",25/06/2013 00:00:00,12.48,"76510","Telecommunication Services","REDACTED DATA","TALKTALK COMMUNICATIONS LTD T/AS TALKTALK BUSINESS","3849133","http://opencorporates.com/companies/gb/3849133","744032068"
"London Borough of Redbridge","http://opendatacommunities.org/doc/london-borough-council/redbridge","3BNONSCHFUND","Non-School Funding","3CNONSCH","Non Schools","REV","Revenue","R3942","Cranbrook CC","04-SUPPLIES","Supplies And Services","04F","Communications and computing","5854","Exchange Line Rental","3288949","201404",25/06/2013 00:00:00,12,"76510","Telecommunication Services","REDACTED DATA","TALKTALK COMMUNICATIONS LTD T/AS TALKTALK BUSINESS","3849133","http://opencorporates.com/companies/gb/3849133","744032068"
"London Borough of Redbridge","http://opendatacommunities.org/doc/london-borough-council/redbridge","6BSOCIALSERV","Social Services","6CCHILLOOKED","Children Looked After","REV","Revenue","R2175","Ray Lodge Building","04-SUPPLIES","Supplies And Services","04F","Communications and computing","5854","Exchange Line Rental","3288949","201404",25/06/2013 00:00:00,12,"76510","Telecommunication Services","REDACTED DATA","TALKTALK COMMUNICATIONS LTD T/AS TALKTALK BUSINESS","3849133","http://opencorporates.com/companies/gb/3849133","744032068"
"London Borough of Redbridge","http://opendatacommunities.org/doc/london-borough-council/redbridge","1BOTHEROPI&E","Other Operating Income & Expenditure","1CTRADSURDEF","Trading Account Surpluses & Deficits","REV","Revenue","R9252","IT Services","04-SUPPLIES","Supplies And Services","04F","Communications and computing","5854","Exchange Line Rental","3288949","201404",25/06/2013 00:00:00,9.99,"76510","Telecommunication Services","REDACTED DATA","TALKTALK COMMUNICATIONS LTD T/AS TALKTALK BUSINESS","3849133","http://opencorporates.com/companies/gb/3849133","744032068"
"London Borough of Redbridge","http://opendatacommunities.org/doc/london-borough-council/redbridge","1BOTHEROPI&E","Other Operating Income & Expenditure","1CTRADSURDEF","Trading Account Surpluses & Deficits","REV","Revenue","R9252","IT Services","04-SUPPLIES","Supplies And Services","04F","Communications and computing","5854","Exchange Line Rental","3288949","201404",25/06/2013 00:00:00,9.99,"76510","Telecommunication Services","REDACTED DATA","TALKTALK COMMUNICATIONS LTD T/AS TALKTALK BUSINESS","3849133","http://opencorporates.com/companies/gb/3849133","744032068"
"London Borough of Redbridge","http://opendatacommunities.org/doc/london-borough-council/redbridge","1BOTHEROPI&E","Other Operating Income & Expenditure","1CTRADSURDEF","Trading Account Surpluses & Deficits","REV","Revenue","R9252","IT Services","04-SUPPLIES","Supplies And Services","04F","Communications and computing","5854","Exchange Line Rental","3288949","201404",25/06/2013 00:00:00,9.99,"76510","Telecommunication Services","REDACTED DATA","TALKTALK COMMUNICATIONS LTD T/AS TALKTALK BUSINESS","3849133","http://opencorporates.com/companies/gb/3849133","744032068"
"London Borough of Redbridge","http://opendatacommunities.org/doc/london-borough-council/redbridge","1BOTHEROPI&E","Other Operating Income & Expenditure","1CTRADSURDEF","Trading Account Surpluses & Deficits","REV","Revenue","R9252","IT Services","04-SUPPLIES","Supplies And Services","04F","Communications and computing","5854","Exchange Line Rental","3288949","201404",25/06/2013 00:00:00,9.99,"76510","Telecommunication Services","REDACTED DATA","TALKTALK COMMUNICATIONS LTD T/AS TALKTALK BUSINESS","3849133","http://opencorporates.com/companies/gb/3849133","744032068"
"London Borough of Redbridge","http://opendatacommunities.org/doc/london-borough-council/redbridge","1BOTHEROPI&E","Other Operating Income & Expenditure","1CTRADSURDEF","Trading Account Surpluses & Deficits","REV","Revenue","R9252","IT Services","04-SUPPLIES","Supplies And Services","04F","Communications and computing","5854","Exchange Line Rental","3288949","201404",25/06/2013 00:00:00,9.99,"76510","Telecommunication Services","REDACTED DATA","TALKTALK COMMUNICATIONS LTD T/AS TALKTALK BUSINESS","3849133","http://opencorporates.com/companies/gb/3849133","744032068"
"London Borough of Redbridge","http://opendatacommunities.org/doc/london-borough-council/redbridge","1BOTHEROPI&E","Other Operating Income & Expenditure","1CTRADSURDEF","Trading Account Surpluses & Deficits","REV","Revenue","R9252","IT Services","04-SUPPLIES","Supplies And Services","04F","Communications and computing","5854","Exchange Line Rental","3288949","201404",25/06/2013 00:00:00,9.99,"76510","Telecommunication Services","REDACTED DATA","TALKTALK COMMUNICATIONS LTD T/AS TALKTALK BUSINESS","3849133","http://opencorporates.com/companies/gb/3849133","744032068"
"London Borough of Redbridge","http://opendatacommunities.org/doc/london-borough-council/redbridge","1BOTHEROPI&E","Other Operating Income & Expenditure","1CTRADSURDEF","Trading Account Surpluses & Deficits","REV","Revenue","R9252","IT Services","04-SUPPLIES","Supplies And Services","04F","Communications and computing","5854","Exchange Line Rental","3288949","201404",25/06/2013 00:00:00,9.99,"76510","Telecommunication Services","REDACTED DATA","TALKTALK COMMUNICATIONS LTD T/AS TALKTALK BUSINESS","3849133","http://opencorporates.com/companies/gb/3849133","744032068"
"London Borough of Redbridge","http://opendatacommunities.org/doc/london-borough-council/redbridge","1BOTHEROPI&E","Other Operating Income & Expenditure","1CTRADSURDEF","Trading Account Surpluses & Deficits","REV","Revenue","R9252","IT Services","04-SUPPLIES","Supplies And Services","04F","Communications and computing","5854","Exchange Line Rental","3288949","201404",25/06/2013 00:00:00,9.99,"76510","Telecommunication Services","REDACTED DATA","TALKTALK COMMUNICATIONS LTD T/AS TALKTALK BUSINESS","3849133","http://opencorporates.com/companies/gb/3849133","744032068"
"London Borough of Redbridge","http://opendatacommunities.org/doc/london-borough-council/redbridge","1BOTHEROPI&E","Other Operating Income & Expenditure","1CTRADSURDEF","Trading Account Surpluses & Deficits","REV","Revenue","R9252","IT Services","04-SUPPLIES","Supplies And Services","04F","Communications and computing","5854","Exchange Line Rental","3288949","201404",25/06/2013 00:00:00,9.99,"76510","Telecommunication Services","REDACTED DATA","TALKTALK COMMUNICATIONS LTD T/AS TALKTALK BUSINESS","3849133","http://opencorporates.com/companies/gb/3849133","744032068"
"London Borough of Redbridge","http://opendatacommunities.org/doc/london-borough-council/redbridge","1BOTHEROPI&E","Other Operating Income & Expenditure","1CTRADSURDEF","Trading Account Surpluses & Deficits","REV","Revenue","R9252","IT Services","04-SUPPLIES","Supplies And Services","04F","Communications and computing","5854","Exchange Line Rental","3288949","201404",25/06/2013 00:00:00,9.99,"76510","Telecommunication Services","REDACTED DATA","TALKTALK COMMUNICATIONS LTD T/AS TALKTALK BUSINESS","3849133","http://opencorporates.com/companies/gb/3849133","744032068"
"London Borough of Redbridge","http://opendatacommunities.org/doc/london-borough-council/redbridge","1BOTHEROPI&E","Other Operating Income & Expenditure","1CTRADSURDEF","Trading Account Surpluses & Deficits","REV","Revenue","R9252","IT Services","04-SUPPLIES","Supplies And Services","04F","Communications and computing","5854","Exchange Line Rental","3288949","201404",25/06/2013 00:00:00,9.99,"76510","Telecommunication Services","REDACTED DATA","TALKTALK COMMUNICATIONS LTD T/AS TALKTALK BUSINESS","3849133","http://opencorporates.com/companies/gb/3849133","744032068"
"London Borough of Redbridge","http://opendatacommunities.org/doc/london-borough-council/redbridge","1BOTHEROPI&E","Other Operating Income & Expenditure","1CTRADSURDEF","Trading Account Surpluses & Deficits","REV","Revenue","R9252","IT Services","04-SUPPLIES","Supplies And Services","04F","Communications and computing","5854","Exchange Line Rental","3288949","201404",25/06/2013 00:00:00,9.99,"76510","Telecommunication Services","REDACTED DATA","TALKTALK COMMUNICATIONS LTD T/AS TALKTALK BUSINESS","3849133","http://opencorporates.com/companies/gb/3849133","744032068"
"London Borough of Redbridge","http://opendatacommunities.org/doc/london-borough-council/redbridge","1BOTHEROPI&E","Other Operating Income & Expenditure","1CTRADSURDEF","Trading Account Surpluses & Deficits","REV","Revenue","R9252","IT Services","04-SUPPLIES","Supplies And Services","04F","Communications and computing","5854","Exchange Line Rental","3288949","201404",25/06/2013 00:00:00,9.99,"76510","Telecommunication Services","REDACTED DATA","TALKTALK COMMUNICATIONS LTD T/AS TALKTALK BUSINESS","3849133","http://opencorporates.com/companies/gb/3849133","744032068"
"London Borough of Redbridge","http://opendatacommunities.org/doc/london-borough-council/redbridge","1BOTHEROPI&E","Other Operating Income & Expenditure","1CTRADSURDEF","Trading Account Surpluses & Deficits","REV","Revenue","R9252","IT Services","04-SUPPLIES","Supplies And Services","04F","Communications and computing","5854","Exchange Line Rental","3288949","201404",25/06/2013 00:00:00,9.99,"76510","Telecommunication Services","REDACTED DATA","TALKTALK COMMUNICATIONS LTD T/AS TALKTALK BUSINESS","3849133","http://opencorporates.com/companies/gb/3849133","744032068"
"London Borough of Redbridge","http://opendatacommunities.org/doc/london-borough-council/redbridge","1BOTHEROPI&E","Other Operating Income & Expenditure","1CTRADSURDEF","Trading Account Surpluses & Deficits","REV","Revenue","R9252","IT Services","04-SUPPLIES","Supplies And Services","04F","Communications and computing","5854","Exchange Line Rental","3288949","201404",25/06/2013 00:00:00,9.99,"76510","Telecommunication Services","REDACTED DATA","TALKTALK COMMUNICATIONS LTD T/AS TALKTALK BUSINESS","3849133","http://opencorporates.com/companies/gb/3849133","744032068"
"London Borough of Redbridge","http://opendatacommunities.org/doc/london-borough-council/redbridge","1BOTHEROPI&E","Other Operating Income & Expenditure","1CTRADSURDEF","Trading Account Surpluses & Deficits","REV","Revenue","R9252","IT Services","04-SUPPLIES","Supplies And Services","04F","Communications and computing","5854","Exchange Line Rental","3288949","201404",25/06/2013 00:00:00,9.99,"76510","Telecommunication Services","REDACTED DATA","TALKTALK COMMUNICATIONS LTD T/AS TALKTALK BUSINESS","3849133","http://opencorporates.com/companies/gb/3849133","744032068"
"London Borough of Redbridge","http://opendatacommunities.org/doc/london-borough-council/redbridge","1BOTHEROPI&E","Other Operating Income & Expenditure","1CTRADSURDEF","Trading Account Surpluses & Deficits","REV","Revenue","R9252","IT Services","04-SUPPLIES","Supplies And Services","04F","Communications and computing","5854","Exchange Line Rental","3288949","201404",25/06/2013 00:00:00,9.99,"76510","Telecommunication Services","REDACTED DATA","TALKTALK COMMUNICATIONS LTD T/AS TALKTALK BUSINESS","3849133","http://opencorporates.com/companies/gb/3849133","744032068"
"London Borough of Redbridge","http://opendatacommunities.org/doc/london-borough-council/redbridge","1BOTHEROPI&E","Other Operating Income & Expenditure","1CTRADSURDEF","Trading Account Surpluses & Deficits","REV","Revenue","R9252","IT Services","04-SUPPLIES","Supplies And Services","04F","Communications and computing","5854","Exchange Line Rental","3288949","201404",25/06/2013 00:00:00,9.99,"76510","Telecommunication Services","REDACTED DATA","TALKTALK COMMUNICATIONS LTD T/AS TALKTALK BUSINESS","3849133","http://opencorporates.com/companies/gb/3849133","744032068"
"London Borough of Redbridge","http://opendatacommunities.org/doc/london-borough-council/redbridge","1BOTHEROPI&E","Other Operating Income & Expenditure","1CTRADSURDEF","Trading Account Surpluses & Deficits","REV","Revenue","R9252","IT Services","04-SUPPLIES","Supplies And Services","04F","Communications and computing","5854","Exchange Line Rental","3288949","201404",25/06/2013 00:00:00,9.99,"76510","Telecommunication Services","REDACTED DATA","TALKTALK COMMUNICATIONS LTD T/AS TALKTALK BUSINESS","3849133","http://opencorporates.com/companies/gb/3849133","744032068"
"London Borough of Redbridge","http://opendatacommunities.org/doc/london-borough-council/redbridge","1BOTHEROPI&E","Other Operating Income & Expenditure","1CTRADSURDEF","Trading Account Surpluses & Deficits","REV","Revenue","R9252","IT Services","04-SUPPLIES","Supplies And Services","04F","Communications and computing","5854","Exchange Line Rental","3288949","201404",25/06/2013 00:00:00,9.99,"76510","Telecommunication Services","REDACTED DATA","TALKTALK COMMUNICATIONS LTD T/AS TALKTALK BUSINESS","3849133","http://opencorporates.com/companies/gb/3849133","744032068"
"London Borough of Redbridge","http://opendatacommunities.org/doc/london-borough-council/redbridge","1BOTHEROPI&E","Other Operating Income & Expenditure","1CTRADSURDEF","Trading Account Surpluses & Deficits","REV","Revenue","R9252","IT Services","04-SUPPLIES","Supplies And Services","04F","Communications and computing","5854","Exchange Line Rental","3288949","201404",25/06/2013 00:00:00,9.99,"76510","Telecommunication Services","REDACTED DATA","TALKTALK COMMUNICATIONS LTD T/AS TALKTALK BUSINESS","3849133","http://opencorporates.com/companies/gb/3849133","744032068"
"London Borough of Redbridge","http://opendatacommunities.org/doc/london-borough-council/redbridge","1BOTHEROPI&E","Other Operating Income & Expenditure","1CTRADSURDEF","Trading Account Surpluses & Deficits","REV","Revenue","R9252","IT Services","04-SUPPLIES","Supplies And Services","04F","Communications and computing","5854","Exchange Line Rental","3288949","201404",25/06/2013 00:00:00,9.99,"76510","Telecommunication Services","REDACTED DATA","TALKTALK COMMUNICATIONS LTD T/AS TALKTALK BUSINESS","3849133","http://opencorporates.com/companies/gb/3849133","744032068"
"London Borough of Redbridge","http://opendatacommunities.org/doc/london-borough-council/redbridge","1BOTHEROPI&E","Other Operating Income & Expenditure","1CTRADSURDEF","Trading Account Surpluses & Deficits","REV","Revenue","R9252","IT Services","04-SUPPLIES","Supplies And Services","04F","Communications and computing","5854","Exchange Line Rental","3288949","201404",25/06/2013 00:00:00,9.99,"76510","Telecommunication Services","REDACTED DATA","TALKTALK COMMUNICATIONS LTD T/AS TALKTALK BUSINESS","3849133","http://opencorporates.com/companies/gb/3849133","744032068"
"London Borough of Redbridge","http://opendatacommunities.org/doc/london-borough-council/redbridge","1BOTHEROPI&E","Other Operating Income & Expenditure","1CTRADSURDEF","Trading Account Surpluses & Deficits","REV","Revenue","R9252","IT Services","04-SUPPLIES","Supplies And Services","04F","Communications and computing","5854","Exchange Line Rental","3288949","201404",25/06/2013 00:00:00,9.99,"76510","Telecommunication Services","REDACTED DATA","TALKTALK COMMUNICATIONS LTD T/AS TALKTALK BUSINESS","3849133","http://opencorporates.com/companies/gb/3849133","744032068"
"London Borough of Redbridge","http://opendatacommunities.org/doc/london-borough-council/redbridge","1BOTHEROPI&E","Other Operating Income & Expenditure","1CTRADSURDEF","Trading Account Surpluses & Deficits","REV","Revenue","R9252","IT Services","04-SUPPLIES","Supplies And Services","04F","Communications and computing","5854","Exchange Line Rental","3288949","201404",25/06/2013 00:00:00,9.99,"76510","Telecommunication Services","REDACTED DATA","TALKTALK COMMUNICATIONS LTD T/AS TALKTALK BUSINESS","3849133","http://opencorporates.com/companies/gb/3849133","744032068"
